Workbook

Sheet Mainpage
A1: Basic & Advanced Excel Concepts | H1: Dr. Michael Nieswiadomy
H2: Modified on: | I2: 2024-02-22
A4: 1 | B4: Rows and columns in the spreadsheet
B5: a | C5: Rows are numbered. 65,536 rows in previous versions of Excel. Excel 2007 has 1,000,000 rows.
B6: b | C6: Columns are lettered. 256 columns in previous versions of Excel. Excel 2007 has 16,000 columns.
B7: c | C7: e.g. cell A5
A12: 2 | B12: Entering data
B13: a | C13: numbering methods
C14: i. | D14: e.g 1 to 20 can be entered manually (slow method)
C15: ii. | D15: or type 1 then 2 and drag
C16: iii | D16: use formula e.g. A1+ 1
B17: b | C17: Patterns recognized in Excel
C18: i. | D18: days, months,
C19: ii. | D19: you can repeat earlier cells by typing first few characters
D20: Dallas
D21: Denton
D22: Ft. Worth
A26: 3 | B26: Moving to the top of the sheet
B27: To go to the top left of the sheet (cell A1): Press Ctrl-Home (both keys at once).
B28: To go to the end of a range (top, bottom, left, or right): Press the End key, then the appropriate arrow key. For example, press
B29: End and then right arrow to go to the right edge of a range.
A31: 4 | B31: Splitting the screen
B32: Go to View, Window, Split
A34: 5 | B34: Selecting a range
B35: To select a range that fits on a screen: Click on one corner, hold down the Shift key, and click on the opposite corner.
B37: To select a range that doesn’t fit on a screen
B38: Click on one corner of the range, say, the upper left corner. Then, holding the Shift key down, use the End-arrow combinations
B39: (End and right arrow, then, if necessary, End and down arrow) to get to the opposite corner.
A41: 6 | B41: Copying & pasting (Ctrl c and ctrl v)
B42: To copy and paste using keyboard shortcuts: Select the copy range (using one of the efficient selection methods described
B43: above), press Ctrl-c (for copy), select the paste range (again, efficiently), and press Ctrl-v (for paste).
B45: To copy with the drag handle:
B46: Enter the formula in the top or left-hand cell of the intended range. Place the cursor on the “drag handle” at the lower right of
B47: this cell (the cursor becomes a plus sign), and drag this handle down or across to copy.
D49: number | E49: number squared
D50: 1 | E50: =D50^2 -> 1 | G50: use F2 key; is EDIT key borrowed from Lotus
D51: 2
D52: 3
D53: 4
D54: 5
B61: To copy by double-clicking on the drag handle:
B62: Enter the formula in the top or left-hand cell of the intended range. Double-click on the drag handle.
D63: number | E63: number squared
D64: 1 | E64: =D64^2 -> 1
D65: 2 | E65: =D65^2 -> 4
D66: 3 | E66: 9
D67: 4 | E67: 16
D68: 5 | E68: 25
B70: Copying and Pasting with the Special/Values option
B71: To copy formulas and paste values:
H72: paste special values
D73: number | E73: number squared | G73: number | H73: number squared
D74: 1 | E74: =D74^2 -> 1 | G74: 1
D75: 2 | E75: =D75^2 -> 4 | G75: 2
D76: 3 | E76: 9 | G76: 3
D77: 4 | E77: 16 | G77: 4
D78: 5 | E78: 25 | G78: 5
A80: 7 | B80: Moving (cutting and pasting)
B81: To move (cut and paste):
B82: Select the range to be cut, press Ctrl-x (for cutting), select the upper left corner of the paste range, and press Ctrl-v.
A84: 8 | B84: Sort sets of numbers
B85: Name | C85: Salary | D85: Age | E85: Height (in.)
B86: Jones | C86: 22000 | D86: 39 | E86: 75
B87: Smith | C87: 25000 | D87: 22 | E87: 65
B88: Taylor | C88: 27000 | D88: 43 | E88: 70
A91: 9 | B91: Formats
B92: number, alignment, fonts, borders, patterns
B93: e.g. salary in dollars and cents
B94: Name | C94: Salary | D94: Age | E94: Height (in.)
B95: Jones | C95: 22000 | D95: 39 | E95: 65
B96: Smith | C96: 25000 | D96: 22 | E96: 75
B97: Taylor | C97: 27000 | D97: 43 | E97: 70
A99: 9 | B99: Column and row widths can be adjusted with mouse or format command
A101: 10 | B101: Manipulating data with commands & formulas
B102: e.g. Average
B104: Name | C104: Salary | D104: Age | E104: Height (in.)
B105: Jones | C105: 22000 | D105: 39 | E105: 65
B106: Smith | C106: 25000 | D106: 22 | E106: 68
B107: Taylor | C107: 27000 | D107: 43 | E107: 72
B108: Averages | C108: =AVERAGE(C105:C107) -> 24666.66667 | D108: =AVERAGE(D105:D107) -> 34.66666667 | E108: =AVERAGE(E105:E107) -> 68.33333333
B110: Use mouse or period to "anchor" the first cell and down arrow
B111: Copy the formula to another cell rather than retyping
B114: e.g. Multiplying using absolute reference
B116: Let's give
B117: everyone a 20% increase in salary.
B118: (Show how to drag. Big white plus sign, little black plus sign and white arrow)
B120: Name | C120: Salary | F120: Salary plus | G120: plus | H120: plus | I120: plus
F121: 0.2 | G121: 0.3 | H121: 0.4 | I121: 0.5
B122: Jones | C122: 22000
B123: Smith | C123: 25000
B124: Taylor | C124: 27000
B125: Averages | C125: =AVERAGE(C122:C124) -> 24666.66667
B127: Difference between relative reference & absolute reference (using $ signs) to refer to constant cell
B128: You can use one dollar sign for half absolute reference to refer to a constant row or column
A130: 11 | B130: Note on Paste Special Command
C131: copy salary plus 20% column and paste as values, not formula
C133: Salary plus
C134: 0.2
A140: 12 | B140: e.g. Exponentiation
B141: What is future value of $100 earning 5% in two years?
C143: 100*(1.05)^2= | E143: (hat "^" is on the 6 key)
A145: 13a | B145: Dates | D145: 2024-02-23
D146: 2024-07-07 | E146: =D146 -> 45480
A148: 13b | B148: Fraction of year | D148: =(D146-D145)/366 -> 0.368852459
A153: 14 | B153: Present Value
B154: a) one payment
B155: What is present value of $1,200 to be received 2.5 years from now, if r = 5%?
C156: Amount | D156: 1200
C157: years | D157: 2.5
C158: interest rate | D158: 0.05
C159: Present Value | D159: =D156/(1+D158)^2.5 -> 1062.204161 | E159: =PV(D158,D157,,1200,) -> -1062.204161
B161: b) Series of payments (annuity)
B162: What is present value of $100 per year for 5 years if r = 5%?
C164: Amount | D164: 1200
C165: years | D165: 2.5
C166: interest rate | D166: 0.05
C168: Year | D168: Annuity | E168: PV
C169: 1 | D169: 100 | E169: =D169/(1+$D$166)^C169 -> 95.23809524
C170: 2 | D170: 100 | E170: =D170/(1+$D$166)^C170 -> 90.70294785
C171: 3 | D171: 100 | E171: =D171/(1+$D$166)^C171 -> 86.38375985 | G171: =PV(0.05,3,,100,) -> -86.38375985
C172: 4 | D172: 100 | E172: =D172/(1+$D$166)^C172 -> 82.27024748
C173: 5 | D173: 100 | E173: =D173/(1+$D$166)^C173 -> 78.35261665
E174: =SUM(E169:E173) -> 432.9476671
B177: Excel PV annuity formula
D178: PV= | E178: =PV(D166,C173,D173) -> -432.9476671
B180: See Present Value worksheet
A183: 13 | B183: Apostrophe
B184: use to make a number or word a literal
B185: e.g.
B186: Jan 5, 2005
B188: 20
B189: 30
B190: =AVERAGE(B188:B189) -> 30 | C190: average of 20 and 30 is 30 because 20 is a literal, not a number
A192: 14 | B192: Graphs
C196: GPA | D196: Salary
C197: 2.7 | D197: 49000
C198: 2.9 | D198: 51000
C199: 3.1 | D199: 52000
C200: 3.2 | D200: 53000
C201: 3.4 | D201: 53500
C202: 3.7 | D202: 54000
C203: 3.9 | D203: 57000
C227: Different presentations: e.g. Format graph to start at $45,000
C248: "How to Lie with Statistics"
C249: http://www.amazon.com/How-Lie-Statistics-Darrell-Huff/dp/0393310728
B254: Two lines on one graph
B256: Age | C256: Denton Salary | D256: Dallas Salary
B257: 21 | C257: 42000 | D257: 50000
B258: 22 | C258: 45000 | D258: 52000
B259: 43 | C259: 48000 | D259: 55500
B260: 36 | C260: 49500 | D260: 57000
B261: 19 | C261: 41700 | D261: 48000
B262: 51 | C262: 54000 | D262: 64000
A291: 15 | B291: Freeze panes, paste special transpose and a mystery…
D292: CSI question: | E292: What variable is being used here?
E293: Hint: It is not an income variable.
C295: xx | D295: Alabama | E295: Alaska | F295: Arizona | G295: Arkansas | H295: California | I295: Colorado | J295: Connecticut | K295: Delaware | L295: District of Columbia | M295: Florida | N295: Georgia | O295: Hawaii | P295: Idaho | Q295: Illinois | R295: Indiana | S295: Iowa | T295: Kansas | U295: Kentucky | V295: Louisiana | W295: Maine | X295: Maryland | Y295: Massachusetts | Z295: Michigan | AA295: Minnesota | AB295: Mississippi | AC295: Missouri | AD295: Montana | AE295: Nebraska | AF295: Nevada | AG295: New Hampshire | AH295: New Jersey | AI295: New Mexico | AJ295: New York | AK295: North Carolina | AL295: North Dakota | AM295: Ohio | AN295: Oklahoma | AO295: Oregon | AP295: Pennsylvania | AQ295: Rhode Island | AR295: South Carolina | AS295: South Dakota | AT295: Tennessee | AU295: Texas | AV295: Utah | AW295: Vermont | AX295: Virginia | AY295: Washington | AZ295: West Virginia | BA295: Wisconsin | BB295: Wyoming
C296: January | D296: =RANDBETWEEN(0,1000) -> 650 | E296: =RANDBETWEEN(0,1000) -> 605 | F296: 59 | G296: 213 | H296: 51 | I296: 854 | J296: 987 | K296: 385 | L296: 913 | M296: 891 | N296: 922 | O296: 29 | P296: 428 | Q296: 910 | R296: 161 | S296: 429 | T296: 403 | U296: 617 | V296: 174 | W296: 808 | X296: 340 | Y296: 724 | Z296: 155 | AA296: 831 | AB296: 77 | AC296: 147 | AD296: 106 | AE296: 436 | AF296: 811 | AG296: 946 | AH296: 496 | AI296: 90 | AJ296: 174 | AK296: 169 | AL296: 199 | AM296: 400 | AN296: 635 | AO296: 159 | AP296: 632 | AQ296: 756 | AR296: 490 | AS296: 26 | AT296: 673 | AU296: 66 | AV296: 173 | AW296: 175 | AX296: 802 | AY296: 472 | AZ296: 351 | BA296: 602 | BB296: 943
C297: February | D297: 53 | E297: =RANDBETWEEN(0,1000) -> 122 | F297: 760 | G297: 692 | H297: 118 | I297: 822 | J297: 638 | K297: 425 | L297: 8 | M297: 279 | N297: 87 | O297: 118 | P297: 573 | Q297: 344 | R297: 539 | S297: 588 | T297: 345 | U297: 576 | V297: 549 | W297: 676 | X297: 679 | Y297: 187 | Z297: 690 | AA297: 269 | AB297: 815 | AC297: 583 | AD297: 18 | AE297: 400 | AF297: 632 | AG297: 83 | AH297: 514 | AI297: 715 | AJ297: 170 | AK297: 7 | AL297: 242 | AM297: 137 | AN297: 666 | AO297: 542 | AP297: 426 | AQ297: 562 | AR297: 973 | AS297: 540 | AT297: 739 | AU297: 188 | AV297: 14 | AW297: 18 | AX297: 549 | AY297: 366 | AZ297: 566 | BA297: 296 | BB297: 399
C298: March | D298: 530 | E298: 443 | F298: 199 | G298: 141 | H298: 466 | I298: 915 | J298: 572 | K298: 853 | L298: 467 | M298: 374 | N298: 325 | O298: 186 | P298: 832 | Q298: 876 | R298: 340 | S298: 850 | T298: 2 | U298: 91 | V298: 183 | W298: 206 | X298: 494 | Y298: 126 | Z298: 306 | AA298: 113 | AB298: 630 | AC298: 506 | AD298: 556 | AE298: 936 | AF298: 485 | AG298: 753 | AH298: 773 | AI298: 330 | AJ298: 171 | AK298: 918 | AL298: 918 | AM298: 694 | AN298: 409 | AO298: 952 | AP298: 99 | AQ298: 4 | AR298: 488 | AS298: 162 | AT298: 517 | AU298: 32 | AV298: 267 | AW298: 391 | AX298: 672 | AY298: 809 | AZ298: 348 | BA298: 258 | BB298: 541
C299: April | D299: 798 | E299: 618 | F299: 291 | G299: 825 | H299: 530 | I299: 18 | J299: 81 | K299: 669 | L299: 274 | M299: 300 | N299: 953 | O299: 725 | P299: 182 | Q299: 183 | R299: 338 | S299: 182 | T299: 33 | U299: 344 | V299: 747 | W299: 858 | X299: 631 | Y299: 297 | Z299: 466 | AA299: 992 | AB299: 220 | AC299: 649 | AD299: 264 | AE299: 500 | AF299: 206 | AG299: 302 | AH299: 258 | AI299: 870 | AJ299: 764 | AK299: 174 | AL299: 387 | AM299: 274 | AN299: 841 | AO299: 579 | AP299: 866 | AQ299: 935 | AR299: 136 | AS299: 270 | AT299: 174 | AU299: 138 | AV299: 42 | AW299: 930 | AX299: 654 | AY299: 291 | AZ299: 103 | BA299: 447 | BB299: 557
C300: May | D300: 25 | E300: 875 | F300: 788 | G300: 271 | H300: 586 | I300: 267 | J300: 603 | K300: 10 | L300: 937 | M300: 760 | N300: 484 | O300: 174 | P300: 525 | Q300: 207 | R300: 741 | S300: 71 | T300: 256 | U300: 580 | V300: 862 | W300: 823 | X300: 252 | Y300: 356 | Z300: 886 | AA300: 896 | AB300: 890 | AC300: 463 | AD300: 907 | AE300: 212 | AF300: 847 | AG300: 256 | AH300: 864 | AI300: 579 | AJ300: 414 | AK300: 43 | AL300: 34 | AM300: 925 | AN300: 792 | AO300: 13 | AP300: 380 | AQ300: 642 | AR300: 166 | AS300: 199 | AT300: 945 | AU300: 480 | AV300: 80 | AW300: 141 | AX300: 880 | AY300: 947 | AZ300: 650 | BA300: 373 | BB300: 691
C301: June | D301: 881 | E301: 338 | F301: 322 | G301: 343 | H301: 534 | I301: 861 | J301: 84 | K301: 5 | L301: 793 | M301: 882 | N301: 212 | O301: 610 | P301: 746 | Q301: 282 | R301: 667 | S301: 174 | T301: 630 | U301: 622 | V301: 246 | W301: 241 | X301: 770 | Y301: =RANDBETWEEN(0,1000) -> 363 | Z301: 68 | AA301: 219 | AB301: 705 | AC301: 296 | AD301: 350 | AE301: 766 | AF301: 363 | AG301: 333 | AH301: 216 | AI301: 365 | AJ301: 208 | AK301: 924 | AL301: 547 | AM301: 331 | AN301: 221 | AO301: 540 | AP301: 232 | AQ301: 555 | AR301: 358 | AS301: 762 | AT301: 94 | AU301: 652 | AV301: 396 | AW301: 462 | AX301: 40 | AY301: 485 | AZ301: 271 | BA301: 286 | BB301: 496
C302: July | D302: 290 | E302: 895 | F302: 613 | G302: 3 | H302: 322 | I302: 174 | J302: 47 | K302: 663 | L302: 930 | M302: 65 | N302: 931 | O302: 795 | P302: 767 | Q302: 239 | R302: 854 | S302: 779 | T302: 711 | U302: 692 | V302: 987 | W302: 198 | X302: 181 | Y302: 858 | Z302: 472 | AA302: 995 | AB302: 356 | AC302: 523 | AD302: 16 | AE302: 36 | AF302: 497 | AG302: 598 | AH302: 895 | AI302: 847 | AJ302: 905 | AK302: 801 | AL302: 848 | AM302: 724 | AN302: 973 | AO302: 552 | AP302: 926 | AQ302: 976 | AR302: 462 | AS302: 125 | AT302: 240 | AU302: 802 | AV302: 912 | AW302: 274 | AX302: 387 | AY302: 286 | AZ302: 591 | BA302: 334 | BB302: 785
C303: August | D303: 673 | E303: 321 | F303: 254 | G303: 978 | H303: 845 | I303: 585 | J303: 51 | K303: 360 | L303: 863 | M303: 611 | N303: 531 | O303: 260 | P303: 915 | Q303: 730 | R303: 347 | S303: 741 | T303: 630 | U303: 676 | V303: 375 | W303: 701 | X303: 903 | Y303: 653 | Z303: 283 | AA303: 665 | AB303: 421 | AC303: 487 | AD303: 827 | AE303: 464 | AF303: 829 | AG303: 507 | AH303: 985 | AI303: 23 | AJ303: 861 | AK303: 798 | AL303: 55 | AM303: 710 | AN303: 145 | AO303: 80 | AP303: 919 | AQ303: 549 | AR303: 671 | AS303: 303 | AT303: 264 | AU303: 97 | AV303: 854 | AW303: 882 | AX303: 685 | AY303: 247 | AZ303: 66 | BA303: 344 | BB303: 349
C304: September | D304: 301 | E304: 228 | F304: 422 | G304: 24 | H304: 341 | I304: 830 | J304: 392 | K304: 998 | L304: 615 | M304: 183 | N304: 151 | O304: 719 | P304: 891 | Q304: 505 | R304: 815 | S304: 419 | T304: 207 | U304: 494 | V304: 155 | W304: 855 | X304: 4 | Y304: 564 | Z304: 830 | AA304: 303 | AB304: 842 | AC304: 459 | AD304: 909 | AE304: 191 | AF304: 521 | AG304: 178 | AH304: 299 | AI304: 994 | AJ304: 383 | AK304: 282 | AL304: 415 | AM304: 574 | AN304: 900 | AO304: 67 | AP304: 894 | AQ304: 763 | AR304: 374 | AS304: 193 | AT304: 52 | AU304: 717 | AV304: 245 | AW304: 384 | AX304: 397 | AY304: 788 | AZ304: 398 | BA304: 98 | BB304: 725
C305: October | D305: 886 | E305: 955 | F305: 947 | G305: 36 | H305: 971 | I305: 347 | J305: 546 | K305: 712 | L305: 107 | M305: 217 | N305: 828 | O305: 107 | P305: 573 | Q305: 437 | R305: 3 | S305: 330 | T305: 935 | U305: 980 | V305: 526 | W305: 828 | X305: 207 | Y305: 781 | Z305: 502 | AA305: 787 | AB305: 631 | AC305: 719 | AD305: 354 | AE305: 94 | AF305: 60 | AG305: 865 | AH305: 946 | AI305: 76 | AJ305: 645 | AK305: 537 | AL305: 852 | AM305: 424 | AN305: 100 | AO305: 694 | AP305: 326 | AQ305: 828 | AR305: 462 | AS305: 389 | AT305: 224 | AU305: 584 | AV305: 63 | AW305: 672 | AX305: 11 | AY305: 700 | AZ305: 674 | BA305: 200 | BB305: 866
C306: November | D306: 610 | E306: 483 | F306: 433 | G306: 219 | H306: 331 | I306: 968 | J306: 62 | K306: 161 | L306: 413 | M306: 639 | N306: 308 | O306: 315 | P306: 840 | Q306: 201 | R306: 64 | S306: 498 | T306: 217 | U306: 281 | V306: 274 | W306: 891 | X306: 557 | Y306: 472 | Z306: 525 | AA306: 529 | AB306: 297 | AC306: 840 | AD306: =RANDBETWEEN(0,1000) -> 580 | AE306: 658 | AF306: 271 | AG306: 779 | AH306: 902 | AI306: 320 | AJ306: 10 | AK306: 133 | AL306: 715 | AM306: 601 | AN306: 674 | AO306: 727 | AP306: 191 | AQ306: 62 | AR306: 327 | AS306: 359 | AT306: 357 | AU306: 586 | AV306: 353 | AW306: 405 | AX306: 136 | AY306: 171 | AZ306: 28 | BA306: 141 | BB306: 15
C307: December | D307: 944 | E307: 866 | F307: 769 | G307: 891 | H307: 305 | I307: 49 | J307: 67 | K307: 949 | L307: 110 | M307: 752 | N307: 678 | O307: 859 | P307: 746 | Q307: 9 | R307: 958 | S307: 376 | T307: 597 | U307: 230 | V307: 932 | W307: 52 | X307: 989 | Y307: 931 | Z307: 126 | AA307: 426 | AB307: 485 | AC307: 859 | AD307: 807 | AE307: 810 | AF307: 880 | AG307: 272 | AH307: 820 | AI307: 135 | AJ307: 946 | AK307: 502 | AL307: 972 | AM307: 209 | AN307: 290 | AO307: 870 | AP307: 190 | AQ307: 256 | AR307: 400 | AS307: 24 | AT307: 566 | AU307: 552 | AV307: 7 | AW307: 389 | AX307: 480 | AY307: 996 | AZ307: 333 | BA307: 345 | BB307: 227
A309: 16 | B309: Printing
B310: a | C310: select area
B311: b | C311: portrait or landscape
B312: c | C312: headers or footers
A315: 16 | B315: Subtotals (also IF statements)
B316: go to "subtotals" worksheet
A319: 17 | B319: Macros
B320: Insert two blank rows bewteen every month
B321: Select February row, i.e., row 341, then hit contol "e"
C323: Alabama | D323: Alaska | E323: Arizona | F323: Arkansas | G323: California
B324: January | C324: 564 | D324: 525 | E324: 474 | F324: 513 | G324: 247
B325: February | C325: 844 | D325: 187 | E325: 370 | F325: 710 | G325: 834
B326: March | C326: 98 | D326: 337 | E326: 223 | F326: 893 | G326: 285
B327: April | C327: 991 | D327: 885 | E327: 534 | F327: 763 | G327: 520
B328: May | C328: 659 | D328: 778 | E328: 904 | F328: 637 | G328: 730
B329: June | C329: 248 | D329: 24 | E329: 25 | F329: 141 | G329: 688
B330: July | C330: 592 | D330: 509 | E330: 772 | F330: 143 | G330: 359
B331: August | C331: 411 | D331: 610 | E331: 505 | F331: 660 | G331: 873
B332: September | C332: 786 | D332: 961 | E332: 573 | F332: 19 | G332: 974
B333: October | C333: 91 | D333: 435 | E333: 1000 | F333: 122 | G333: 688
B334: November | C334: 395 | D334: 550 | E334: 36 | F334: 516 | G334: 961
B335: December | C335: 368 | D335: 433 | E335: 168 | F335: 611 | G335: 429
A341: 18 | B341: Pivot Tables
B342: click on "PivotTable" worksheet
A345: 19 | B345: Vlookup and naming ranges
B346: click on vlookup (easy)
B347: click on vlookup (exact)
B348: click on vlookup (difficult)
A355: 20 | B355: Countif
B359: year | C359: Month | D359: Quarter | E359: Monthlysales
B360: 2000 | C360: 1 | D360: =IF(C360<=3,1,IF(C360<=6,2,IF(C360<=9,3,IF(C360<=12,4,"x")))) -> 1 | E360: 84
... 39 more rows

Sheet subtotals
A1: Year | B1: Month | C1: quarter | D1: monthsales | I1: if statements
A2: 2000 | B2: 1 | C2: =IF(B2<=3,A2&"Q1",IF(B2<=6,A2&"Q2",IF(B2<=9,A2&"Q3",IF(B2<=12,A2&"Q4","x")))) -> 2000Q1 | D2: 84 | F2: 2000 | G2: 1 | H2: 84 | I2: =IF(OR(G2=3,G2=6,G2=9,G2=12),SUM(#REF!),"x") -> x
A3: 2000 | B3: 2 | C3: =IF(B3<=3,A3&"Q1",IF(B3<=6,A3&"Q2",IF(B3<=9,A3&"Q3",IF(B3<=12,A3&"Q4","x")))) -> 2000Q1 | D3: 36 | G3: 2 | H3: 36 | I3: =IF(OR(G3=3,G3=6,G3=9,G3=12),SUM(G1:G3),"x") -> x
A4: 2000 | B4: 3 | C4: 2000Q1 | D4: 13 | G4: 3 | H4: 13 | I4: =IF(OR(G4=3,G4=6,G4=9,G4=12),SUM(H2:H4),"x") -> 133
A5: 2000 | B5: 4 | C5: 2000Q2 | D5: 49 | G5: 4 | H5: 49 | I5: =IF(OR(G5=3,G5=6,G5=9,G5=12),SUM(H3:H5),"x") -> x
A6: 2000 | B6: 5 | C6: 2000Q2 | D6: 50 | G6: 5 | H6: 50 | I6: =IF(OR(G6=3,G6=6,G6=9,G6=12),SUM(H4:H6),"x") -> x
A7: 2000 | B7: 6 | C7: 2000Q2 | D7: 30 | G7: 6 | H7: 30 | I7: 129
A8: 2000 | B8: 7 | C8: 2000Q3 | D8: 54 | G8: 7 | H8: 54 | I8: =IF(OR(G8=3,G8=6,G8=9,G8=12),SUM(H6:H8),"x") -> x
A9: 2000 | B9: 8 | C9: 2000Q3 | D9: 32 | G9: 8 | H9: 32 | I9: =IF(OR(G9=3,G9=6,G9=9,G9=12),SUM(H7:H9),"x") -> x
A10: 2000 | B10: 9 | C10: 2000Q3 | D10: 36 | G10: 9 | H10: 36 | I10: 122
A11: 2000 | B11: 10 | C11: 2000Q4 | D11: 75 | G11: 10 | H11: 75 | I11: =IF(OR(G11=3,G11=6,G11=9,G11=12),SUM(H9:H11),"x") -> x
A12: 2000 | B12: 11 | C12: 2000Q4 | D12: 2 | G12: 11 | H12: 2 | I12: =IF(OR(G12=3,G12=6,G12=9,G12=12),SUM(H10:H12),"x") -> x
A13: 2000 | B13: 12 | C13: 2000Q4 | D13: 21 | G13: 12 | H13: 21 | I13: 98
A14: 2001 | B14: 1 | C14: 2001Q1 | D14: 71 | F14: 2001 | G14: 1 | H14: 71 | I14: =IF(OR(G14=3,G14=6,G14=9,G14=12),SUM(H12:H14),"x") -> x
A15: 2001 | B15: 2 | C15: 2001Q1 | D15: 41 | G15: 2 | H15: 41 | I15: =IF(OR(G15=3,G15=6,G15=9,G15=12),SUM(H13:H15),"x") -> x
A16: 2001 | B16: 3 | C16: 2001Q1 | D16: 64 | G16: 3 | H16: 64 | I16: 176
A17: 2001 | B17: 4 | C17: 2001Q2 | D17: 64 | G17: 4 | H17: 64 | I17: =IF(OR(G17=3,G17=6,G17=9,G17=12),SUM(H15:H17),"x") -> x
A18: 2001 | B18: 5 | C18: 2001Q2 | D18: 43 | G18: 5 | H18: 43 | I18: =IF(OR(G18=3,G18=6,G18=9,G18=12),SUM(H16:H18),"x") -> x
A19: 2001 | B19: 6 | C19: 2001Q2 | D19: 71 | G19: 6 | H19: 71 | I19: 178
A20: 2001 | B20: 7 | C20: 2001Q3 | D20: 13 | G20: 7 | H20: 13 | I20: =IF(OR(G20=3,G20=6,G20=9,G20=12),SUM(H18:H20),"x") -> x
A21: 2001 | B21: 8 | C21: 2001Q3 | D21: 30 | G21: 8 | H21: 30 | I21: =IF(OR(G21=3,G21=6,G21=9,G21=12),SUM(H19:H21),"x") -> x
A22: 2001 | B22: 9 | C22: 2001Q3 | D22: 69 | G22: 9 | H22: 69 | I22: 112
A23: 2001 | B23: 10 | C23: 2001Q4 | D23: 86 | G23: 10 | H23: 86 | I23: =IF(OR(G23=3,G23=6,G23=9,G23=12),SUM(H21:H23),"x") -> x
A24: 2001 | B24: 11 | C24: 2001Q4 | D24: 49 | G24: 11 | H24: 49 | I24: =IF(OR(G24=3,G24=6,G24=9,G24=12),SUM(H22:H24),"x") -> x
A25: 2001 | B25: 12 | C25: 2001Q4 | D25: 100 | G25: 12 | H25: 100 | I25: 235
C27: Copy and paste subtotals here. This is tricky.
C28: quarter | D28: monthsales
C29: 2000Q1 Total | D29: 133
C30: 2000Q2 Total | D30: 129
C31: 2000Q3 Total | D31: 122
C32: 2000Q4 Total | D32: 98
C33: 2001Q1 Total | D33: 176
C34: 2001Q2 Total | D34: 178
C35: 2001Q3 Total | D35: 112
C36: 2001Q4 Total | D36: 235

Sheet Goalseek
A1: If you began on 12/31/02 with $10,000 in your 403(b) plan, made the contributions listed below, and ended with a balance of $20,000 on 12/31/06, what was your average annual rate of return?
C5: 2006-12-31
D6: 0.07120702655
A7: 2002-12-31 | B7: 10000 | C7: =($C$5-A7)/365.25 -> 4 | D7: =B7*(1+$D$6)^C7 -> 13167.20663
A8: 2003-03-31 | B8: 600 | C8: =($C$5-A8)/365.25 -> 3.753593429 | D8: =B8*(1+$D$6)^C8 -> 776.7547115
A9: 2003-04-15 | B9: 500 | C9: 3.712525667 | D9: 645.4696343
A10: 2003-07-25 | B10: 500 | C10: 3.436002738 | D10: 633.3082308
A11: 2004-06-01 | B11: 800 | C11: 2.581793292 | D11: 955.4697978
A12: 2005-10-25 | B12: 600 | C12: 1.18275154 | D12: 650.8547449
A13: 2005-10-27 | B13: 1200 | C13: 1.177275838 | D13: 1301.219291
A14: 2006-03-15 | B14: 600 | C14: 0.7967145791 | D14: 633.7994148
A15: 2006-06-02 | B15: 600 | C15: 0.5804243669 | D15: 624.439701
A16: 2006-09-22 | B16: 600 | C16: 0.2737850787 | D16: 611.4066317
D17: =SUM(D6:D16) -> 20000
A18: 2016-12-31

Sheet PivotTable
A1: Price ($1,000) | B1: Bedrooms | C1: Size | D1: Pool | E1: Distance | F1: Garage | G1: Baths | J1: =B1 -> Bedrooms | K1: =J1 -> Bedrooms
A2: 213.5699959 | B2: 2 | C2: 2188 | D2: 1 | E2: 16 | F2: 0 | G2: 2.5 | I2: =DAVERAGE(A1:G106,1,J1:K2) -> 221.1005567 | J2: >=1 | K2: <=10
A3: 139.8599979 | B3: 2 | C3: 2148 | D3: 1 | E3: 28 | F3: 0 | G3: 1.5
A4: 271.7550041 | B4: 2 | C4: 2130 | D4: 1 | E4: 9 | F4: 1 | G4: 2.5
A5: 208.9800041 | B5: 2 | C5: 1715 | D5: 1 | E5: 8 | F5: 1 | G5: 1.5
A6: 257.175 | B6: 2 | C6: 2117 | D6: 1 | E6: 9 | F6: 1 | G6: 2
A7: 173.0699959 | B7: 2 | C7: 2198 | D7: 0 | E7: 21 | F7: 1 | G7: 1.5
A8: 245.4300041 | B8: 2 | C8: 2117 | D8: 0 | E8: 12 | F8: 1 | G8: 2
A9: 233.9550041 | B9: 2 | C9: 1712 | D9: 1 | E9: 19 | F9: 1 | G9: 2
A10: 222.075 | B10: 2 | C10: 2054 | D10: 1 | E10: 9 | F10: 1 | G10: 2
A11: 220.887 | B11: 2 | C11: 2328.7 | D11: 0 | E11: 12 | F11: 1 | G11: 2
A12: 207.0899918 | B12: 2 | C12: 1974 | D12: 1 | E12: 11 | F12: 1 | G12: 2
A13: 194.4 | B13: 2 | C13: 2283 | D13: 1 | E13: 11 | F13: 0 | G13: 2
A14: 294.0300041 | B14: 2 | C14: 2133 | D14: 1 | E14: 13 | F14: 1 | G14: 2.5
A15: 186.975 | B15: 2 | C15: 1912 | D15: 1 | E15: 26 | F15: 0 | G15: 2 | I15: Average of Price ($1,000) | J15: Column Labels
A16: 125.0099979 | B16: 2 | C16: 1871 | D16: 1 | E16: 18 | F16: 0 | G16: 1.5 | I16: Row Labels | J16: 0 | K16: 1 | L16: Grand Total
A17: 180.3600082 | B17: 2 | C17: 2041 | D17: 1 | E17: 11 | F17: 0 | G17: 2 | I17: 2 | J17: 203.9242521 | K17: 199.6184254 | L17: 200.3360632
A18: 192.213 | B18: 2 | C18: 2406.8 | D18: 1 | E18: 16 | F18: 0 | G18: 2.5 | I18: 3 | J18: 205.4015348 | K18: 225 | L18: 214.4469803
A19: 125.874 | B19: 2 | C19: 2362.8 | D19: 1 | E19: 28 | F19: 0 | G19: 1.5 | I19: 4 | J19: 201.3745896 | K19: 222.5232005 | L19: 213.5757113
A20: 177.1199959 | B20: 2 | C20: 1919 | D20: 1 | E20: 10 | F20: 1 | G20: 2 | I20: 5 | J20: 218.4401229 | K20: 230.3485703 | L20: 226.0182258
A21: 244.5795 | B21: 2 | C21: 2343 | D21: 1 | E21: 9 | F21: 1 | G21: 2.5 | I21: 6 | J21: 185.1929984 | K21: 289.3544982 | L21: 252.1539625
A22: 176.3100082 | B22: 2 | C22: 2037 | D22: 0 | E22: 17 | F22: 0 | G22: 2 | I22: 7 | K22: 303.2099979 | L22: 303.2099979
A23: 188.082 | B23: 2 | C23: 1886.5 | D23: 1 | E23: 8 | F23: 1 | G23: 1.5 | I23: 8 | K23: 328.0635021 | L23: 328.0635021
A24: 174.96 | B24: 2 | C24: 2511.3 | D24: 1 | E24: 11 | F24: 0 | G24: 2 | I24: Grand Total | J24: 202.7938017 | K24: 231.4834924 | L24: 221.1005567
A25: 154.3050041 | B25: 2 | C25: 2007 | D25: 1 | E25: 13 | F25: 0 | G25: 2
A26: 199.017 | B26: 3 | C26: 2479.4 | D26: 0 | E26: 18 | F26: 0 | G26: 1.5
A27: 281.3399918 | B27: 3 | C27: 2119 | D27: 1 | E27: 16 | F27: 1 | G27: 2
A28: 253.206 | B28: 3 | C28: 2330.9 | D28: 1 | E28: 16 | F28: 1 | G28: 2
A29: 251.3699959 | B29: 3 | C29: 1937 | D29: 1 | E29: 12 | F29: 1 | G29: 2
A30: 206.0100082 | B30: 3 | C30: 2090 | D30: 0 | E30: 9 | F30: 0 | G30: 1.5
A31: 242.0550041 | B31: 3 | C31: 2271 | D31: 1 | E31: 12 | F31: 0 | G31: 2
A32: 221.1300041 | B32: 3 | C32: 2254 | D32: 0 | E32: 18 | F32: 0 | G32: 1.5
A33: 228.4199959 | B33: 3 | C33: 2263 | D33: 1 | E33: 17 | F33: 1 | G33: 1.5
A34: 223.9649918 | B34: 3 | C34: 1900 | D34: 0 | E34: 6 | F34: 1 | G34: 2
A35: 307.8 | B35: 3 | C35: 2431 | D35: 0 | E35: 21 | F35: 1 | G35: 3
A36: 224.775 | B36: 3 | C36: 2157 | D36: 1 | E36: 17 | F36: 1 | G36: 2.5
A37: 217.8495 | B37: 3 | C37: 2498.1 | D37: 1 | E37: 12 | F37: 0 | G37: 2
A38: 216.8100082 | B38: 3 | C38: 2221 | D38: 1 | E38: 15 | F38: 1 | G38: 2
A39: 232.2 | B39: 3 | C39: 1928 | D39: 0 | E39: 16 | F39: 1 | G39: 1.5
A40: 166.4550041 | B40: 3 | C40: 1593 | D40: 0 | E40: 19 | F40: 0 | G40: 2.5
A41: 207.4949959 | B41: 3 | C41: 2080 | D41: 0 | E41: 10 | F41: 0 | G41: 2
A42: 205.0649918 | B42: 3 | C42: 2012 | D42: 0 | E42: 20 | F42: 0 | G42: 2
A43: 199.8 | B43: 3 | C43: 2069 | D43: 1 | E43: 19 | F43: 1 | G43: 2
A44: 198.8550041 | B44: 3 | C44: 2220 | D44: 0 | E44: 10 | F44: 1 | G44: 2
A45: 190.8899918 | B45: 3 | C45: 2190 | D45: 0 | E45: 18 | F45: 1 | G45: 2
A46: 178.9695 | B46: 3 | C46: 2442 | D46: 0 | E46: 10 | F46: 1 | G46: 2
A47: 178.9695 | B47: 3 | C47: 2442 | D47: 1 | E47: 8 | F47: 1 | G47: 2
A48: 233.0100082 | B48: 3 | C48: 2162 | D48: 1 | E48: 14 | F48: 1 | G48: 1.5
A49: 172.3949959 | B49: 3 | C49: 2218 | D49: 1 | E49: 23 | F49: 0 | G49: 2
A50: 171.5849979 | B50: 3 | C50: 2014 | D50: 0 | E50: 16 | F50: 0 | G50: 2
A51: 166.1849979 | B51: 3 | C51: 2019 | D51: 0 | E51: 16 | F51: 1 | G51: 2
A52: 292.4100082 | B52: 4 | C52: 2108 | D52: 1 | E52: 14 | F52: 1 | G52: 2
A53: 266.625 | B53: 4 | C53: 2385 | D53: 1 | E53: 13 | F53: 1 | G53: 2
A54: 263.169 | B54: 4 | C54: 2318.8 | D54: 1 | E54: 14 | F54: 1 | G54: 2
A55: 263.1149918 | B55: 4 | C55: 2349 | D55: 0 | E55: 17 | F55: 1 | G55: 2
A56: 254.3399918 | B56: 4 | C56: 2495 | D56: 0 | E56: 15 | F56: 1 | G56: 2
A57: 252.3149918 | B57: 4 | C57: 2624 | D57: 1 | E57: 8 | F57: 1 | G57: 2
A58: 192.9149918 | B58: 4 | C58: 1938 | D58: 0 | E58: 14 | F58: 1 | G58: 2.5
A59: 246.1050041 | B59: 4 | C59: 2073 | D59: 1 | E59: 18 | F59: 1 | G59: 2
A60: 239.9625 | B60: 4 | C60: 2623.5 | D60: 1 | E60: 13 | F60: 1 | G60: 2
A61: 236.8035 | B61: 4 | C61: 2583.9 | D61: 0 | E61: 17 | F61: 1 | G61: 2
A62: 182.6550041 | B62: 4 | C62: 2023 | D62: 0 | E62: 14 | F62: 0 | G62: 2.5
A63: 227.0835 | B63: 4 | C63: 2886.4 | D63: 1 | E63: 8 | F63: 1 | G63: 2
A64: 198.3149918 | B64: 4 | C64: 2056 | D64: 0 | E64: 19 | F64: 1 | G64: 1.5
A65: 221.4945 | B65: 4 | C65: 2280.3 | D65: 1 | E65: 18 | F65: 1 | G65: 2
A66: 216 | B66: 4 | C66: 2310 | D66: 1 | E66: 19 | F66: 0 | G66: 2
A67: 209.6550041 | B67: 4 | C67: 2210 | D67: 0 | E67: 19 | F67: 1 | G67: 2
A68: 189.4050041 | B68: 4 | C68: 2221 | D68: 1 | E68: 24 | F68: 1 | G68: 2
A69: 182.3850082 | B69: 4 | C69: 2102 | D69: 1 | E69: 19 | F69: 0 | G69: 2
A70: 176.0399918 | B70: 4 | C70: 2230 | D70: 1 | E70: 15 | F70: 1 | G70: 2
A71: 175.6350082 | B71: 4 | C71: 2262 | D71: 0 | E71: 24 | F71: 1 | G71: 2
A72: 173.6235 | B72: 4 | C72: 2131.8 | D72: 1 | E72: 9 | F72: 1 | G72: 2
A73: 172.6650021 | B73: 4 | C73: 2189 | D73: 0 | E73: 16 | F73: 0 | G73: 2
A74: 164.1465 | B74: 4 | C74: 2312.2 | D74: 1 | E74: 19 | F74: 0 | G74: 2
A75: 173.6235 | B75: 4 | C75: 2131.8 | D75: 0 | E75: 14 | F75: 1 | G75: 2.5
A76: 155.3985 | B76: 4 | C76: 2407.9 | D76: 0 | E76: 16 | F76: 0 | G76: 2
A77: 227.0835 | B77: 4 | C77: 2886.4 | D77: 1 | E77: 20 | F77: 0 | G77: 1.5
A78: 207.4949959 | B78: 5 | C78: 2316 | D78: 0 | E78: 21 | F78: 0 | G78: 2.5
A79: 209.25 | B79: 5 | C79: 2101 | D79: 1 | E79: 20 | F79: 0 | G79: 1.5
A80: 247.725 | B80: 5 | C80: 2438 | D80: 1 | E80: 16 | F80: 1 | G80: 2
A81: 236.3850082 | B81: 5 | C81: 2189 | D81: 1 | E81: 20 | F81: 1 | G81: 2
A82: 273.2399918 | B82: 5 | C82: 2182 | D82: 1 | E82: 16 | F82: 1 | G82: 3
A83: 269.1899918 | B83: 5 | C83: 2217 | D83: 1 | E83: 8 | F83: 1 | G83: 3
A84: 209.6550041 | B84: 5 | C84: 2247 | D84: 0 | E84: 13 | F84: 1 | G84: 2
A85: 269.8649918 | B85: 5 | C85: 2170 | D85: 0 | E85: 11 | F85: 1 | G85: 2.5
A86: 186.7455 | B86: 5 | C86: 2547.6 | D86: 0 | E86: 21 | F86: 0 | G86: 2.5
A87: 188.325 | B87: 5 | C87: 2311.1 | D87: 1 | E87: 20 | F87: 0 | G87: 1.5
A88: 188.325 | B88: 5 | C88: 2311.1 | D88: 1 | E88: 11 | F88: 1 | G88: 3
A89: 327.2399918 | B89: 6 | C89: 2484 | D89: 1 | E89: 15 | F89: 1 | G89: 2
A90: 294.516 | B90: 6 | C90: 2732.4 | D90: 1 | E90: 15 | F90: 1 | G90: 2
A91: 270.8100082 | B91: 6 | C91: 2495 | D91: 1 | E91: 7 | F91: 1 | G91: 2
A92: 326.2949959 | B92: 6 | C92: 2141 | D92: 1 | E92: 11 | F92: 1 | G92: 3
A93: 243.729 | B93: 6 | C93: 2744.5 | D93: 1 | E93: 7 | F93: 1 | G93: 2
A94: 312.1199959 | B94: 6 | C94: 2639 | D94: 1 | E94: 7 | F94: 1 | G94: 2.5
A95: 245.9699959 | B95: 6 | C95: 2296 | D95: 1 | E95: 7 | F95: 1 | G95: 3
A96: 209.25 | B96: 6 | C96: 1901 | D96: 0 | E96: 15 | F96: 1 | G96: 2
A97: 289.8449959 | B97: 6 | C97: 2036 | D97: 1 | E97: 21 | F97: 1 | G97: 3
A98: 192.6449959 | B98: 6 | C98: 2236 | D98: 0 | E98: 14 | F98: 0 | G98: 2
A99: 188.325 | B99: 6 | C99: 2091.1 | D99: 0 | E99: 15 | F99: 1 | G99: 2
A100: 293.6655 | B100: 6 | C100: 2355.1 | D100: 1 | E100: 11 | F100: 1 | G100: 3
A101: 188.325 | B101: 6 | C101: 2091.1 | D101: 0 | E101: 14 | F101: 1 | G101: 2.5
A102: 147.4199959 | B102: 6 | C102: 1749 | D102: 0 | E102: 12 | F102: 0 | G102: 2
A103: 294.3 | B103: 7 | C103: 2448 | D103: 1 | E103: 8 | F103: 1 | G103: 2
A104: 312.1199959 | B104: 7 | C104: 2403 | D104: 1 | E104: 13 | F104: 1 | G104: 3
A105: 345.3300041 | B105: 8 | C105: 2644 | D105: 1 | E105: 9 | F105: 1 | G105: 2
A106: 310.797 | B106: 8 | C106: 2908.4 | D106: 1 | E106: 9 | F106: 1 | G106: 2

Sheet Vlookup_approx(easy)
A2: Student | B2: Score | C2: Grade | D2: Comment
A3: 1 | B3: 67.2 | C3: =VLOOKUP($B3,$B$71:$D$75,2,TRUE) -> D | D3: =VLOOKUP($B3,$B$71:$D$75,3,TRUE) -> Help my Obi-Wan Kenobi. You are my only hope.
A4: 2 | B4: 72.3 | C4: =VLOOKUP($B4,$B$71:$C$75,2,TRUE) -> C | D4: You need more Jedi training.
A5: 3 | B5: 97.4 | C5: A | D5: You are a Jedi Master!
A6: 4 | B6: 70.6 | C6: C | D6: You need more Jedi training.
A7: 5 | B7: 76.2 | C7: C | D7: You need more Jedi training.
A8: 6 | B8: 41.4 | C8: F | D8: But beware of the dark side!
A9: 7 | B9: 89.9 | C9: B | D9: Do or do not. There is no try.
A10: 8 | B10: 59.2 | C10: F | D10: But beware of the dark side!
A11: 9 | B11: 90.2 | C11: A | D11: You are a Jedi Master!
A69: Name the range for grades
B71: 0 | C71: F | D71: But beware of the dark side!
B72: 60 | C72: D | D72: Help my Obi-Wan Kenobi. You are my only hope.
B73: 70 | C73: C | D73: You need more Jedi training.
B74: 80 | C74: B | D74: Do or do not. There is no try.
B75: 90 | C75: A | D75: You are a Jedi Master!

Sheet vlookupexact
F1: ID | G1: Wage | H1: Industry | I1: Occupation | J1: Ed | K1: South | L1: Nonwh | M1: Hisp | N1: Fe | O1: Ex | P1: Marr | Q1: Age | R1: Union
F2: 1096588 | G2: 19388 | H2: 1 | I2: 0 | J2: 6 | K2: 1 | L2: 0 | M2: 0 | N2: 0 | O2: 45 | P2: 1 | Q2: 57 | R2: 0
F3: 1056904 | G3: 49898 | H3: 2 | I3: 0 | J3: 12 | K3: 0 | L3: 0 | M3: 0 | N3: 0 | O3: 33 | P3: 1 | Q3: 51 | R3: 1
F4: 1018343 | G4: 28219 | H4: 0 | I4: 3 | J4: 12 | K4: 1 | L4: 0 | M4: 0 | N4: 0 | O4: 12 | P4: 1 | Q4: 30 | R4: 0
F5: 1041245 | G5: 83601 | H5: 0 | I5: 5 | J5: 17 | K5: 0 | L5: 0 | M5: 1 | N5: 0 | O5: 18 | P5: 1 | Q5: 41 | R5: 0
F6: 1085115 | G6: 29736 | H6: 0 | I6: 4 | J6: 8 | K6: 0 | L6: 0 | M6: 1 | N6: 0 | O6: 47 | P6: 1 | Q6: 61 | R6: 1
F7: 1097210 | G7: 50235 | H7: 1 | I7: 0 | J7: 16 | K7: 0 | L7: 0 | M7: 0 | N7: 0 | O7: 12 | P7: 1 | Q7: 34 | R7: 0
F8: 1009753 | G8: 45976 | H8: 0 | I8: 2 | J8: 12 | K8: 0 | L8: 0 | M8: 0 | N8: 0 | O8: 43 | P8: 1 | Q8: 61 | R8: 1
F9: 1038675 | G9: 33411 | H9: 1 | I9: 2 | J9: 12 | K9: 1 | L9: 0 | M9: 0 | N9: 0 | O9: 20 | P9: 1 | Q9: 38 | R9: 0
F10: 1048747 | G10: 21716 | H10: 0 | I10: 5 | J10: 12 | K10: 0 | L10: 0 | M10: 0 | N10: 1 | O10: 11 | P10: 0 | Q10: 29 | R10: 0
F11: 1015098 | G11: 37664 | H11: 0 | I11: 5 | J11: 18 | K11: 0 | L11: 0 | M11: 0 | N11: 0 | O11: 19 | P11: 1 | Q11: 43 | R11: 0
F12: 1091094 | G12: 26820 | H12: 0 | I12: 5 | J12: 18 | K12: 0 | L12: 0 | M12: 0 | N12: 0 | O12: 33 | P12: 0 | Q12: 57 | R12: 1
F13: 1013810 | G13: 29977 | H13: 0 | I13: 4 | J13: 16 | K13: 0 | L13: 1 | M13: 0 | N13: 1 | O13: 6 | P13: 1 | Q13: 28 | R13: 0
F14: 1081786 | G14: 33959 | H14: 0 | I14: 5 | J14: 17 | K14: 0 | L14: 0 | M14: 0 | N14: 1 | O14: 26 | P14: 1 | Q14: 49 | R14: 1
F15: 1052465 | G15: 11780 | H15: 0 | I15: 2 | J15: 11 | K15: 0 | L15: 0 | M15: 0 | N15: 1 | O15: 33 | P15: 1 | Q15: 50 | R15: 0
F16: 1011923 | G16: 10997 | H16: 0 | I16: 4 | J16: 14 | K16: 0 | L16: 1 | M16: 0 | N16: 0 | O16: 0 | P16: 0 | Q16: 20 | R16: 0
F17: 1003672 | G17: 17626 | H17: 0 | I17: 3 | J17: 12 | K17: 0 | L17: 0 | M17: 0 | N17: 1 | O17: 45 | P17: 1 | Q17: 63 | R17: 0
F18: 1068526 | G18: 22133 | H18: 0 | I18: 5 | J18: 16 | K18: 0 | L18: 0 | M18: 0 | N18: 1 | O18: 10 | P18: 0 | Q18: 32 | R18: 1
F19: 1025720 | G19: 21994 | H19: 0 | I19: 1 | J19: 12 | K19: 0 | L19: 0 | M19: 0 | N19: 1 | O19: 24 | P19: 1 | Q19: 42 | R19: 0
F20: 1057220 | G20: 29390 | H20: 0 | I20: 0 | J20: 13 | K20: 0 | L20: 0 | M20: 0 | N20: 0 | O20: 18 | P20: 1 | Q20: 37 | R20: 0
F21: 1079370 | G21: 32138 | H21: 0 | I21: 4 | J21: 14 | K21: 0 | L21: 0 | M21: 0 | N21: 0 | O21: 22 | P21: 1 | Q21: 42 | R21: 1
F22: 1097079 | G22: 30006 | H22: 1 | I22: 3 | J22: 16 | K22: 0 | L22: 0 | M22: 0 | N22: 1 | O22: 27 | P22: 1 | Q22: 49 | R22: 0
F23: 1002246 | G23: 68573 | H23: 0 | I23: 5 | J23: 16 | K23: 1 | L23: 0 | M23: 0 | N23: 0 | O23: 14 | P23: 1 | Q23: 36 | R23: 1
F24: 1098521 | G24: 17694 | H24: 0 | I24: 4 | J24: 8 | K24: 0 | L24: 0 | M24: 0 | N24: 1 | O24: 38 | P24: 1 | Q24: 52 | R24: 0
F25: 1002348 | G25: 26795 | H25: 0 | I25: 0 | J25: 7 | K25: 1 | L25: 0 | M25: 0 | N25: 0 | O25: 44 | P25: 1 | Q25: 57 | R25: 0
F26: 1017177 | G26: 19981 | H26: 0 | I26: 4 | J26: 4 | K26: 0 | L26: 0 | M26: 0 | N26: 0 | O26: 54 | P26: 1 | Q26: 64 | R26: 0
F27: 1062369 | G27: 14476 | H27: 0 | I27: 5 | J27: 12 | K27: 0 | L27: 0 | M27: 0 | N27: 1 | O27: 3 | P27: 1 | Q27: 21 | R27: 0
F28: 1013047 | G28: 19452 | H28: 0 | I28: 4 | J28: 13 | K28: 0 | L28: 1 | M28: 0 | N28: 0 | O28: 3 | P28: 0 | Q28: 22 | R28: 0
F29: 1098068 | G29: 28168 | H29: 1 | I29: 0 | J29: 13 | K29: 0 | L29: 0 | M29: 0 | N29: 0 | O29: 17 | P29: 0 | Q29: 36 | R29: 0
F30: 1029857 | G30: 19306 | H30: 0 | I30: 5 | J30: 9 | K30: 1 | L30: 1 | M30: 0 | N30: 1 | O30: 34 | P30: 1 | Q30: 49 | R30: 1
F31: 1023062 | G31: 13318 | H31: 1 | I31: 0 | J31: 11 | K31: 1 | L31: 0 | M31: 0 | N31: 1 | O31: 25 | P31: 1 | Q31: 42 | R31: 1
F32: 1014112 | G32: 25166 | H32: 0 | I32: 4 | J32: 12 | K32: 0 | L32: 0 | M32: 0 | N32: 1 | O32: 10 | P32: 0 | Q32: 28 | R32: 0
F33: 1041805 | G33: 18121 | H33: 1 | I33: 3 | J33: 12 | K33: 0 | L33: 0 | M33: 0 | N33: 1 | O33: 18 | P33: 1 | Q33: 36 | R33: 0
F34: 1014685 | G34: 13162 | H34: 1 | I34: 0 | J34: 12 | K34: 0 | L34: 1 | M34: 0 | N34: 0 | O34: 6 | P34: 0 | Q34: 24 | R34: 1
F35: 1001763 | G35: 32094 | H35: 0 | I35: 3 | J35: 12 | K35: 1 | L35: 0 | M35: 0 | N35: 1 | O35: 14 | P35: 1 | Q35: 32 | R35: 0
F36: 1001589 | G36: 16667 | H36: 0 | I36: 3 | J36: 12 | K36: 1 | L36: 0 | M36: 0 | N36: 0 | O36: 4 | P36: 0 | Q36: 22 | R36: 0
F37: 1067489 | G37: 50171 | H37: 0 | I37: 5 | J37: 12 | K37: 0 | L37: 0 | M37: 0 | N37: 0 | O37: 39 | P37: 1 | Q37: 57 | R37: 1
F38: 1072615 | G38: 31691 | H38: 1 | I38: 0 | J38: 12 | K38: 0 | L38: 0 | M38: 0 | N38: 0 | O38: 13 | P38: 0 | Q38: 31 | R38: 0
F39: 1069721 | G39: 36178 | H39: 0 | I39: 3 | J39: 12 | K39: 0 | L39: 0 | M39: 0 | N39: 1 | O39: 40 | P39: 1 | Q39: 58 | R39: 0
F40: 1035345 | G40: 15234 | H40: 0 | I40: 1 | J40: 12 | K40: 1 | L40: 0 | M40: 1 | N40: 1 | O40: 4 | P40: 0 | Q40: 22 | R40: 0
F41: 1086190 | G41: 16817 | H41: 0 | I41: 3 | J41: 12 | K41: 1 | L41: 0 | M41: 0 | N41: 1 | O41: 26 | P41: 0 | Q41: 44 | R41: 0
F42: 1042618 | G42: 22485 | H42: 0 | I42: 3 | J42: 12 | K42: 0 | L42: 0 | M42: 0 | N42: 0 | O42: 22 | P42: 0 | Q42: 40 | R42: 0
F43: 1031387 | G43: 30308 | H43: 0 | I43: 4 | J43: 12 | K43: 0 | L43: 0 | M43: 0 | N43: 0 | O43: 10 | P43: 1 | Q43: 28 | R43: 0
F44: 1060440 | G44: 11702 | H44: 0 | I44: 2 | J44: 14 | K44: 1 | L44: 0 | M44: 0 | N44: 1 | O44: 6 | P44: 1 | Q44: 26 | R44: 0
F45: 1024478 | G45: 11186 | H45: 0 | I45: 0 | J45: 12 | K45: 0 | L45: 0 | M45: 0 | N45: 0 | O45: 0 | P45: 0 | Q45: 18 | R45: 0
F46: 1051572 | G46: 12285 | H46: 0 | I46: 1 | J46: 12 | K46: 0 | L46: 0 | M46: 0 | N46: 1 | O46: 42 | P46: 1 | Q46: 60 | R46: 0
F47: 1067775 | G47: 19284 | H47: 1 | I47: 4 | J47: 16 | K47: 0 | L47: 0 | M47: 0 | N47: 0 | O47: 3 | P47: 0 | Q47: 25 | R47: 0
F48: 1005205 | G48: 11451 | H48: 1 | I48: 0 | J48: 12 | K48: 0 | L48: 0 | M48: 0 | N48: 1 | O48: 8 | P48: 1 | Q48: 26 | R48: 0
F49: 1067179 | G49: 57623 | H49: 0 | I49: 1 | J49: 15 | K49: 0 | L49: 0 | M49: 0 | N49: 0 | O49: 31 | P49: 1 | Q49: 52 | R49: 0
F50: 1057026 | G50: 25670 | H50: 0 | I50: 3 | J50: 13 | K50: 0 | L50: 0 | M50: 0 | N50: 1 | O50: 8 | P50: 0 | Q50: 27 | R50: 1
F51: 1097270 | G51: 83443 | H51: 0 | I51: 5 | J51: 17 | K51: 0 | L51: 0 | M51: 0 | N51: 1 | O51: 5 | P51: 0 | Q51: 28 | R51: 0
F52: 1091088 | G52: 49974 | H52: 1 | I52: 1 | J52: 16 | K52: 0 | L52: 1 | M52: 0 | N52: 0 | O52: 26 | P52: 1 | Q52: 48 | R52: 1
F53: 1088189 | G53: 46646 | H53: 2 | I53: 0 | J53: 5 | K53: 1 | L53: 0 | M53: 0 | N53: 0 | O53: 44 | P53: 1 | Q53: 55 | R53: 0
F54: 1077841 | G54: 31702 | H54: 0 | I54: 3 | J54: 12 | K54: 1 | L54: 0 | M54: 0 | N54: 1 | O54: 39 | P54: 1 | Q54: 57 | R54: 0
F55: 1056783 | G55: 13312 | H55: 0 | I55: 4 | J55: 12 | K55: 1 | L55: 0 | M55: 0 | N55: 1 | O55: 9 | P55: 1 | Q55: 27 | R55: 0
F56: 1085868 | G56: 44543 | H56: 0 | I56: 2 | J56: 18 | K56: 0 | L56: 0 | M56: 0 | N56: 0 | O56: 10 | P56: 1 | Q56: 34 | R56: 0
F57: 1046294 | G57: 15013 | H57: 0 | I57: 4 | J57: 16 | K57: 0 | L57: 0 | M57: 0 | N57: 0 | O57: 21 | P57: 1 | Q57: 43 | R57: 0
F58: 1064905 | G58: 33389 | H58: 0 | I58: 1 | J58: 14 | K58: 0 | L58: 1 | M58: 0 | N58: 0 | O58: 22 | P58: 0 | Q58: 42 | R58: 0
F59: 1081864 | G59: 60626 | H59: 0 | I59: 5 | J59: 18 | K59: 0 | L59: 0 | M59: 0 | N59: 0 | O59: 7 | P59: 1 | Q59: 31 | R59: 0
F60: 1079345 | G60: 24509 | H60: 0 | I60: 5 | J60: 14 | K60: 0 | L60: 0 | M60: 1 | N60: 1 | O60: 15 | P60: 0 | Q60: 35 | R60: 0
F61: 1032216 | G61: 20852 | H61: 1 | I61: 0 | J61: 12 | K61: 0 | L61: 0 | M61: 0 | N61: 1 | O61: 38 | P61: 1 | Q61: 56 | R61: 0
F62: 1085144 | G62: 30133 | H62: 2 | I62: 0 | J62: 10 | K62: 0 | L62: 0 | M62: 0 | N62: 0 | O62: 27 | P62: 1 | Q62: 43 | R62: 0
F63: 1044194 | G63: 31799 | H63: 0 | I63: 3 | J63: 12 | K63: 0 | L63: 0 | M63: 0 | N63: 1 | O63: 25 | P63: 0 | Q63: 43 | R63: 0
F64: 1077722 | G64: 16796 | H64: 0 | I64: 4 | J64: 12 | K64: 0 | L64: 0 | M64: 0 | N64: 1 | O64: 14 | P64: 1 | Q64: 32 | R64: 0
F65: 1033265 | G65: 20793 | H65: 0 | I65: 0 | J65: 12 | K65: 1 | L65: 0 | M65: 0 | N65: 1 | O65: 6 | P65: 0 | Q65: 24 | R65: 0
F66: 1066563 | G66: 29407 | H66: 0 | I66: 4 | J66: 10 | K66: 1 | L66: 0 | M66: 0 | N66: 0 | O66: 19 | P66: 0 | Q66: 35 | R66: 0
F67: 1037201 | G67: 29191 | H67: 0 | I67: 0 | J67: 12 | K67: 0 | L67: 0 | M67: 0 | N67: 0 | O67: 9 | P67: 0 | Q67: 27 | R67: 0
F68: 1036823 | G68: 15957 | H68: 0 | I68: 2 | J68: 12 | K68: 1 | L68: 0 | M68: 0 | N68: 1 | O68: 10 | P68: 0 | Q68: 28 | R68: 0
F69: 1046425 | G69: 34484 | H69: 0 | I69: 3 | J69: 13 | K69: 1 | L69: 0 | M69: 0 | N69: 1 | O69: 28 | P69: 0 | Q69: 47 | R69: 0
F70: 1000018 | G70: 35185 | H70: 1 | I70: 3 | J70: 14 | K70: 0 | L70: 0 | M70: 0 | N70: 1 | O70: 12 | P70: 1 | Q70: 32 | R70: 0
F71: 1094460 | G71: 26614 | H71: 1 | I71: 0 | J71: 12 | K71: 0 | L71: 0 | M71: 0 | N71: 1 | O71: 19 | P71: 1 | Q71: 37 | R71: 0
F72: 1033455 | G72: 41780 | H72: 0 | I72: 0 | J72: 12 | K72: 1 | L72: 0 | M72: 0 | N72: 0 | O72: 9 | P72: 1 | Q72: 27 | R72: 0
F73: 1049277 | G73: 55777 | H73: 0 | I73: 1 | J73: 14 | K73: 1 | L73: 0 | M73: 0 | N73: 0 | O73: 21 | P73: 1 | Q73: 41 | R73: 0
F74: 1059354 | G74: 15160 | H74: 0 | I74: 4 | J74: 8 | K74: 1 | L74: 0 | M74: 0 | N74: 1 | O74: 45 | P74: 0 | Q74: 59 | R74: 0
F75: 1038360 | G75: 66738 | H75: 0 | I75: 0 | J75: 9 | K75: 1 | L75: 0 | M75: 0 | N75: 0 | O75: 29 | P75: 1 | Q75: 44 | R75: 0
F76: 1037827 | G76: 33351 | H76: 0 | I76: 5 | J76: 16 | K76: 1 | L76: 0 | M76: 0 | N76: 1 | O76: 4 | P76: 1 | Q76: 26 | R76: 0
F77: 1062114 | G77: 33498 | H77: 0 | I77: 1 | J77: 10 | K77: 0 | L77: 0 | M77: 0 | N77: 0 | O77: 20 | P77: 1 | Q77: 36 | R77: 0
F78: 1005477 | G78: 29809 | H78: 0 | I78: 4 | J78: 8 | K78: 0 | L78: 1 | M78: 0 | N78: 1 | O78: 29 | P78: 0 | Q78: 43 | R78: 0
F79: 1056394 | G79: 15193 | H79: 1 | I79: 0 | J79: 12 | K79: 0 | L79: 0 | M79: 0 | N79: 1 | O79: 15 | P79: 0 | Q79: 33 | R79: 0
F80: 1058677 | G80: 23027 | H80: 0 | I80: 4 | J80: 14 | K80: 0 | L80: 1 | M80: 0 | N80: 0 | O80: 34 | P80: 1 | Q80: 54 | R80: 1
F81: 1042741 | G81: 75165 | H81: 0 | I81: 1 | J81: 15 | K81: 0 | L81: 0 | M81: 0 | N81: 0 | O81: 12 | P81: 1 | Q81: 33 | R81: 0
F82: 1016499 | G82: 18752 | H82: 0 | I82: 4 | J82: 11 | K82: 0 | L82: 0 | M82: 0 | N82: 1 | O82: 45 | P82: 0 | Q82: 62 | R82: 1
F83: 1090234 | G83: 83569 | H83: 0 | I83: 1 | J83: 18 | K83: 0 | L83: 0 | M83: 0 | N83: 0 | O83: 29 | P83: 1 | Q83: 53 | R83: 0
F84: 1006532 | G84: 32235 | H84: 0 | I84: 3 | J84: 12 | K84: 0 | L84: 0 | M84: 0 | N84: 1 | O84: 38 | P84: 1 | Q84: 56 | R84: 0
F85: 1028973 | G85: 20852 | H85: 0 | I85: 0 | J85: 12 | K85: 1 | L85: 0 | M85: 0 | N85: 0 | O85: 1 | P85: 0 | Q85: 19 | R85: 0
F86: 1045045 | G86: 13787 | H86: 0 | I86: 4 | J86: 11 | K86: 0 | L86: 0 | M86: 0 | N86: 0 | O86: 4 | P86: 1 | Q86: 21 | R86: 0
F87: 1023467 | G87: 34746 | H87: 0 | I87: 3 | J87: 14 | K87: 1 | L87: 0 | M87: 0 | N87: 1 | O87: 15 | P87: 1 | Q87: 35 | R87: 0
F88: 1043517 | G88: 17690 | H88: 0 | I88: 1 | J88: 12 | K88: 1 | L88: 1 | M88: 0 | N88: 0 | O88: 14 | P88: 1 | Q88: 32 | R88: 0
F89: 1051041 | G89: 52762 | H89: 0 | I89: 5 | J89: 18 | K89: 0 | L89: 0 | M89: 0 | N89: 0 | O89: 7 | P89: 1 | Q89: 31 | R89: 0
F90: 1075653 | G90: 60152 | H90: 0 | I90: 5 | J90: 16 | K90: 1 | L90: 0 | M90: 0 | N90: 0 | O90: 38 | P90: 1 | Q90: 60 | R90: 0
F91: 1000402 | G91: 33461 | H91: 0 | I91: 1 | J91: 16 | K91: 0 | L91: 0 | M91: 1 | N91: 0 | O91: 7 | P91: 1 | Q91: 29 | R91: 1
F92: 1030528 | G92: 13481 | H92: 0 | I92: 4 | J92: 12 | K92: 1 | L92: 0 | M92: 1 | N92: 0 | O92: 7 | P92: 0 | Q92: 25 | R92: 0
F93: 1042742 | G93: 9879 | H93: 0 | I93: 3 | J93: 12 | K93: 1 | L93: 0 | M93: 0 | N93: 1 | O93: 28 | P93: 1 | Q93: 46 | R93: 0
F94: 1042542 | G94: 16789 | H94: 0 | I94: 3 | J94: 13 | K94: 1 | L94: 0 | M94: 0 | N94: 1 | O94: 6 | P94: 1 | Q94: 25 | R94: 0
F95: 1041889 | G95: 31304 | H95: 0 | I95: 1 | J95: 16 | K95: 0 | L95: 0 | M95: 0 | N95: 1 | O95: 26 | P95: 1 | Q95: 48 | R95: 0
F96: 1053577 | G96: 37771 | H96: 0 | I96: 5 | J96: 15 | K96: 0 | L96: 0 | M96: 0 | N96: 0 | O96: 5 | P96: 0 | Q96: 26 | R96: 0
F97: 1084318 | G97: 50187 | H97: 0 | I97: 3 | J97: 12 | K97: 0 | L97: 0 | M97: 0 | N97: 1 | O97: 24 | P97: 1 | Q97: 42 | R97: 0
F98: 1065700 | G98: 39888 | H98: 0 | I98: 3 | J98: 12 | K98: 1 | L98: 0 | M98: 0 | N98: 0 | O98: 5 | P98: 0 | Q98: 23 | R98: 0
F99: 1083628 | G99: 19227 | H99: 0 | I99: 3 | J99: 12 | K99: 0 | L99: 0 | M99: 0 | N99: 1 | O99: 15 | P99: 1 | Q99: 33 | R99: 0
F100: 1085915 | G100: 32786 | H100: 1 | I100: 0 | J100: 11 | K100: 1 | L100: 0 | M100: 0 | N100: 0 | O100: 37 | P100: 1 | Q100: 54 | R100: 1
F101: 1067611 | G101: 28440 | H101: 0 | I101: 4 | J101: 12 | K101: 0 | L101: 0 | M101: 0 | N101: 1 | O101: 24 | P101: 1 | Q101: 42 | R101: 0
A103: VLOOKUP (lookup_value, table_array, column_index_num, range_lookup)
A104: Absolute Reference
A106: ID | B106: Wage
A107: 1006532 | B107: =VLOOKUP(A107,$F$2:$R$101,2,FALSE) -> 32235 | C107: FALSE means exact match
A108: 1072615 | B108: =VLOOKUP(A108,$F$2:$R$101,2,FALSE) -> 31691
A109: 1057220 | B109: 29390
A110: 1067179 | B110: 57623
A111: 1041245 | B111: 83601
A112: 1062114 | B112: 33498
A113: 1085115 | B113: 29736
A114: 1077722 | B114: 16796
A115: 1056904 | B115: 49898
A117: Column Index
A118: Half-Absolute Reference
B119: 2 | C119: 3 | D119: 4 | E119: 5 | F119: 6 | G119: 7 | H119: 8 | I119: 9 | J119: 10 | K119: 11 | L119: 12 | M119: 13
A120: ID | B120: Wage | C120: Industry | D120: Occupation | E120: Ed | F120: South | G120: Nonwh | H120: Hisp | I120: Fe | J120: Ex | K120: Marr | L120: Age | M120: Union
A121: 1006532 | B121: =VLOOKUP($A121,$F$2:$R$101,B$119,FALSE) -> 32235 | C121: 0 | D121: 3 | E121: 12 | F121: 0 | G121: 0 | H121: 0 | I121: 1 | J121: 38 | K121: 1 | L121: 56 | M121: 0
A122: 1072615 | B122: 31691 | C122: 1 | D122: 0 | E122: 12 | F122: 0 | G122: 0 | H122: 0 | I122: 0 | J122: 13 | K122: 0 | L122: 31 | M122: 0
A123: 1057220 | B123: 29390 | C123: 0 | D123: 0 | E123: 13 | F123: 0 | G123: 0 | H123: 0 | I123: 0 | J123: 18 | K123: 1 | L123: 37 | M123: 0
A124: 1067179 | B124: 57623 | C124: 0 | D124: 1 | E124: 15 | F124: 0 | G124: 0 | H124: 0 | I124: 0 | J124: 31 | K124: 1 | L124: 52 | M124: 0
A125: 1041245 | B125: 83601 | C125: 0 | D125: 5 | E125: 17 | F125: 0 | G125: 0 | H125: 1 | I125: 0 | J125: 18 | K125: 1 | L125: 41 | M125: 0
A126: 1062114 | B126: 33498 | C126: 0 | D126: 1 | E126: 10 | F126: 0 | G126: 0 | H126: 0 | I126: 0 | J126: 20 | K126: 1 | L126: 36 | M126: 0
A127: 1085115 | B127: 29736 | C127: 0 | D127: 4 | E127: 8 | F127: 0 | G127: 0 | H127: 1 | I127: 0 | J127: 47 | K127: 1 | L127: 61 | M127: 1
A128: 1077722 | B128: 16796 | C128: 0 | D128: 4 | E128: 12 | F128: 0 | G128: 0 | H128: 0 | I128: 1 | J128: 14 | K128: 1 | L128: 32 | M128: 0
A129: 1056904 | B129: 49898 | C129: 2 | D129: 0 | E129: 12 | F129: 0 | G129: 0 | H129: 0 | I129: 0 | J129: 33 | K129: 1 | L129: 51 | M129: 1
A131: Match(Lookup_value, Lookup_array, Match_type)
B132: =MATCH(B133,$F$1:$R$1,0) -> 2 | C132: =MATCH(C133,$F$1:$R$1,0) -> 5 | D132: =MATCH(D133,$F$1:$R$1,0) -> 10 | E132: =MATCH(E133,$F$1:$R$1,0) -> 12 | F132: =MATCH(F133,$F$1:$R$1,0) -> 13
A133: ID | B133: Wage | C133: Ed | D133: Ex | E133: Age | F133: Union
A134: 1006532 | B134: =VLOOKUP(A134,$F$1:$R$101,MATCH(B$133,$F$1:$R$1,0),0) -> 32235 | C134: =VLOOKUP(A134,$F$1:$R$101,MATCH(C$133,$F$1:$R$1,0),0) -> 12
A135: 1072615 | B135: =VLOOKUP(A135,$F$1:$R$101,B$132,0) -> 31691 | C135: =VLOOKUP(A135,$F$1:$R$101,MATCH(C$133,$F$1:$R$1,0),0) -> 12
A136: 1057220 | B136: 29390 | C136: 13
A137: 1067179 | B137: 57623 | C137: 15
A138: 1041245 | B138: 83601 | C138: 17
A139: 1062114 | B139: 33498 | C139: 10
A140: 1085115 | B140: 29736 | C140: 8
A141: 1077722 | B141: 16796 | C141: 12
A142: 1056904 | B142: 49898 | C142: 12

Sheet Vlookup(difficult)
A1: state | B1: Year | C1: PerCapitaIncome
A2: Alabama | B2: 1973 | P2: =VLOOKUP(A2,$A$1575:$AG$1625,MATCH(B2,$A$1573:$AG$1573,0)) -> 16758.49324
A3: Alabama | B3: 1974
A4: Alabama | B4: 1975
A5: Alabama | B5: 1976
A6: Alabama | B6: 1977
A7: Alabama | B7: 1978
A8: Alabama | B8: 1979
A9: Alabama | B9: 1980
A10: Alabama | B10: 1981
A11: Alabama | B11: 1982
A12: Alabama | B12: 1983
A13: Alabama | B13: 1984
A14: Alabama | B14: 1985
A15: Alabama | B15: 1986
A16: Alabama | B16: 1987
A17: Alabama | B17: 1988
A18: Alabama | B18: 1989
A19: Alabama | B19: 1990
A20: Alabama | B20: 1991
A21: Alabama | B21: 1992
A22: Alabama | B22: 1993
A23: Alabama | B23: 1994
A24: Alabama | B24: 1995
A25: Alabama | B25: 1996
A26: Alabama | B26: 1997
A27: Alabama | B27: 1998
A28: Alabama | B28: 1999
A29: Alabama | B29: 2000
A30: Alabama | B30: 2001
A31: Alabama | B31: 2002
A32: Alabama | B32: 2003
A33: Alabama | B33: 2004
A34: Alaska | B34: 1973
A35: Alaska | B35: 1974
A36: Alaska | B36: 1975
A37: Alaska | B37: 1976
A38: Alaska | B38: 1977
A39: Alaska | B39: 1978
A40: Alaska | B40: 1979
A41: Alaska | B41: 1980
A42: Alaska | B42: 1981
A43: Alaska | B43: 1982
A44: Alaska | B44: 1983
A45: Alaska | B45: 1984
A46: Alaska | B46: 1985
A47: Alaska | B47: 1986
A48: Alaska | B48: 1987
A49: Alaska | B49: 1988
A50: Alaska | B50: 1989
A51: Alaska | B51: 1990
A52: Alaska | B52: 1991
A53: Alaska | B53: 1992
A54: Alaska | B54: 1993
A55: Alaska | B55: 1994
A56: Alaska | B56: 1995
A57: Alaska | B57: 1996
A58: Alaska | B58: 1997
A59: Alaska | B59: 1998
A60: Alaska | B60: 1999
A61: Alaska | B61: 2000
A62: Alaska | B62: 2001
A63: Alaska | B63: 2002
A64: Alaska | B64: 2003
A65: Alaska | B65: 2004
A66: Arizona | B66: 1973
A67: Arizona | B67: 1974
A68: Arizona | B68: 1975
A69: Arizona | B69: 1976
A70: Arizona | B70: 1977
A71: Arizona | B71: 1978
A72: Arizona | B72: 1979
A73: Arizona | B73: 1980
A74: Arizona | B74: 1981
A75: Arizona | B75: 1982
A76: Arizona | B76: 1983
A77: Arizona | B77: 1984
A78: Arizona | B78: 1985
A79: Arizona | B79: 1986
A80: Arizona | B80: 1987
A81: Arizona | B81: 1988
A82: Arizona | B82: 1989
A83: Arizona | B83: 1990
A84: Arizona | B84: 1991
A85: Arizona | B85: 1992
A86: Arizona | B86: 1993
A87: Arizona | B87: 1994
A88: Arizona | B88: 1995
A89: Arizona | B89: 1996
A90: Arizona | B90: 1997
A91: Arizona | B91: 1998
A92: Arizona | B92: 1999
A93: Arizona | B93: 2000
A94: Arizona | B94: 2001
A95: Arizona | B95: 2002
A96: Arizona | B96: 2003
A97: Arizona | B97: 2004
A98: Arkansas | B98: 1973
A99: Arkansas | B99: 1974
A100: Arkansas | B100: 1975
A101: Arkansas | B101: 1976
A102: Arkansas | B102: 1977
A103: Arkansas | B103: 1978
A104: Arkansas | B104: 1979
A105: Arkansas | B105: 1980
A106: Arkansas | B106: 1981
A107: Arkansas | B107: 1982
A108: Arkansas | B108: 1983
A109: Arkansas | B109: 1984
A110: Arkansas | B110: 1985
A111: Arkansas | B111: 1986
A112: Arkansas | B112: 1987
A113: Arkansas | B113: 1988
A114: Arkansas | B114: 1989
A115: Arkansas | B115: 1990
A116: Arkansas | B116: 1991
A117: Arkansas | B117: 1992
A118: Arkansas | B118: 1993
A119: Arkansas | B119: 1994
A120: Arkansas | B120: 1995
A121: Arkansas | B121: 1996
A122: Arkansas | B122: 1997
A123: Arkansas | B123: 1998
A124: Arkansas | B124: 1999
A125: Arkansas | B125: 2000
A126: Arkansas | B126: 2001
A127: Arkansas | B127: 2002
A128: Arkansas | B128: 2003
A129: Arkansas | B129: 2004
A130: California | B130: 1973
A131: California | B131: 1974
A132: California | B132: 1975
A133: California | B133: 1976
A134: California | B134: 1977
A135: California | B135: 1978
A136: California | B136: 1979
A137: California | B137: 1980
A138: California | B138: 1981
A139: California | B139: 1982
A140: California | B140: 1983
A141: California | B141: 1984
A142: California | B142: 1985
A143: California | B143: 1986
A144: California | B144: 1987
A145: California | B145: 1988
A146: California | B146: 1989
A147: California | B147: 1990
A148: California | B148: 1991
A149: California | B149: 1992
A150: California | B150: 1993
A151: California | B151: 1994
A152: California | B152: 1995
A153: California | B153: 1996
A154: California | B154: 1997
A155: California | B155: 1998
A156: California | B156: 1999
A157: California | B157: 2000
A158: California | B158: 2001
A159: California | B159: 2002
A160: California | B160: 2003
A161: California | B161: 2004
A162: Colorado | B162: 1973
A163: Colorado | B163: 1974
A164: Colorado | B164: 1975
A165: Colorado | B165: 1976
A166: Colorado | B166: 1977
A167: Colorado | B167: 1978
A168: Colorado | B168: 1979
A169: Colorado | B169: 1980
A170: Colorado | B170: 1981
A171: Colorado | B171: 1982
A172: Colorado | B172: 1983
A173: Colorado | B173: 1984
A174: Colorado | B174: 1985
A175: Colorado | B175: 1986
A176: Colorado | B176: 1987
A177: Colorado | B177: 1988
A178: Colorado | B178: 1989
A179: Colorado | B179: 1990
A180: Colorado | B180: 1991
A181: Colorado | B181: 1992
A182: Colorado | B182: 1993
A183: Colorado | B183: 1994
A184: Colorado | B184: 1995
A185: Colorado | B185: 1996
A186: Colorado | B186: 1997
A187: Colorado | B187: 1998
A188: Colorado | B188: 1999
A189: Colorado | B189: 2000
A190: Colorado | B190: 2001
A191: Colorado | B191: 2002
A192: Colorado | B192: 2003
A193: Colorado | B193: 2004
A194: Connecticut | B194: 1973
A195: Connecticut | B195: 1974
A196: Connecticut | B196: 1975
A197: Connecticut | B197: 1976
A198: Connecticut | B198: 1977
A199: Connecticut | B199: 1978
A200: Connecticut | B200: 1979
... 1422 more rows

Sheet Vlookup(2)
B1: Major.Category | C1: Majors | D1: Major | E1: All.Applicants..Mean.Highest.LSAT | F1: Applicants | G1: Year | H1: total sum | I1: total sum with v lookup comand | M1: Help Column | N1: Major | O1: Year | P1: x
A2: 1 | B2: Business & Management | C2: ACCOUNTING | D2: Accounting | E2: 150.9793708 | F2: 1959 | G2: 2002 | H2: 1959 | I2: =VLOOKUP(D2&G2,$M$2:$P$436,4) -> 1959 | M2: =CONCATENATE(N2,O2) -> Accounting2002 | N2: Accounting | O2: 2002 | P2: 1959
A3: 2 | B3: Business & Management | C3: ACCOUNTING | D3: Accounting | E3: 151.0244455 | F3: 2233 | G3: 2003 | H3: 2233 | I3: 2233 | M3: =CONCATENATE(N3,O3) -> Accounting2003 | N3: Accounting | O3: 2003 | P3: 2233
A4: 3 | B4: Business & Management | C4: ACCOUNTING | D4: Accounting | E4: 151.6789727 | F4: 2522 | G4: 2004 | H4: 2522 | I4: 2522 | M4: Accounting2004 | N4: Accounting | O4: 2004 | P4: 2522
A5: 4 | B5: Business & Management | C5: ACCOUNTING | D5: Accounting | E5: 152.1144504 | F5: 2452 | G5: 2005 | H5: 2452 | I5: 2452 | M5: Accounting2005 | N5: Accounting | O5: 2005 | P5: 2452
A6: 5 | B6: Business & Management | C6: ACCOUNTING | D6: Accounting | E6: 152.5444807 | F6: 2170 | G6: 2006 | H6: 2170 | I6: 2170 | M6: Accounting2006 | N6: Accounting | O6: 2006 | P6: 2170
A7: 6 | B7: Business & Management | C7: ACCOUNTING | D7: Accounting | E7: 152.5959488 | F7: 1890 | G7: 2007 | H7: 1890 | I7: 1890 | M7: Accounting2007 | N7: Accounting | O7: 2007 | P7: 1890
A8: 7 | B8: Business & Management | C8: ACCOUNTING | D8: Accounting | E8: 152.6101796 | F8: 1686 | G8: 2008 | H8: 1686 | I8: 1686 | M8: Accounting2008 | N8: Accounting | O8: 2008 | P8: 1686
A9: 8 | B9: Business & Management | C9: ACCOUNTING | D9: Accounting | E9: 152.5633717 | F9: 1664 | G9: 2009 | H9: 1664 | I9: 1664 | M9: Accounting2009 | N9: Accounting | O9: 2009 | P9: 1664
A10: 9 | B10: Business & Management | C10: ACCOUNTING | D10: Accounting | E10: 153.2632822 | F10: 1706 | G10: 2010 | H10: 1706 | I10: 1706 | M10: Accounting2010 | N10: Accounting | O10: 2010 | P10: 1706
A11: 10 | B11: Business & Management | C11: ACCOUNTING | D11: Accounting | E11: 153.7081733 | F11: 1835 | G11: 2011 | H11: 1835 | I11: 1835 | M11: Accounting2011 | N11: Accounting | O11: 2011 | P11: 1835
A12: 11 | B12: Business & Management | C12: ACCOUNTING | D12: Accounting | E12: 153.5151515 | F12: 1666 | G12: 2012 | H12: 1666 | I12: 1666 | M12: Accounting2012 | N12: Accounting | O12: 2012 | P12: 1666
A13: 12 | B13: Business & Management | C13: ACCOUNTING | D13: Accounting | E13: 152.7184751 | F13: 1384 | G13: 2013 | H13: 1384 | I13: 1384 | M13: Accounting2013 | N13: Accounting | O13: 2013 | P13: 1384
A14: 13 | B14: Business & Management | C14: ACCOUNTING | D14: Accounting | E14: 152.1228522 | F14: 1204 | G14: 2014 | H14: 1204 | I14: 1204 | M14: Accounting2014 | N14: Accounting | O14: 2014 | P14: 1204
A15: 14 | B15: Business & Management | C15: ACCOUNTING | D15: Accounting | E15: 152.3486239 | F15: 1019 | G15: 2015 | H15: 1019 | I15: 1019 | M15: Accounting2015 | N15: Accounting | O15: 2015 | P15: 1019
A16: 15 | B16: Business & Management | C16: ACCOUNTING | D16: Accounting | E16: 151.5086768 | F16: 962 | G16: 2016 | H16: 962 | I16: 962 | M16: Accounting2016 | N16: Accounting | O16: 2016 | P16: 962
A17: 31 | B17: Social Sciences & Helping Professions | C17: AFRICAN AMERICAN STUDIES | D17: Anthropology/Geography/African American studies/Geology | E17: 147.8067633 | F17: 207 | G17: 2002 | H17: 1388 | I17: =VLOOKUP(D17&G17,$M$2:$P$436,4) -> 1388 | M17: Anthropology/Geography/African American studies/Geology2002 | N17: Anthropology/Geography/African American studies/Geology | O17: 2002 | P17: 1388
A18: 72 | B18: Social Sciences & Helping Professions | C18: AMERICAN CIVILIZATION | D18: Anthropology/Geography/African American studies/Geology | E18: 159.1442308 | F18: 106 | G18: 2002 | H18: 1388 | I18: 1388 | M18: Anthropology/Geography/African American studies/Geology2003 | N18: Anthropology/Geography/African American studies/Geology | O18: 2003 | P18: 1455
A19: 102 | B19: Social Sciences & Helping Professions | C19: ANTHROPOLOGY | D19: Anthropology/Geography/African American studies/Geology | E19: 155.6354319 | F19: 685 | G19: 2002 | H19: 1388 | I19: 1388 | M19: Anthropology/Geography/African American studies/Geology2004 | N19: Anthropology/Geography/African American studies/Geology | O19: 2004 | P19: 1569
A20: 147 | B20: Social Sciences & Helping Professions | C20: ARCHEOLOGY | D20: Anthropology/Geography/African American studies/Geology | E20: 157.7368421 | F20: 19 | G20: 2002 | H20: 1388 | I20: 1388 | M20: Anthropology/Geography/African American studies/Geology2005 | N20: Anthropology/Geography/African American studies/Geology | O20: 2005 | P20: 1599
A21: 839 | B21: Natural Sciences | C21: GEOGRAPHY | D21: Anthropology/Geography/African American studies/Geology | E21: 151.8451613 | F21: 156 | G21: 2002 | H21: 1388 | I21: 1388 | M21: Anthropology/Geography/African American studies/Geology2006 | N21: Anthropology/Geography/African American studies/Geology | O21: 2006 | P21: 1522
A22: 854 | B22: Natural Sciences | C22: GEOLOGY/ EARTH SCIENCES | D22: Anthropology/Geography/African American studies/Geology | E22: 154.1294964 | F22: 141 | G22: 2002 | H22: 1388 | I22: 1388 | M22: Anthropology/Geography/African American studies/Geology2007 | N22: Anthropology/Geography/African American studies/Geology | O22: 2007 | P22: 1453
A23: 1006 | B23: Social Sciences & Helping Professions | C23: INDIAN STUDIES | D23: Anthropology/Geography/African American studies/Geology | E23: 146.3888889 | F23: 18 | G23: 2002 | H23: 1388 | I23: 1388 | M23: Anthropology/Geography/African American studies/Geology2008 | N23: Anthropology/Geography/African American studies/Geology | O23: 2008 | P23: 1347
A24: 1081 | B24: Social Sciences & Helping Professions | C24: INTER AMERICAN RELATIONS | D24: Anthropology/Geography/African American studies/Geology | E24: 151.9130435 | F24: 23 | G24: 2002 | H24: 1388 | I24: 1388 | M24: Anthropology/Geography/African American studies/Geology2009 | N24: Anthropology/Geography/African American studies/Geology | O24: 2009 | P24: 1365
A25: 1311 | B25: Social Sciences & Helping Professions | C25: MEXICAN AMERICAN STUDIES | D25: Anthropology/Geography/African American studies/Geology | E25: 147.56 | F25: 25 | G25: 2002 | H25: 1388 | I25: 1388 | M25: Anthropology/Geography/African American studies/Geology2010 | N25: Anthropology/Geography/African American studies/Geology | O25: 2010 | P25: 1399
A26: 1396 | B26: Natural Sciences | C26: OCEANOGRAPHY | D26: Anthropology/Geography/African American studies/Geology | E26: 152 | F26: 8 | G26: 2002 | H26: 1388 | I26: 1388 | M26: Anthropology/Geography/African American studies/Geology2011 | N26: Anthropology/Geography/African American studies/Geology | O26: 2011 | P26: 1466
A27: 32 | B27: Social Sciences & Helping Professions | C27: AFRICAN AMERICAN STUDIES | D27: Anthropology/Geography/African American studies/Geology | E27: 148.4811321 | F27: 213 | G27: 2003 | H27: 1455 | I27: 1455 | M27: Anthropology/Geography/African American studies/Geology2012 | N27: Anthropology/Geography/African American studies/Geology | O27: 2012 | P27: 1280
A28: 73 | B28: Social Sciences & Helping Professions | C28: AMERICAN CIVILIZATION | D28: Anthropology/Geography/African American studies/Geology | E28: 157.2222222 | F28: 99 | G28: 2003 | H28: 1455 | I28: 1455 | M28: Anthropology/Geography/African American studies/Geology2013 | N28: Anthropology/Geography/African American studies/Geology | O28: 2013 | P28: 1101
A29: 103 | B29: Social Sciences & Helping Professions | C29: ANTHROPOLOGY | D29: Anthropology/Geography/African American studies/Geology | E29: 155.7706044 | F29: 731 | G29: 2003 | H29: 1455 | I29: 1455 | M29: Anthropology/Geography/African American studies/Geology2014 | N29: Anthropology/Geography/African American studies/Geology | O29: 2014 | P29: 973
A30: 148 | B30: Social Sciences & Helping Professions | C30: ARCHEOLOGY | D30: Anthropology/Geography/African American studies/Geology | E30: 155.3846154 | F30: 13 | G30: 2003 | H30: 1455 | I30: 1455 | M30: Anthropology/Geography/African American studies/Geology2015 | N30: Anthropology/Geography/African American studies/Geology | O30: 2015 | P30: 907
A31: 840 | B31: Natural Sciences | C31: GEOGRAPHY | D31: Anthropology/Geography/African American studies/Geology | E31: 154.2222222 | F31: 171 | G31: 2003 | H31: 1455 | I31: 1455 | M31: Anthropology/Geography/African American studies/Geology2016 | N31: Anthropology/Geography/African American studies/Geology | O31: 2016 | P31: 819
A32: 855 | B32: Natural Sciences | C32: GEOLOGY/ EARTH SCIENCES | D32: Anthropology/Geography/African American studies/Geology | E32: 156.0759494 | F32: 158 | G32: 2003 | H32: 1455 | I32: 1455 | M32: Arts (Music/Art history/Drama/Film/Art design/Perf. arts/Fine arts)2002 | N32: Arts (Music/Art history/Drama/Film/Art design/Perf. arts/Fine arts) | O32: 2002 | P32: 1496
A33: 1007 | B33: Social Sciences & Helping Professions | C33: INDIAN STUDIES | D33: Anthropology/Geography/African American studies/Geology | E33: 150.1333333 | F33: 17 | G33: 2003 | H33: 1455 | I33: 1455 | M33: Arts (Music/Art history/Drama/Film/Art design/Perf. arts/Fine arts)2003 | N33: Arts (Music/Art history/Drama/Film/Art design/Perf. arts/Fine arts) | O33: 2003 | P33: 1917
A34: 1082 | B34: Social Sciences & Helping Professions | C34: INTER AMERICAN RELATIONS | D34: Anthropology/Geography/African American studies/Geology | E34: 154.9473684 | F34: 19 | G34: 2003 | H34: 1455 | I34: 1455 | M34: Arts (Music/Art history/Drama/Film/Art design/Perf. arts/Fine arts)2004 | N34: Arts (Music/Art history/Drama/Film/Art design/Perf. arts/Fine arts) | O34: 2004 | P34: 2160
A35: 1312 | B35: Social Sciences & Helping Professions | C35: MEXICAN AMERICAN STUDIES | D35: Anthropology/Geography/African American studies/Geology | E35: 147.3181818 | F35: 23 | G35: 2003 | H35: 1455 | I35: 1455 | M35: Arts (Music/Art history/Drama/Film/Art design/Perf. arts/Fine arts)2005 | N35: Arts (Music/Art history/Drama/Film/Art design/Perf. arts/Fine arts) | O35: 2005 | P35: 2468
A36: 1397 | B36: Natural Sciences | C36: OCEANOGRAPHY | D36: Anthropology/Geography/African American studies/Geology | E36: 152.9090909 | F36: 11 | G36: 2003 | H36: 1455 | I36: 1455 | M36: Arts (Music/Art history/Drama/Film/Art design/Perf. arts/Fine arts)2006 | N36: Arts (Music/Art history/Drama/Film/Art design/Perf. arts/Fine arts) | O36: 2006 | P36: 2257
A37: 33 | B37: Social Sciences & Helping Professions | C37: AFRICAN AMERICAN STUDIES | D37: Anthropology/Geography/African American studies/Geology | E37: 149.2488889 | F37: 225 | G37: 2004 | H37: 1569 | I37: 1569 | M37: Arts (Music/Art history/Drama/Film/Art design/Perf. arts/Fine arts)2007 | N37: Arts (Music/Art history/Drama/Film/Art design/Perf. arts/Fine arts) | O37: 2007 | P37: 2196
A38: 74 | B38: Social Sciences & Helping Professions | C38: AMERICAN CIVILIZATION | D38: Anthropology/Geography/African American studies/Geology | E38: 158.3482143 | F38: 112 | G38: 2004 | H38: 1569 | I38: 1569 | M38: Arts (Music/Art history/Drama/Film/Art design/Perf. arts/Fine arts)2008 | N38: Arts (Music/Art history/Drama/Film/Art design/Perf. arts/Fine arts) | O38: 2008 | P38: 2072
A39: 104 | B39: Social Sciences & Helping Professions | C39: ANTHROPOLOGY | D39: Anthropology/Geography/African American studies/Geology | E39: 156.3775253 | F39: 794 | G39: 2004 | H39: 1569 | I39: 1569 | M39: Arts (Music/Art history/Drama/Film/Art design/Perf. arts/Fine arts)2009 | N39: Arts (Music/Art history/Drama/Film/Art design/Perf. arts/Fine arts) | O39: 2009 | P39: 2070
A40: 149 | B40: Social Sciences & Helping Professions | C40: ARCHEOLOGY | D40: Anthropology/Geography/African American studies/Geology | E40: 154.4782609 | F40: 23 | G40: 2004 | H40: 1569 | I40: 1569 | M40: Arts (Music/Art history/Drama/Film/Art design/Perf. arts/Fine arts)2010 | N40: Arts (Music/Art history/Drama/Film/Art design/Perf. arts/Fine arts) | O40: 2010 | P40: 2276
A41: 841 | B41: Natural Sciences | C41: GEOGRAPHY | D41: Anthropology/Geography/African American studies/Geology | E41: 154.2392638 | F41: 163 | G41: 2004 | H41: 1569 | I41: 1569 | M41: Arts (Music/Art history/Drama/Film/Art design/Perf. arts/Fine arts)2011 | N41: Arts (Music/Art history/Drama/Film/Art design/Perf. arts/Fine arts) | O41: 2011 | P41: 2427
A42: 856 | B42: Natural Sciences | C42: GEOLOGY/ EARTH SCIENCES | D42: Anthropology/Geography/African American studies/Geology | E42: 156.8265896 | F42: 174 | G42: 2004 | H42: 1569 | I42: 1569 | M42: Arts (Music/Art history/Drama/Film/Art design/Perf. arts/Fine arts)2012 | N42: Arts (Music/Art history/Drama/Film/Art design/Perf. arts/Fine arts) | O42: 2012 | P42: 2079
A43: 1008 | B43: Social Sciences & Helping Professions | C43: INDIAN STUDIES | D43: Anthropology/Geography/African American studies/Geology | E43: 148.7857143 | F43: 14 | G43: 2004 | H43: 1569 | I43: 1569 | M43: Arts (Music/Art history/Drama/Film/Art design/Perf. arts/Fine arts)2013 | N43: Arts (Music/Art history/Drama/Film/Art design/Perf. arts/Fine arts) | O43: 2013 | P43: 1666
A44: 1083 | B44: Social Sciences & Helping Professions | C44: INTER AMERICAN RELATIONS | D44: Anthropology/Geography/African American studies/Geology | E44: 154.68 | F44: 25 | G44: 2004 | H44: 1569 | I44: 1569 | M44: Arts (Music/Art history/Drama/Film/Art design/Perf. arts/Fine arts)2014 | N44: Arts (Music/Art history/Drama/Film/Art design/Perf. arts/Fine arts) | O44: 2014 | P44: 1353
A45: 1313 | B45: Social Sciences & Helping Professions | C45: MEXICAN AMERICAN STUDIES | D45: Anthropology/Geography/African American studies/Geology | E45: 148.4545455 | F45: 34 | G45: 2004 | H45: 1569 | I45: 1569 | M45: Arts (Music/Art history/Drama/Film/Art design/Perf. arts/Fine arts)2015 | N45: Arts (Music/Art history/Drama/Film/Art design/Perf. arts/Fine arts) | O45: 2015 | P45: 1257
A46: 1398 | B46: Natural Sciences | C46: OCEANOGRAPHY | D46: Anthropology/Geography/African American studies/Geology | E46: 153 | F46: 5 | G46: 2004 | H46: 1569 | I46: 1569 | M46: Arts (Music/Art history/Drama/Film/Art design/Perf. arts/Fine arts)2016 | N46: Arts (Music/Art history/Drama/Film/Art design/Perf. arts/Fine arts) | O46: 2016 | P46: 1263
A47: 34 | B47: Social Sciences & Helping Professions | C47: AFRICAN AMERICAN STUDIES | D47: Anthropology/Geography/African American studies/Geology | E47: 149.1197917 | F47: 193 | G47: 2005 | H47: 1599 | I47: 1599 | M47: Biology/Environ. sciences/Other natural sciences2002 | N47: Biology/Environ. sciences/Other natural sciences | O47: 2002 | P47: 3585
A48: 75 | B48: Social Sciences & Helping Professions | C48: AMERICAN CIVILIZATION | D48: Anthropology/Geography/African American studies/Geology | E48: 158.2695652 | F48: 115 | G48: 2005 | H48: 1599 | I48: 1599 | M48: Biology/Environ. sciences/Other natural sciences2003 | N48: Biology/Environ. sciences/Other natural sciences | O48: 2003 | P48: 3915
A49: 105 | B49: Social Sciences & Helping Professions | C49: ANTHROPOLOGY | D49: Anthropology/Geography/African American studies/Geology | E49: 156.1685117 | F49: 817 | G49: 2005 | H49: 1599 | I49: 1599 | M49: Biology/Environ. sciences/Other natural sciences2004 | N49: Biology/Environ. sciences/Other natural sciences | O49: 2004 | P49: 3877
A50: 150 | B50: Social Sciences & Helping Professions | C50: ARCHEOLOGY | D50: Anthropology/Geography/African American studies/Geology | E50: 154.9166667 | F50: 24 | G50: 2005 | H50: 1599 | I50: 1599 | M50: Biology/Environ. sciences/Other natural sciences2005 | N50: Biology/Environ. sciences/Other natural sciences | O50: 2005 | P50: 3725
A51: 222 | B51: Social Sciences & Helping Professions | C51: ASIAN AMERICAN STUDIES | D51: Anthropology/Geography/African American studies/Geology | E51: 154.3064516 | F51: 62 | G51: 2005 | H51: 1599 | I51: 1599 | M51: Biology/Environ. sciences/Other natural sciences2006 | N51: Biology/Environ. sciences/Other natural sciences | O51: 2006 | P51: 3385
A52: 842 | B52: Natural Sciences | C52: GEOGRAPHY | D52: Anthropology/Geography/African American studies/Geology | E52: 153.8571429 | F52: 175 | G52: 2005 | H52: 1599 | I52: 1599 | M52: Biology/Environ. sciences/Other natural sciences2007 | N52: Biology/Environ. sciences/Other natural sciences | O52: 2007 | P52: 2943
A53: 857 | B53: Natural Sciences | C53: GEOLOGY/ EARTH SCIENCES | D53: Anthropology/Geography/African American studies/Geology | E53: 156.2464789 | F53: 143 | G53: 2005 | H53: 1599 | I53: 1599 | M53: Biology/Environ. sciences/Other natural sciences2008 | N53: Biology/Environ. sciences/Other natural sciences | O53: 2008 | P53: 2729
A54: 1009 | B54: Social Sciences & Helping Professions | C54: INDIAN STUDIES | D54: Anthropology/Geography/African American studies/Geology | E54: 147.7 | F54: 10 | G54: 2005 | H54: 1599 | I54: 1599 | M54: Biology/Environ. sciences/Other natural sciences2009 | N54: Biology/Environ. sciences/Other natural sciences | O54: 2009 | P54: 2630
A55: 1084 | B55: Social Sciences & Helping Professions | C55: INTER AMERICAN RELATIONS | D55: Anthropology/Geography/African American studies/Geology | E55: 153.0740741 | F55: 27 | G55: 2005 | H55: 1599 | I55: 1599 | M55: Biology/Environ. sciences/Other natural sciences2010 | N55: Biology/Environ. sciences/Other natural sciences | O55: 2010 | P55: 2779
A56: 1314 | B56: Social Sciences & Helping Professions | C56: MEXICAN AMERICAN STUDIES | D56: Anthropology/Geography/African American studies/Geology | E56: 150.2121212 | F56: 33 | G56: 2005 | H56: 1599 | I56: 1599 | M56: Biology/Environ. sciences/Other natural sciences2011 | N56: Biology/Environ. sciences/Other natural sciences | O56: 2011 | P56: 2724
A57: 35 | B57: Social Sciences & Helping Professions | C57: AFRICAN AMERICAN STUDIES | D57: Anthropology/Geography/African American studies/Geology | E57: 149.4428571 | F57: 212 | G57: 2006 | H57: 1522 | I57: 1522 | M57: Biology/Environ. sciences/Other natural sciences2012 | N57: Biology/Environ. sciences/Other natural sciences | O57: 2012 | P57: 2498
A58: 76 | B58: Social Sciences & Helping Professions | C58: AMERICAN CIVILIZATION | D58: Anthropology/Geography/African American studies/Geology | E58: 158.1860465 | F58: 86 | G58: 2006 | H58: 1522 | I58: 1522 | M58: Biology/Environ. sciences/Other natural sciences2013 | N58: Biology/Environ. sciences/Other natural sciences | O58: 2013 | P58: 2180
A59: 106 | B59: Social Sciences & Helping Professions | C59: ANTHROPOLOGY | D59: Anthropology/Geography/African American studies/Geology | E59: 156.0844156 | F59: 776 | G59: 2006 | H59: 1522 | I59: 1522 | M59: Biology/Environ. sciences/Other natural sciences2014 | N59: Biology/Environ. sciences/Other natural sciences | O59: 2014 | P59: 1910
A60: 151 | B60: Social Sciences & Helping Professions | C60: ARCHEOLOGY | D60: Anthropology/Geography/African American studies/Geology | E60: 157.7777778 | F60: 27 | G60: 2006 | H60: 1522 | I60: 1522 | M60: Biology/Environ. sciences/Other natural sciences2015 | N60: Biology/Environ. sciences/Other natural sciences | O60: 2015 | P60: 1787
A61: 223 | B61: Social Sciences & Helping Professions | C61: ASIAN AMERICAN STUDIES | D61: Anthropology/Geography/African American studies/Geology | E61: 156.1754386 | F61: 58 | G61: 2006 | H61: 1522 | I61: 1522 | M61: Biology/Environ. sciences/Other natural sciences2016 | N61: Biology/Environ. sciences/Other natural sciences | O61: 2016 | P61: 1831
A62: 843 | B62: Natural Sciences | C62: GEOGRAPHY | D62: Anthropology/Geography/African American studies/Geology | E62: 154.6622517 | F62: 151 | G62: 2006 | H62: 1522 | I62: =VLOOKUP(D62&G62,$M$2:$P$436,4) -> 1522 | M62: Business administration/Business education2002 | N62: Business administration/Business education | O62: 2002 | P62: 2424
A63: 858 | B63: Natural Sciences | C63: GEOLOGY/ EARTH SCIENCES | D63: Anthropology/Geography/African American studies/Geology | E63: 157.1860465 | F63: 130 | G63: 2006 | H63: 1522 | I63: 1522 | M63: Business administration/Business education2003 | N63: Business administration/Business education | O63: 2003 | P63: 2998
A64: 1010 | B64: Social Sciences & Helping Professions | C64: INDIAN STUDIES | D64: Anthropology/Geography/African American studies/Geology | E64: 146.1818182 | F64: 11 | G64: 2006 | H64: 1522 | I64: 1522 | M64: Business administration/Business education2004 | N64: Business administration/Business education | O64: 2004 | P64: 3316
A65: 1085 | B65: Social Sciences & Helping Professions | C65: INTER AMERICAN RELATIONS | D65: Anthropology/Geography/African American studies/Geology | E65: 153.8148148 | F65: 27 | G65: 2006 | H65: 1522 | I65: 1522 | M65: Business administration/Business education2005 | N65: Business administration/Business education | O65: 2005 | P65: 3392
A66: 1315 | B66: Social Sciences & Helping Professions | C66: MEXICAN AMERICAN STUDIES | D66: Anthropology/Geography/African American studies/Geology | E66: 149.8636364 | F66: 44 | G66: 2006 | H66: 1522 | I66: =VLOOKUP(D66&G66,$M$2:$P$436,4) -> 1522 | M66: Business administration/Business education2006 | N66: Business administration/Business education | O66: 2006 | P66: 3174
A67: 36 | B67: Social Sciences & Helping Professions | C67: AFRICAN AMERICAN STUDIES | D67: Anthropology/Geography/African American studies/Geology | E67: 148.7908163 | F67: 197 | G67: 2007 | H67: 1453 | I67: 1453 | M67: =CONCATENATE(N67,O67) -> Business administration/Business education2007 | N67: Business administration/Business education | O67: 2007 | P67: 2816
A68: 77 | B68: Social Sciences & Helping Professions | C68: AMERICAN CIVILIZATION | D68: Anthropology/Geography/African American studies/Geology | E68: 160.5581395 | F68: 87 | G68: 2007 | H68: 1453 | I68: 1453 | M68: Business administration/Business education2008 | N68: Business administration/Business education | O68: 2008 | P68: 2707
A69: 107 | B69: Social Sciences & Helping Professions | C69: ANTHROPOLOGY | D69: Anthropology/Geography/African American studies/Geology | E69: 156.7170068 | F69: 738 | G69: 2007 | H69: 1453 | I69: 1453 | M69: Business administration/Business education2009 | N69: Business administration/Business education | O69: 2009 | P69: 2612
A70: 152 | B70: Social Sciences & Helping Professions | C70: ARCHEOLOGY | D70: Anthropology/Geography/African American studies/Geology | E70: 159.1333333 | F70: 15 | G70: 2007 | H70: 1453 | I70: 1453 | M70: Business administration/Business education2010 | N70: Business administration/Business education | O70: 2010 | P70: 2794
A71: 224 | B71: Social Sciences & Helping Professions | C71: ASIAN AMERICAN STUDIES | D71: Anthropology/Geography/African American studies/Geology | E71: 154.0727273 | F71: 55 | G71: 2007 | H71: 1453 | I71: 1453 | M71: Business administration/Business education2011 | N71: Business administration/Business education | O71: 2011 | P71: 3046
A72: 844 | B72: Natural Sciences | C72: GEOGRAPHY | D72: Anthropology/Geography/African American studies/Geology | E72: 153.1372549 | F72: 155 | G72: 2007 | H72: 1453 | I72: 1453 | M72: Business administration/Business education2012 | N72: Business administration/Business education | O72: 2012 | P72: 2764
A73: 859 | B73: Natural Sciences | C73: GEOLOGY/ EARTH SCIENCES | D73: Anthropology/Geography/African American studies/Geology | E73: 156.0272727 | F73: 111 | G73: 2007 | H73: 1453 | I73: 1453 | M73: Business administration/Business education2013 | N73: Business administration/Business education | O73: 2013 | P73: 2275
A74: 1011 | B74: Social Sciences & Helping Professions | C74: INDIAN STUDIES | D74: Anthropology/Geography/African American studies/Geology | E74: 150.0526316 | F74: 19 | G74: 2007 | H74: 1453 | I74: 1453 | M74: Business administration/Business education2014 | N74: Business administration/Business education | O74: 2014 | P74: 2027
A75: 1086 | B75: Social Sciences & Helping Professions | C75: INTER AMERICAN RELATIONS | D75: Anthropology/Geography/African American studies/Geology | E75: 156.1935484 | F75: 31 | G75: 2007 | H75: 1453 | I75: 1453 | M75: Business administration/Business education2015 | N75: Business administration/Business education | O75: 2015 | P75: 1760
A76: 1316 | B76: Social Sciences & Helping Professions | C76: MEXICAN AMERICAN STUDIES | D76: Anthropology/Geography/African American studies/Geology | E76: 150.3076923 | F76: 39 | G76: 2007 | H76: 1453 | I76: =VLOOKUP(D76&G76,$M$2:$P$436,4) -> 1453 | M76: Business administration/Business education2016 | N76: Business administration/Business education | O76: 2016 | P76: 1707
A77: 1399 | B77: Natural Sciences | C77: OCEANOGRAPHY | D77: Anthropology/Geography/African American studies/Geology | E77: 155.3333333 | F77: 6 | G77: 2007 | H77: 1453 | I77: 1453 | M77: Business mgmt./Intl. bus./Public affairs/Hotel & rest. mgmt.2002 | N77: Business mgmt./Intl. bus./Public affairs/Hotel & rest. mgmt. | O77: 2002 | P77: 3934
A78: 37 | B78: Social Sciences & Helping Professions | C78: AFRICAN AMERICAN STUDIES | D78: Anthropology/Geography/African American studies/Geology | E78: 149.4739583 | F78: 192 | G78: 2008 | H78: 1347 | I78: 1347 | M78: Business mgmt./Intl. bus./Public affairs/Hotel & rest. mgmt.2003 | N78: Business mgmt./Intl. bus./Public affairs/Hotel & rest. mgmt. | O78: 2003 | P78: 5018
A79: 78 | B79: Social Sciences & Helping Professions | C79: AMERICAN CIVILIZATION | D79: Anthropology/Geography/African American studies/Geology | E79: 157.5180723 | F79: 83 | G79: 2008 | H79: 1347 | I79: 1347 | M79: Business mgmt./Intl. bus./Public affairs/Hotel & rest. mgmt.2004 | N79: Business mgmt./Intl. bus./Public affairs/Hotel & rest. mgmt. | O79: 2004 | P79: 5539
A80: 108 | B80: Social Sciences & Helping Professions | C80: ANTHROPOLOGY | D80: Anthropology/Geography/African American studies/Geology | E80: 156.8372093 | F80: 647 | G80: 2008 | H80: 1347 | I80: 1347 | M80: Business mgmt./Intl. bus./Public affairs/Hotel & rest. mgmt.2005 | N80: Business mgmt./Intl. bus./Public affairs/Hotel & rest. mgmt. | O80: 2005 | P80: 5855
A81: 153 | B81: Social Sciences & Helping Professions | C81: ARCHEOLOGY | D81: Anthropology/Geography/African American studies/Geology | E81: 158.6818182 | F81: 22 | G81: 2008 | H81: 1347 | I81: 1347 | M81: Business mgmt./Intl. bus./Public affairs/Hotel & rest. mgmt.2006 | N81: Business mgmt./Intl. bus./Public affairs/Hotel & rest. mgmt. | O81: 2006 | P81: 5482
A82: 225 | B82: Social Sciences & Helping Professions | C82: ASIAN AMERICAN STUDIES | D82: Anthropology/Geography/African American studies/Geology | E82: 156.5223881 | F82: 67 | G82: 2008 | H82: 1347 | I82: 1347 | M82: Business mgmt./Intl. bus./Public affairs/Hotel & rest. mgmt.2007 | N82: Business mgmt./Intl. bus./Public affairs/Hotel & rest. mgmt. | O82: 2007 | P82: 4736
A83: 845 | B83: Natural Sciences | C83: GEOGRAPHY | D83: Anthropology/Geography/African American studies/Geology | E83: 153.7247191 | F83: 178 | G83: 2008 | H83: 1347 | I83: 1347 | M83: Business mgmt./Intl. bus./Public affairs/Hotel & rest. mgmt.2008 | N83: Business mgmt./Intl. bus./Public affairs/Hotel & rest. mgmt. | O83: 2008 | P83: 4668
A84: 860 | B84: Natural Sciences | C84: GEOLOGY/ EARTH SCIENCES | D84: Anthropology/Geography/African American studies/Geology | E84: 156.8630137 | F84: 73 | G84: 2008 | H84: 1347 | I84: 1347 | M84: Business mgmt./Intl. bus./Public affairs/Hotel & rest. mgmt.2009 | N84: Business mgmt./Intl. bus./Public affairs/Hotel & rest. mgmt. | O84: 2009 | P84: 4605
A85: 1012 | B85: Social Sciences & Helping Professions | C85: INDIAN STUDIES | D85: Anthropology/Geography/African American studies/Geology | E85: 147.25 | F85: 12 | G85: 2008 | H85: 1347 | I85: 1347 | M85: Business mgmt./Intl. bus./Public affairs/Hotel & rest. mgmt.2010 | N85: Business mgmt./Intl. bus./Public affairs/Hotel & rest. mgmt. | O85: 2010 | P85: 4828
A86: 1087 | B86: Social Sciences & Helping Professions | C86: INTER AMERICAN RELATIONS | D86: Anthropology/Geography/African American studies/Geology | E86: 156.84 | F86: 25 | G86: 2008 | H86: 1347 | I86: 1347 | M86: Business mgmt./Intl. bus./Public affairs/Hotel & rest. mgmt.2011 | N86: Business mgmt./Intl. bus./Public affairs/Hotel & rest. mgmt. | O86: 2011 | P86: 5432
A87: 1317 | B87: Social Sciences & Helping Professions | C87: MEXICAN AMERICAN STUDIES | D87: Anthropology/Geography/African American studies/Geology | E87: 150.0232558 | F87: 43 | G87: 2008 | H87: 1347 | I87: 1347 | M87: Business mgmt./Intl. bus./Public affairs/Hotel & rest. mgmt.2012 | N87: Business mgmt./Intl. bus./Public affairs/Hotel & rest. mgmt. | O87: 2012 | P87: 4755
A88: 1400 | B88: Natural Sciences | C88: OCEANOGRAPHY | D88: Anthropology/Geography/African American studies/Geology | E88: 158.4 | F88: 5 | G88: 2008 | H88: 1347 | I88: 1347 | M88: Business mgmt./Intl. bus./Public affairs/Hotel & rest. mgmt.2013 | N88: Business mgmt./Intl. bus./Public affairs/Hotel & rest. mgmt. | O88: 2013 | P88: 4066
A89: 38 | B89: Social Sciences & Helping Professions | C89: AFRICAN AMERICAN STUDIES | D89: Anthropology/Geography/African American studies/Geology | E89: 149.3964497 | F89: 169 | G89: 2009 | H89: 1365 | I89: 1365 | M89: Business mgmt./Intl. bus./Public affairs/Hotel & rest. mgmt.2014 | N89: Business mgmt./Intl. bus./Public affairs/Hotel & rest. mgmt. | O89: 2014 | P89: 3372
A90: 79 | B90: Social Sciences & Helping Professions | C90: AMERICAN CIVILIZATION | D90: Anthropology/Geography/African American studies/Geology | E90: 160.04 | F90: 101 | G90: 2009 | H90: 1365 | I90: 1365 | M90: Business mgmt./Intl. bus./Public affairs/Hotel & rest. mgmt.2015 | N90: Business mgmt./Intl. bus./Public affairs/Hotel & rest. mgmt. | O90: 2015 | P90: 3106
A91: 109 | B91: Social Sciences & Helping Professions | C91: ANTHROPOLOGY | D91: Anthropology/Geography/African American studies/Geology | E91: 156.5510204 | F91: 687 | G91: 2009 | H91: 1365 | I91: 1365 | M91: Business mgmt./Intl. bus./Public affairs/Hotel & rest. mgmt.2016 | N91: Business mgmt./Intl. bus./Public affairs/Hotel & rest. mgmt. | O91: 2016 | P91: 2864
A92: 154 | B92: Social Sciences & Helping Professions | C92: ARCHEOLOGY | D92: Anthropology/Geography/African American studies/Geology | E92: 159.7857143 | F92: 14 | G92: 2009 | H92: 1365 | I92: 1365 | M92: Chemistry/Biochemistry2002 | N92: Chemistry/Biochemistry | O92: 2002 | P92: 897
A93: 226 | B93: Social Sciences & Helping Professions | C93: ASIAN AMERICAN STUDIES | D93: Anthropology/Geography/African American studies/Geology | E93: 155.2545455 | F93: 55 | G93: 2009 | H93: 1365 | I93: 1365 | M93: Chemistry/Biochemistry2003 | N93: Chemistry/Biochemistry | O93: 2003 | P93: 989
A94: 846 | B94: Natural Sciences | C94: GEOGRAPHY | D94: Anthropology/Geography/African American studies/Geology | E94: 155.4161074 | F94: 149 | G94: 2009 | H94: 1365 | I94: 1365 | M94: Chemistry/Biochemistry2004 | N94: Chemistry/Biochemistry | O94: 2004 | P94: 987
A95: 861 | B95: Natural Sciences | C95: GEOLOGY/ EARTH SCIENCES | D95: Anthropology/Geography/African American studies/Geology | E95: 156.4404762 | F95: 86 | G95: 2009 | H95: 1365 | I95: 1365 | M95: Chemistry/Biochemistry2005 | N95: Chemistry/Biochemistry | O95: 2005 | P95: 967
A96: 1013 | B96: Social Sciences & Helping Professions | C96: INDIAN STUDIES | D96: Anthropology/Geography/African American studies/Geology | E96: 150.2307692 | F96: 13 | G96: 2009 | H96: 1365 | I96: 1365 | M96: Chemistry/Biochemistry2006 | N96: Chemistry/Biochemistry | O96: 2006 | P96: 895
A97: 1088 | B97: Social Sciences & Helping Professions | C97: INTER AMERICAN RELATIONS | D97: Anthropology/Geography/African American studies/Geology | E97: 158.625 | F97: 25 | G97: 2009 | H97: 1365 | I97: 1365 | M97: Chemistry/Biochemistry2007 | N97: Chemistry/Biochemistry | O97: 2007 | P97: 853
A98: 1318 | B98: Social Sciences & Helping Professions | C98: MEXICAN AMERICAN STUDIES | D98: Anthropology/Geography/African American studies/Geology | E98: 148.8852459 | F98: 61 | G98: 2009 | H98: 1365 | I98: 1365 | M98: Chemistry/Biochemistry2008 | N98: Chemistry/Biochemistry | O98: 2008 | P98: 705
A99: 1401 | B99: Natural Sciences | C99: OCEANOGRAPHY | D99: Anthropology/Geography/African American studies/Geology | E99: 156.4 | F99: 5 | G99: 2009 | H99: 1365 | I99: 1365 | M99: Chemistry/Biochemistry2009 | N99: Chemistry/Biochemistry | O99: 2009 | P99: 762
A100: 39 | B100: Social Sciences & Helping Professions | C100: AFRICAN AMERICAN STUDIES | D100: Anthropology/Geography/African American studies/Geology | E100: 149.1142857 | F100: 176 | G100: 2010 | H100: 1399 | I100: 1399 | M100: Chemistry/Biochemistry2010 | N100: Chemistry/Biochemistry | O100: 2010 | P100: 785
A101: 80 | B101: Social Sciences & Helping Professions | C101: AMERICAN CIVILIZATION | D101: Anthropology/Geography/African American studies/Geology | E101: 159.4318182 | F101: 88 | G101: 2010 | H101: 1399 | I101: 1399 | M101: Chemistry/Biochemistry2011 | N101: Chemistry/Biochemistry | O101: 2011 | P101: 672
A102: 110 | B102: Social Sciences & Helping Professions | C102: ANTHROPOLOGY | D102: Anthropology/Geography/African American studies/Geology | E102: 156.4907539 | F102: 703 | G102: 2010 | H102: 1399 | I102: 1399 | M102: Chemistry/Biochemistry2012 | N102: Chemistry/Biochemistry | O102: 2012 | P102: 621
A103: 155 | B103: Social Sciences & Helping Professions | C103: ARCHEOLOGY | D103: Anthropology/Geography/African American studies/Geology | E103: 156.9230769 | F103: 13 | G103: 2010 | H103: 1399 | I103: 1399 | M103: Chemistry/Biochemistry2013 | N103: Chemistry/Biochemistry | O103: 2013 | P103: 548
A104: 227 | B104: Social Sciences & Helping Professions | C104: ASIAN AMERICAN STUDIES | D104: Anthropology/Geography/African American studies/Geology | E104: 155.2580645 | F104: 62 | G104: 2010 | H104: 1399 | I104: 1399 | M104: Chemistry/Biochemistry2014 | N104: Chemistry/Biochemistry | O104: 2014 | P104: 452
A105: 847 | B105: Natural Sciences | C105: GEOGRAPHY | D105: Anthropology/Geography/African American studies/Geology | E105: 155.6969697 | F105: 165 | G105: 2010 | H105: 1399 | I105: 1399 | M105: Chemistry/Biochemistry2015 | N105: Chemistry/Biochemistry | O105: 2015 | P105: 429
A106: 862 | B106: Natural Sciences | C106: GEOLOGY/ EARTH SCIENCES | D106: Anthropology/Geography/African American studies/Geology | E106: 156.0206186 | F106: 97 | G106: 2010 | H106: 1399 | I106: 1399 | M106: Chemistry/Biochemistry2016 | N106: Chemistry/Biochemistry | O106: 2016 | P106: 452
A107: 1014 | B107: Social Sciences & Helping Professions | C107: INDIAN STUDIES | D107: Anthropology/Geography/African American studies/Geology | E107: 149.2222222 | F107: 19 | G107: 2010 | H107: 1399 | I107: 1399 | M107: Communications/Journalism2002 | N107: Communications/Journalism | O107: 2002 | P107: 3665
A108: 1089 | B108: Social Sciences & Helping Professions | C108: INTER AMERICAN RELATIONS | D108: Anthropology/Geography/African American studies/Geology | E108: 159 | F108: 26 | G108: 2010 | H108: 1399 | I108: 1399 | M108: Communications/Journalism2003 | N108: Communications/Journalism | O108: 2003 | P108: 4566
A109: 1319 | B109: Social Sciences & Helping Professions | C109: MEXICAN AMERICAN STUDIES | D109: Anthropology/Geography/African American studies/Geology | E109: 148.22 | F109: 50 | G109: 2010 | H109: 1399 | I109: 1399 | M109: Communications/Journalism2004 | N109: Communications/Journalism | O109: 2004 | P109: 5069
A110: 40 | B110: Social Sciences & Helping Professions | C110: AFRICAN AMERICAN STUDIES | D110: Anthropology/Geography/African American studies/Geology | E110: 150.1111111 | F110: 181 | G110: 2011 | H110: 1466 | I110: 1466 | M110: Communications/Journalism2005 | N110: Communications/Journalism | O110: 2005 | P110: 5092
A111: 81 | B111: Social Sciences & Helping Professions | C111: AMERICAN CIVILIZATION | D111: Anthropology/Geography/African American studies/Geology | E111: 159.8888889 | F111: 90 | G111: 2011 | H111: 1466 | I111: 1466 | M111: Communications/Journalism2006 | N111: Communications/Journalism | O111: 2006 | P111: 4796
A112: 111 | B112: Social Sciences & Helping Professions | C112: ANTHROPOLOGY | D112: Anthropology/Geography/African American studies/Geology | E112: 156.8548813 | F112: 759 | G112: 2011 | H112: 1466 | I112: 1466 | M112: Communications/Journalism2007 | N112: Communications/Journalism | O112: 2007 | P112: 4540
A113: 156 | B113: Social Sciences & Helping Professions | C113: ARCHEOLOGY | D113: Anthropology/Geography/African American studies/Geology | E113: 160.3157895 | F113: 19 | G113: 2011 | H113: 1466 | I113: 1466 | M113: Communications/Journalism2008 | N113: Communications/Journalism | O113: 2008 | P113: 4291
A114: 228 | B114: Social Sciences & Helping Professions | C114: ASIAN AMERICAN STUDIES | D114: Anthropology/Geography/African American studies/Geology | E114: 156.3278689 | F114: 61 | G114: 2011 | H114: 1466 | I114: 1466 | M114: Communications/Journalism2009 | N114: Communications/Journalism | O114: 2009 | P114: 4233
A115: 848 | B115: Natural Sciences | C115: GEOGRAPHY | D115: Anthropology/Geography/African American studies/Geology | E115: 154.9360465 | F115: 172 | G115: 2011 | H115: 1466 | I115: 1466 | M115: Communications/Journalism2010 | N115: Communications/Journalism | O115: 2010 | P115: 4569
A116: 863 | B116: Natural Sciences | C116: GEOLOGY/ EARTH SCIENCES | D116: Anthropology/Geography/African American studies/Geology | E116: 155.8641975 | F116: 81 | G116: 2011 | H116: 1466 | I116: 1466 | M116: Communications/Journalism2011 | N116: Communications/Journalism | O116: 2011 | P116: 4907
A117: 1015 | B117: Social Sciences & Helping Professions | C117: INDIAN STUDIES | D117: Anthropology/Geography/African American studies/Geology | E117: 149.7333333 | F117: 15 | G117: 2011 | H117: 1466 | I117: 1466 | M117: Communications/Journalism2012 | N117: Communications/Journalism | O117: 2012 | P117: 4121
A118: 1090 | B118: Social Sciences & Helping Professions | C118: INTER AMERICAN RELATIONS | D118: Anthropology/Geography/African American studies/Geology | E118: 159.3235294 | F118: 35 | G118: 2011 | H118: 1466 | I118: 1466 | M118: Communications/Journalism2013 | N118: Communications/Journalism | O118: 2013 | P118: 3440
A119: 1320 | B119: Social Sciences & Helping Professions | C119: MEXICAN AMERICAN STUDIES | D119: Anthropology/Geography/African American studies/Geology | E119: 150.1698113 | F119: 53 | G119: 2011 | H119: 1466 | I119: 1466 | M119: Communications/Journalism2014 | N119: Communications/Journalism | O119: 2014 | P119: 2896
A120: 41 | B120: Social Sciences & Helping Professions | C120: AFRICAN AMERICAN STUDIES | D120: Anthropology/Geography/African American studies/Geology | E120: 150.3251534 | F120: 166 | G120: 2012 | H120: 1280 | I120: 1280 | M120: Communications/Journalism2015 | N120: Communications/Journalism | O120: 2015 | P120: 2557
A121: 82 | B121: Social Sciences & Helping Professions | C121: AMERICAN CIVILIZATION | D121: Anthropology/Geography/African American studies/Geology | E121: 160.4032258 | F121: 62 | G121: 2012 | H121: 1280 | I121: 1280 | M121: Communications/Journalism2016 | N121: Communications/Journalism | O121: 2016 | P121: 2508
A122: 112 | B122: Social Sciences & Helping Professions | C122: ANTHROPOLOGY | D122: Anthropology/Geography/African American studies/Geology | E122: 156.6826783 | F122: 689 | G122: 2012 | H122: 1280 | I122: 1280 | M122: Computer science/Comp. info. systems/Mgmt. info. systems2002 | N122: Computer science/Comp. info. systems/Mgmt. info. systems | O122: 2002 | P122: 578
A123: 157 | B123: Social Sciences & Helping Professions | C123: ARCHEOLOGY | D123: Anthropology/Geography/African American studies/Geology | E123: 163.5454545 | F123: 11 | G123: 2012 | H123: 1280 | I123: 1280 | M123: Computer science/Comp. info. systems/Mgmt. info. systems2003 | N123: Computer science/Comp. info. systems/Mgmt. info. systems | O123: 2003 | P123: 1256
A124: 229 | B124: Social Sciences & Helping Professions | C124: ASIAN AMERICAN STUDIES | D124: Anthropology/Geography/African American studies/Geology | E124: 156.3636364 | F124: 44 | G124: 2012 | H124: 1280 | I124: 1280 | M124: Computer science/Comp. info. systems/Mgmt. info. systems2004 | N124: Computer science/Comp. info. systems/Mgmt. info. systems | O124: 2004 | P124: 1886
A125: 849 | B125: Natural Sciences | C125: GEOGRAPHY | D125: Anthropology/Geography/African American studies/Geology | E125: 154.8742857 | F125: 175 | G125: 2012 | H125: 1280 | I125: 1280 | M125: Computer science/Comp. info. systems/Mgmt. info. systems2005 | N125: Computer science/Comp. info. systems/Mgmt. info. systems | O125: 2005 | P125: 2153
A126: 864 | B126: Natural Sciences | C126: GEOLOGY/ EARTH SCIENCES | D126: Anthropology/Geography/African American studies/Geology | E126: 156.609375 | F126: 64 | G126: 2012 | H126: 1280 | I126: 1280 | M126: Computer science/Comp. info. systems/Mgmt. info. systems2006 | N126: Computer science/Comp. info. systems/Mgmt. info. systems | O126: 2006 | P126: 1900
A127: 1016 | B127: Social Sciences & Helping Professions | C127: INDIAN STUDIES | D127: Anthropology/Geography/African American studies/Geology | E127: 149.1428571 | F127: 14 | G127: 2012 | H127: 1280 | I127: 1280 | M127: Computer science/Comp. info. systems/Mgmt. info. systems2007 | N127: Computer science/Comp. info. systems/Mgmt. info. systems | O127: 2007 | P127: 1423
A128: 1091 | B128: Social Sciences & Helping Professions | C128: INTER AMERICAN RELATIONS | D128: Anthropology/Geography/African American studies/Geology | E128: 158.625 | F128: 16 | G128: 2012 | H128: 1280 | I128: 1280 | M128: Computer science/Comp. info. systems/Mgmt. info. systems2008 | N128: Computer science/Comp. info. systems/Mgmt. info. systems | O128: 2008 | P128: 1131
A129: 1321 | B129: Social Sciences & Helping Professions | C129: MEXICAN AMERICAN STUDIES | D129: Anthropology/Geography/African American studies/Geology | E129: 150.974359 | F129: 39 | G129: 2012 | H129: 1280 | I129: 1280 | M129: Computer science/Comp. info. systems/Mgmt. info. systems2009 | N129: Computer science/Comp. info. systems/Mgmt. info. systems | O129: 2009 | P129: 900
A130: 42 | B130: Social Sciences & Helping Professions | C130: AFRICAN AMERICAN STUDIES | D130: Anthropology/Geography/African American studies/Geology | E130: 151.1439394 | F130: 132 | G130: 2013 | H130: 1101 | I130: =VLOOKUP(D130&G130,$M$2:$P$436,4) -> 1101 | M130: Computer science/Comp. info. systems/Mgmt. info. systems2010 | N130: Computer science/Comp. info. systems/Mgmt. info. systems | O130: 2010 | P130: 838
A131: 83 | B131: Social Sciences & Helping Professions | C131: AMERICAN CIVILIZATION | D131: Anthropology/Geography/African American studies/Geology | E131: 158.5 | F131: 66 | G131: 2013 | H131: 1101 | I131: 1101 | M131: =CONCATENATE(N131,O131) -> Computer science/Comp. info. systems/Mgmt. info. systems2011 | N131: Computer science/Comp. info. systems/Mgmt. info. systems | O131: 2011 | P131: 768
A132: 113 | B132: Social Sciences & Helping Professions | C132: ANTHROPOLOGY | D132: Anthropology/Geography/African American studies/Geology | E132: 156.237691 | F132: 592 | G132: 2013 | H132: 1101 | I132: 1101 | M132: Computer science/Comp. info. systems/Mgmt. info. systems2012 | N132: Computer science/Comp. info. systems/Mgmt. info. systems | O132: 2012 | P132: 633
A133: 158 | B133: Social Sciences & Helping Professions | C133: ARCHEOLOGY | D133: Anthropology/Geography/African American studies/Geology | E133: 157.3333333 | F133: 12 | G133: 2013 | H133: 1101 | I133: 1101 | M133: Computer science/Comp. info. systems/Mgmt. info. systems2013 | N133: Computer science/Comp. info. systems/Mgmt. info. systems | O133: 2013 | P133: 492
A134: 230 | B134: Social Sciences & Helping Professions | C134: ASIAN AMERICAN STUDIES | D134: Anthropology/Geography/African American studies/Geology | E134: 155.5757576 | F134: 33 | G134: 2013 | H134: 1101 | I134: 1101 | M134: Computer science/Comp. info. systems/Mgmt. info. systems2014 | N134: Computer science/Comp. info. systems/Mgmt. info. systems | O134: 2014 | P134: 394
A135: 850 | B135: Natural Sciences | C135: GEOGRAPHY | D135: Anthropology/Geography/African American studies/Geology | E135: 154.7480916 | F135: 132 | G135: 2013 | H135: 1101 | I135: 1101 | M135: Computer science/Comp. info. systems/Mgmt. info. systems2015 | N135: Computer science/Comp. info. systems/Mgmt. info. systems | O135: 2015 | P135: 333
A136: 865 | B136: Natural Sciences | C136: GEOLOGY/ EARTH SCIENCES | D136: Anthropology/Geography/African American studies/Geology | E136: 157.2857143 | F136: 56 | G136: 2013 | H136: 1101 | I136: 1101 | M136: Computer science/Comp. info. systems/Mgmt. info. systems2016 | N136: Computer science/Comp. info. systems/Mgmt. info. systems | O136: 2016 | P136: 341
A137: 1017 | B137: Social Sciences & Helping Professions | C137: INDIAN STUDIES | D137: Anthropology/Geography/African American studies/Geology | E137: 145.5 | F137: 16 | G137: 2013 | H137: 1101 | I137: 1101 | M137: Criminal Justice/Criminology2002 | N137: Criminal Justice/Criminology | O137: 2002 | P137: 4517
A138: 1092 | B138: Social Sciences & Helping Professions | C138: INTER AMERICAN RELATIONS | D138: Anthropology/Geography/African American studies/Geology | E138: 153.5263158 | F138: 19 | G138: 2013 | H138: 1101 | I138: 1101 | M138: Criminal Justice/Criminology2003 | N138: Criminal Justice/Criminology | O138: 2003 | P138: 4723
A139: 1322 | B139: Social Sciences & Helping Professions | C139: MEXICAN AMERICAN STUDIES | D139: Anthropology/Geography/African American studies/Geology | E139: 147.2142857 | F139: 43 | G139: 2013 | H139: 1101 | I139: 1101 | M139: Criminal Justice/Criminology2004 | N139: Criminal Justice/Criminology | O139: 2004 | P139: 4888
A140: 43 | B140: Social Sciences & Helping Professions | C140: AFRICAN AMERICAN STUDIES | D140: Anthropology/Geography/African American studies/Geology | E140: 150.5138889 | F140: 150 | G140: 2014 | H140: 973 | I140: 973 | M140: Criminal Justice/Criminology2005 | N140: Criminal Justice/Criminology | O140: 2005 | P140: 4957
A141: 84 | B141: Social Sciences & Helping Professions | C141: AMERICAN CIVILIZATION | D141: Anthropology/Geography/African American studies/Geology | E141: 158.3396226 | F141: 53 | G141: 2014 | H141: 973 | I141: 973 | M141: Criminal Justice/Criminology2006 | N141: Criminal Justice/Criminology | O141: 2006 | P141: 4936
A142: 114 | B142: Social Sciences & Helping Professions | C142: ANTHROPOLOGY | D142: Anthropology/Geography/African American studies/Geology | E142: 156.7368421 | F142: 503 | G142: 2014 | H142: 973 | I142: 973 | M142: Criminal Justice/Criminology2007 | N142: Criminal Justice/Criminology | O142: 2007 | P142: 4899
A143: 159 | B143: Social Sciences & Helping Professions | C143: ARCHEOLOGY | D143: Anthropology/Geography/African American studies/Geology | E143: 161.2857143 | F143: 14 | G143: 2014 | H143: 973 | I143: 973 | M143: Criminal Justice/Criminology2008 | N143: Criminal Justice/Criminology | O143: 2008 | P143: 4942
A144: 231 | B144: Social Sciences & Helping Professions | C144: ASIAN AMERICAN STUDIES | D144: Anthropology/Geography/African American studies/Geology | E144: 158.1481481 | F144: 27 | G144: 2014 | H144: 973 | I144: 973 | M144: Criminal Justice/Criminology2009 | N144: Criminal Justice/Criminology | O144: 2009 | P144: 4969
A145: 851 | B145: Natural Sciences | C145: GEOGRAPHY | D145: Anthropology/Geography/African American studies/Geology | E145: 153.5742574 | F145: 101 | G145: 2014 | H145: 973 | I145: 973 | M145: Criminal Justice/Criminology2010 | N145: Criminal Justice/Criminology | O145: 2010 | P145: 4883
A146: 866 | B146: Natural Sciences | C146: GEOLOGY/ EARTH SCIENCES | D146: Anthropology/Geography/African American studies/Geology | E146: 156.2941176 | F146: 52 | G146: 2014 | H146: 973 | I146: 973 | M146: Criminal Justice/Criminology2011 | N146: Criminal Justice/Criminology | O146: 2011 | P146: 4706
A147: 1018 | B147: Social Sciences & Helping Professions | C147: INDIAN STUDIES | D147: Anthropology/Geography/African American studies/Geology | E147: 149.1666667 | F147: 12 | G147: 2014 | H147: 973 | I147: 973 | M147: Criminal Justice/Criminology2012 | N147: Criminal Justice/Criminology | O147: 2012 | P147: 4737
A148: 1093 | B148: Social Sciences & Helping Professions | C148: INTER AMERICAN RELATIONS | D148: Anthropology/Geography/African American studies/Geology | E148: 154.125 | F148: 16 | G148: 2014 | H148: 973 | I148: 973 | M148: Criminal Justice/Criminology2013 | N148: Criminal Justice/Criminology | O148: 2013 | P148: 4771
A149: 1323 | B149: Social Sciences & Helping Professions | C149: MEXICAN AMERICAN STUDIES | D149: Anthropology/Geography/African American studies/Geology | E149: 149.5384615 | F149: 40 | G149: 2014 | H149: 973 | I149: 973 | M149: Criminal Justice/Criminology2014 | N149: Criminal Justice/Criminology | O149: 2014 | P149: 4780
A150: 1402 | B150: Natural Sciences | C150: OCEANOGRAPHY | D150: Anthropology/Geography/African American studies/Geology | E150: 154.8 | F150: 5 | G150: 2014 | H150: 973 | I150: 973 | M150: Criminal Justice/Criminology2015 | N150: Criminal Justice/Criminology | O150: 2015 | P150: 4672
A151: 44 | B151: Social Sciences & Helping Professions | C151: AFRICAN AMERICAN STUDIES | D151: Anthropology/Geography/African American studies/Geology | E151: 150.3828125 | F151: 129 | G151: 2015 | H151: 907 | I151: 907 | M151: Criminal Justice/Criminology2016 | N151: Criminal Justice/Criminology | O151: 2016 | P151: 4797
A152: 85 | B152: Social Sciences & Helping Professions | C152: AMERICAN CIVILIZATION | D152: Anthropology/Geography/African American studies/Geology | E152: 159.48 | F152: 51 | G152: 2015 | H152: 907 | I152: 907 | M152: Economics2002 | N152: Economics | O152: 2002 | P152: 3202
A153: 115 | B153: Social Sciences & Helping Professions | C153: ANTHROPOLOGY | D153: Anthropology/Geography/African American studies/Geology | E153: 155.9938272 | F153: 498 | G153: 2015 | H153: 907 | I153: 907 | M153: Economics2003 | N153: Economics | O153: 2003 | P153: 4289
A154: 160 | B154: Social Sciences & Helping Professions | C154: ARCHEOLOGY | D154: Anthropology/Geography/African American studies/Geology | E154: 157.3333333 | F154: 12 | G154: 2015 | H154: 907 | I154: 907 | M154: Economics2004 | N154: Economics | O154: 2004 | P154: 5433
A155: 232 | B155: Social Sciences & Helping Professions | C155: ASIAN AMERICAN STUDIES | D155: Anthropology/Geography/African American studies/Geology | E155: 154.4 | F155: 25 | G155: 2015 | H155: 907 | I155: 907 | M155: Economics2005 | N155: Economics | O155: 2005 | P155: 5803
A156: 852 | B156: Natural Sciences | C156: GEOGRAPHY | D156: Anthropology/Geography/African American studies/Geology | E156: 153.0722892 | F156: 84 | G156: 2015 | H156: 907 | I156: 907 | M156: Economics2006 | N156: Economics | O156: 2006 | P156: 5471
A157: 867 | B157: Natural Sciences | C157: GEOLOGY/ EARTH SCIENCES | D157: Anthropology/Geography/African American studies/Geology | E157: 156.82 | F157: 50 | G157: 2015 | H157: 907 | I157: 907 | M157: Economics2007 | N157: Economics | O157: 2007 | P157: 4857
A158: 1019 | B158: Social Sciences & Helping Professions | C158: INDIAN STUDIES | D158: Anthropology/Geography/African American studies/Geology | E158: 147.6666667 | F158: 12 | G158: 2015 | H158: 907 | I158: 907 | M158: Economics2008 | N158: Economics | O158: 2008 | P158: 4452
A159: 1094 | B159: Social Sciences & Helping Professions | C159: INTER AMERICAN RELATIONS | D159: Anthropology/Geography/African American studies/Geology | E159: 154.1111111 | F159: 9 | G159: 2015 | H159: 907 | I159: 907 | M159: Economics2009 | N159: Economics | O159: 2009 | P159: 4154
A160: 1324 | B160: Social Sciences & Helping Professions | C160: MEXICAN AMERICAN STUDIES | D160: Anthropology/Geography/African American studies/Geology | E160: 151.7419355 | F160: 32 | G160: 2015 | H160: 907 | I160: 907 | M160: Economics2010 | N160: Economics | O160: 2010 | P160: 4636
A161: 1403 | B161: Natural Sciences | C161: OCEANOGRAPHY | D161: Anthropology/Geography/African American studies/Geology | E161: 153.8 | F161: 5 | G161: 2015 | H161: 907 | I161: 907 | M161: Economics2011 | N161: Economics | O161: 2011 | P161: 5147
A162: 45 | B162: Social Sciences & Helping Professions | C162: AFRICAN AMERICAN STUDIES | D162: Anthropology/Geography/African American studies/Geology | E162: 147.11 | F162: 107 | G162: 2016 | H162: 819 | I162: 819 | M162: Economics2012 | N162: Economics | O162: 2012 | P162: 4422
A163: 86 | B163: Social Sciences & Helping Professions | C163: AMERICAN CIVILIZATION | D163: Anthropology/Geography/African American studies/Geology | E163: 159.05 | F163: 41 | G163: 2016 | H163: 819 | I163: 819 | M163: Economics2013 | N163: Economics | O163: 2013 | P163: 3617
A164: 116 | B164: Social Sciences & Helping Professions | C164: ANTHROPOLOGY | D164: Anthropology/Geography/African American studies/Geology | E164: 155.9505882 | F164: 433 | G164: 2016 | H164: 819 | I164: 819 | M164: Economics2014 | N164: Economics | O164: 2014 | P164: 3031
A165: 161 | B165: Social Sciences & Helping Professions | C165: ARCHEOLOGY | D165: Anthropology/Geography/African American studies/Geology | E165: 156.4 | F165: 10 | G165: 2016 | H165: 819 | I165: 819 | M165: Economics2015 | N165: Economics | O165: 2015 | P165: 2842
A166: 233 | B166: Social Sciences & Helping Professions | C166: ASIAN AMERICAN STUDIES | D166: Anthropology/Geography/African American studies/Geology | E166: 156.3333333 | F166: 24 | G166: 2016 | H166: 819 | I166: 819 | M166: Economics2016 | N166: Economics | O166: 2016 | P166: 2717
A167: 853 | B167: Natural Sciences | C167: GEOGRAPHY | D167: Anthropology/Geography/African American studies/Geology | E167: 154.5 | F167: 102 | G167: 2016 | H167: 819 | I167: 819 | M167: Education (primary, secondary)/Family relations2002 | N167: Education (primary, secondary)/Family relations | O167: 2002 | P167: 1111
A168: 868 | B168: Natural Sciences | C168: GEOLOGY/ EARTH SCIENCES | D168: Anthropology/Geography/African American studies/Geology | E168: 155.1764706 | F168: 52 | G168: 2016 | H168: 819 | I168: 819 | M168: Education (primary, secondary)/Family relations2003 | N168: Education (primary, secondary)/Family relations | O168: 2003 | P168: 1136
A169: 1020 | B169: Social Sciences & Helping Professions | C169: INDIAN STUDIES | D169: Anthropology/Geography/African American studies/Geology | E169: 150.6923077 | F169: 14 | G169: 2016 | H169: 819 | I169: 819 | M169: Education (primary, secondary)/Family relations2004 | N169: Education (primary, secondary)/Family relations | O169: 2004 | P169: 1135
A170: 1095 | B170: Social Sciences & Helping Professions | C170: INTER AMERICAN RELATIONS | D170: Anthropology/Geography/African American studies/Geology | E170: 154.5714286 | F170: 7 | G170: 2016 | H170: 819 | I170: 819 | M170: Education (primary, secondary)/Family relations2005 | N170: Education (primary, secondary)/Family relations | O170: 2005 | P170: 1084
A171: 1325 | B171: Social Sciences & Helping Professions | C171: MEXICAN AMERICAN STUDIES | D171: Anthropology/Geography/African American studies/Geology | E171: 151.9655172 | F171: 29 | G171: 2016 | H171: 819 | I171: 819 | M171: Education (primary, secondary)/Family relations2006 | N171: Education (primary, secondary)/Family relations | O171: 2006 | P171: 1020
A172: 162 | B172: Arts & Humanities | C172: ARCHITECTURE/ENVIRONMENTAL DESIGN | D172: Arts (Music/Art history/Drama/Film/Art design/Perf. arts/Fine arts) | E172: 150.7014925 | F172: 68 | G172: 2002 | H172: 1496 | I172: 1496 | M172: Education (primary, secondary)/Family relations2007 | N172: Education (primary, secondary)/Family relations | O172: 2007 | P172: 888
A173: 177 | B173: Arts & Humanities | C173: ART HISTORY | D173: Arts (Music/Art history/Drama/Film/Art design/Perf. arts/Fine arts) | E173: 154.9081633 | F173: 295 | G173: 2002 | H173: 1496 | I173: 1496 | M173: Education (primary, secondary)/Family relations2008 | N173: Education (primary, secondary)/Family relations | O173: 2008 | P173: 810
A174: 192 | B174: Arts & Humanities | C174: ART/DESIGN | D174: Arts (Music/Art history/Drama/Film/Art design/Perf. arts/Fine arts) | E174: 148.9370079 | F174: 129 | G174: 2002 | H174: 1496 | I174: 1496 | M174: Education (primary, secondary)/Family relations2009 | N174: Education (primary, secondary)/Family relations | O174: 2009 | P174: 787
A175: 599 | B175: Arts & Humanities | C175: DRAMA/THEATRE ARTS | D175: Arts (Music/Art history/Drama/Film/Art design/Perf. arts/Fine arts) | E175: 154.5035971 | F175: 278 | G175: 2002 | H175: 1496 | I175: 1496 | M175: Education (primary, secondary)/Family relations2010 | N175: Education (primary, secondary)/Family relations | O175: 2010 | P175: 752
A176: 749 | B176: Arts & Humanities | C176: FILM PRODUCTION | D176: Arts (Music/Art history/Drama/Film/Art design/Perf. arts/Fine arts) | E176: 153.3644068 | F176: 119 | G176: 2002 | H176: 1496 | I176: 1496 | M176: Education (primary, secondary)/Family relations2011 | N176: Education (primary, secondary)/Family relations | O176: 2011 | P176: 755
A177: 779 | B177: Arts & Humanities | C177: FINE ARTS | D177: Arts (Music/Art history/Drama/Film/Art design/Perf. arts/Fine arts) | E177: 150.6451613 | F177: 126 | G177: 2002 | H177: 1496 | I177: 1496 | M177: Education (primary, secondary)/Family relations2012 | N177: Education (primary, secondary)/Family relations | O177: 2012 | P177: 738
A178: 1111 | B178: Arts & Humanities | C178: INTERIOR DESIGN | D178: Arts (Music/Art history/Drama/Film/Art design/Perf. arts/Fine arts) | E178: 150.4545455 | F178: 11 | G178: 2002 | H178: 1496 | I178: 1496 | M178: Education (primary, secondary)/Family relations2013 | N178: Education (primary, secondary)/Family relations | O178: 2013 | P178: 657
A179: 1341 | B179: Arts & Humanities | C179: MUSIC | D179: Arts (Music/Art history/Drama/Film/Art design/Perf. arts/Fine arts) | E179: 154.1554404 | F179: 390 | G179: 2002 | H179: 1496 | I179: 1496 | M179: Education (primary, secondary)/Family relations2014 | N179: Education (primary, secondary)/Family relations | O179: 2014 | P179: 562
A180: 1404 | B180: Arts & Humanities | C180: PERFORMING ARTS | D180: Arts (Music/Art history/Drama/Film/Art design/Perf. arts/Fine arts) | E180: 153.8846154 | F180: 52 | G180: 2002 | H180: 1496 | I180: 1496 | M180: Education (primary, secondary)/Family relations2015 | N180: Education (primary, secondary)/Family relations | O180: 2015 | P180: 497
A181: 1934 | B181: Arts & Humanities | C181: VISUAL ARTS/GRAPHICS | D181: Arts (Music/Art history/Drama/Film/Art design/Perf. arts/Fine arts) | E181: 150.6296296 | F181: 28 | G181: 2002 | H181: 1496 | I181: 1496 | M181: Education (primary, secondary)/Family relations2016 | N181: Education (primary, secondary)/Family relations | O181: 2016 | P181: 517
A182: 163 | B182: Arts & Humanities | C182: ARCHITECTURE/ENVIRONMENTAL DESIGN | D182: Arts (Music/Art history/Drama/Film/Art design/Perf. arts/Fine arts) | E182: 154.0843373 | F182: 83 | G182: 2003 | H182: 1917 | I182: 1917 | M182: Engineering2002 | N182: Engineering | O182: 2002 | P182: 2039
A183: 178 | B183: Arts & Humanities | C183: ART HISTORY | D183: Arts (Music/Art history/Drama/Film/Art design/Perf. arts/Fine arts) | E183: 155.8410405 | F183: 347 | G183: 2003 | H183: 1917 | I183: 1917 | M183: Engineering2003 | N183: Engineering | O183: 2003 | P183: 2937
A184: 193 | B184: Arts & Humanities | C184: ART/DESIGN | D184: Arts (Music/Art history/Drama/Film/Art design/Perf. arts/Fine arts) | E184: 150.2528736 | F184: 175 | G184: 2003 | H184: 1917 | I184: 1917 | M184: Engineering2004 | N184: Engineering | O184: 2004 | P184: 3479
A185: 600 | B185: Arts & Humanities | C185: DRAMA/THEATRE ARTS | D185: Arts (Music/Art history/Drama/Film/Art design/Perf. arts/Fine arts) | E185: 154.1994302 | F185: 353 | G185: 2003 | H185: 1917 | I185: 1917 | M185: Engineering2005 | N185: Engineering | O185: 2005 | P185: 3650
A186: 750 | B186: Arts & Humanities | C186: FILM PRODUCTION | D186: Arts (Music/Art history/Drama/Film/Art design/Perf. arts/Fine arts) | E186: 154.0610329 | F186: 214 | G186: 2003 | H186: 1917 | I186: 1917 | M186: Engineering2006 | N186: Engineering | O186: 2006 | P186: 3328
A187: 780 | B187: Arts & Humanities | C187: FINE ARTS | D187: Arts (Music/Art history/Drama/Film/Art design/Perf. arts/Fine arts) | E187: 151.9507042 | F187: 142 | G187: 2003 | H187: 1917 | I187: 1917 | M187: Engineering2007 | N187: Engineering | O187: 2007 | P187: 2810
A188: 1112 | B188: Arts & Humanities | C188: INTERIOR DESIGN | D188: Arts (Music/Art history/Drama/Film/Art design/Perf. arts/Fine arts) | E188: 149.4117647 | F188: 17 | G188: 2003 | H188: 1917 | I188: 1917 | M188: Engineering2008 | N188: Engineering | O188: 2008 | P188: 2463
A189: 1342 | B189: Arts & Humanities | C189: MUSIC | D189: Arts (Music/Art history/Drama/Film/Art design/Perf. arts/Fine arts) | E189: 154.7396313 | F189: 439 | G189: 2003 | H189: 1917 | I189: 1917 | M189: Engineering2009 | N189: Engineering | O189: 2009 | P189: 2403
A190: 1405 | B190: Arts & Humanities | C190: PERFORMING ARTS | D190: Arts (Music/Art history/Drama/Film/Art design/Perf. arts/Fine arts) | E190: 151.975 | F190: 81 | G190: 2003 | H190: 1917 | I190: 1917 | M190: Engineering2010 | N190: Engineering | O190: 2010 | P190: 2307
A191: 1935 | B191: Arts & Humanities | C191: VISUAL ARTS/GRAPHICS | D191: Arts (Music/Art history/Drama/Film/Art design/Perf. arts/Fine arts) | E191: 151.5 | F191: 66 | G191: 2003 | H191: 1917 | I191: 1917 | M191: Engineering2011 | N191: Engineering | O191: 2011 | P191: 2209
A192: 164 | B192: Arts & Humanities | C192: ARCHITECTURE/ENVIRONMENTAL DESIGN | D192: Arts (Music/Art history/Drama/Film/Art design/Perf. arts/Fine arts) | E192: 154.4942529 | F192: 87 | G192: 2004 | H192: 2160 | I192: 2160 | M192: Engineering2012 | N192: Engineering | O192: 2012 | P192: 1707
A193: 179 | B193: Arts & Humanities | C193: ART HISTORY | D193: Arts (Music/Art history/Drama/Film/Art design/Perf. arts/Fine arts) | E193: 155.8771084 | F193: 419 | G193: 2004 | H193: 2160 | I193: 2160 | M193: Engineering2013 | N193: Engineering | O193: 2013 | P193: 1304
A194: 194 | B194: Arts & Humanities | C194: ART/DESIGN | D194: Arts (Music/Art history/Drama/Film/Art design/Perf. arts/Fine arts) | E194: 152.1161616 | F194: 200 | G194: 2004 | H194: 2160 | I194: =VLOOKUP(D194&G194,$M$2:$P$436,4) -> 2160 | M194: Engineering2014 | N194: Engineering | O194: 2014 | P194: 1103
A195: 601 | B195: Arts & Humanities | C195: DRAMA/THEATRE ARTS | D195: Arts (Music/Art history/Drama/Film/Art design/Perf. arts/Fine arts) | E195: 154.8382749 | F195: 374 | G195: 2004 | H195: 2160 | I195: 2160 | M195: =CONCATENATE(N195,O195) -> Engineering2015 | N195: Engineering | O195: 2015 | P195: 958
A196: 751 | B196: Arts & Humanities | C196: FILM PRODUCTION | D196: Arts (Music/Art history/Drama/Film/Art design/Perf. arts/Fine arts) | E196: 154.9906977 | F196: 219 | G196: 2004 | H196: 2160 | I196: 2160 | M196: Engineering2016 | N196: Engineering | O196: 2016 | P196: 952
A197: 781 | B197: Arts & Humanities | C197: FINE ARTS | D197: Arts (Music/Art history/Drama/Film/Art design/Perf. arts/Fine arts) | E197: 152.5379747 | F197: 160 | G197: 2004 | H197: 2160 | I197: 2160 | M197: English/Classics/Literature/Lingusitics2002 | N197: English/Classics/Literature/Lingusitics | O197: 2002 | P197: 6674
A198: 1113 | B198: Arts & Humanities | C198: INTERIOR DESIGN | D198: Arts (Music/Art history/Drama/Film/Art design/Perf. arts/Fine arts) | E198: 148.0833333 | F198: 12 | G198: 2004 | H198: 2160 | I198: 2160 | M198: English/Classics/Literature/Lingusitics2003 | N198: English/Classics/Literature/Lingusitics | O198: 2003 | P198: 7691
A199: 1343 | B199: Arts & Humanities | C199: MUSIC | D199: Arts (Music/Art history/Drama/Film/Art design/Perf. arts/Fine arts) | E199: 155.08 | F199: 526 | G199: 2004 | H199: 2160 | I199: 2160 | M199: English/Classics/Literature/Lingusitics2004 | N199: English/Classics/Literature/Lingusitics | O199: 2004 | P199: 8220
A200: 1406 | B200: Arts & Humanities | C200: PERFORMING ARTS | D200: Arts (Music/Art history/Drama/Film/Art design/Perf. arts/Fine arts) | E200: 152.8131868 | F200: 91 | G200: 2004 | H200: 2160 | I200: 2160 | M200: English/Classics/Literature/Lingusitics2005 | N200: English/Classics/Literature/Lingusitics | O200: 2005 | P200: 8231
... 1779 more rows

Sheet Filter
A1: First Author's Last Name | B1: First Author's First Name | C1: Second Author's Last Name | D1: Second Author's First Name | E1: Third Author's Last Name | F1: Third Author's First Name | G1: Fourth Author's Last Name | H1: Fourth Author's First Name | I1: Year | J1: Title | N1: Volume | O1: Issue | P1: Page | Q1: personal injury and wrongful death | R1: Base Earnings | S1: Earnings Growth | T1: Fringe Benefits | U1: Personal Consumption | V1: Household Services | W1: Life and Work Life Expectancy | X1: Taxes | Y1: Medical Costs | Z1: Interest Rates | AA1: Hedonic Damages | AB1: Other | AC1: employment | AD1: business valuation and lost profits | AE1: antitrust | AF1: Other
A2: Albrecht | B2: Gary R | I2: 1991 | J2: Forecasting the earnings of a partially disabled individual | K2: 1(2): 50-57 | L2: =LEFT(K2,FIND("(",K2,1)-1) -> 1 | M2: =FIND("(",K2,1) -> 3 | N2: =MID(K2,2,1) -> 1 | O2: =MID(K2,4,1) -> 2 | P2: =MID(K2,8,8) -> 50-57 | Q2: Y | T2: Y
A3: Albrecht | B3: Gary R | I3: 1991 | J3: Calculating the value of a closely held firm | K3: 1(3):1-6 | L3: =LEFT(K3,FIND("(",K3,1)-1) -> 1 | N3: =MID(K3,2,1) -> 1 | O3: =MID(K3,4,1) -> 3 | P3: =MID(K3,8,8) -> -6 | AD3: Y
A4: Albrecht | B4: Gary R | C4: Wood | D4: John H | I4: 1997 | J4: Risk and damage awards: Shortterm bonds vs long-term bonds | K4: 7(1): 48-59 | L4: =LEFT(K4,FIND("(",K4,1)-1) -> 7 | N4: =MID(K4,2,1) -> 7 | O4: =MID(K4,4,1) -> 1 | P4: =MID(K4,8,8) -> 48-59 | Q4: Y | T4: Y
A5: Albrecht | B5: Gary R | I5: 1997 | J5: The need to use risk free discount rates: Comment | K5: 7(1): 92-95 | L5: =LEFT(K5,FIND("(",K5,1)-1) -> 7 | N5: =MID(K5,2,1) -> 7 | O5: =MID(K5,4,1) -> 1 | P5: =MID(K5,8,8) -> 92-95 | AC5: Y
A6: Allman | B6: Phillip H | I6: 1993 | J6: Four economic issues in pension valuations | K6: 3(2):61-68 | L6: =LEFT(K6,FIND("(",K6,1)-1) -> 3 | N6: =MID(K6,2,1) -> 3 | O6: =MID(K6,4,1) -> 2 | P6: =MID(K6,8,8) -> 1-68 | Q6: Y | U6: Y
A7: Amit | B7: Sen | C7: Gelles | D7: Gregory M | E7: Johnson | F7: Walter D | I7: 2002 | J7: Structural instability in the net discount rate series based on high grade municipal bond yields | K7: 12(2): 87-100 | L7: =LEFT(K7,FIND("(",K7,1)-1) -> 12 | N7: =MID(K7,2,2) -> 12 | O7: =MID(K7,5,1) -> 2 | P7: =MID(K7,8,7) -> 87-100 | Q7: Y | T7: Y
A8: Anderson | B8: Gary | I8: 2000 | J8: Tax filing status change and economic loss in cases of wrongful death | K8: 10(2): 13-26 | L8: =LEFT(K8,FIND("(",K8,1)-1) -> 10 | N8: =MID(K8,1,3) -> 10 | O8: =MID(K8,5,1) -> 2 | P8: =MID(K8,8,8) -> 13-26 | AC8: Y
A9: Anderson | B9: Gary A | C9: Keys | D9: James D | I9: 2007 | J9: Building Human Capital Through Education | K9: 14(1): 49-75 | L9: =LEFT(K9,FIND("(",K9,1)-1) -> 14 | N9: =MID(K9,2,2) -> 14 | O9: =MID(K9,5,1) -> 1 | P9: =MID(K9,8,8) -> 49-75 | Q9: Y | S9: Y
A10: Anderson | B10: Gary A | I10: 2008 | J10: Model Variances in Assessing the Present Value of Future Medical Care | K10: 15(1): 1-10 | L10: =LEFT(K10,FIND("(",K10,1)-1) -> 15 | N10: =MID(K10,2,1) -> 1 | O10: =MID(K10,4,1) -> ( | P10: =MID(K10,8,8) -> 1-10 | Z10: Y
A11: Ashraf | B11: Javed | I11: 1991 | J11: An analysis of recent trends in determinants of earnings | K11: 1(3): 79-89 | L11: =LEFT(K11,FIND("(",K11,1)-1) -> 1 | N11: =MID(K11,2,1) -> 1 | O11: =MID(K11,4,1) -> 3 | P11: =MID(K11,8,8) -> 79-89 | AD11: Y
A12: Barrett | B12: George | I12: 1991 | J12: Personal maintenance expenditure offsets in life care valuations | K12: 1(2): 49-60 | L12: =LEFT(K12,FIND("(",K12,1)-1) -> 1 | N12: =MID(K12,2,1) -> 1 | O12: =MID(K12,4,1) -> 2 | P12: =MID(K12,8,8) -> 49-60 | AD12: Y
A13: Benich | B13: Joseph | I13: 1991 | J13: Determination of tax-adjusted lost income awards: Comment | K13: 1(2): 99-100 | L13: =LEFT(K13,FIND("(",K13,1)-1) -> 1 | N13: =MID(K13,2,2) -> 1( | O13: =MID(K13,5,1) -> ) | P13: =MID(K13,8,7) -> 99-100 | Q13: Y | AB13: Y
A14: Benich | B14: Joseph | I14: 1992 | J14: The just better (JB) method of calculating the present value of lost future income | K14: 2(2): 31-38 | L14: =LEFT(K14,FIND("(",K14,1)-1) -> 2 | N14: =MID(K14,2,1) -> 2 | O14: =MID(K14,4,1) -> 2 | P14: =MID(K14,8,8) -> 31-38 | Q14: Y | Y14: Y
A15: Benich | B15: Joseph | I15: 1995 | J15: Updated estimates of work-life expectancies based upon the increment-decrement model: Comment | K15: 5(3): 85-88 | L15: =LEFT(K15,FIND("(",K15,1)-1) -> 5 | N15: =MID(K15,2,1) -> 5 | O15: =MID(K15,4,1) -> 3 | P15: =MID(K15,8,8) -> 85-88 | Q15: Y | V15: Y
A16: Benich | B16: Joseph J | I16: 1996 | J16: Alternative approaches to tax adjustments in appraising economic loss: Comment | K16: 6(2): 91-94 | L16: =LEFT(K16,FIND("(",K16,1)-1) -> 6 | N16: =MID(K16,2,1) -> 6 | O16: =MID(K16,4,1) -> 2 | P16: =MID(K16,8,8) -> 91-94 | Q16: Y | AA16: Y
A17: Ben-Zion | B17: Barry | I17: 2001-2002 | J17: The valuation of the loss of future pension income | K17: 11(3): 1-24 | L17: =LEFT(K17,FIND("(",K17,1)-1) -> 11 | N17: =MID(K17,2,2) -> 11 | O17: =MID(K17,5,1) -> 3 | P17: =MID(K17,8,7) -> 1-24 | Q17: Y | S17: Y
A18: Ben-Zion | B18: Barry | I18: 2006 | J18: Reply: The valuation of the loss of future pension income | K18: 13(2): 97-100 | L18: =LEFT(K18,FIND("(",K18,1)-1) -> 13 | N18: =MID(K18,2,2) -> 13 | O18: =MID(K18,5,1) -> 2 | P18: =MID(K18,8,7) -> 97-100 | AF18: Y
A19: Bhandari | B19: Jagdeep S | I19: 1992 | J19: Introduction to symposium | K19: 2(2): 55-55 | L19: =LEFT(K19,FIND("(",K19,1)-1) -> 2 | N19: =MID(K19,2,1) -> 2 | O19: =MID(K19,4,1) -> 2 | P19: =MID(K19,8,8) -> 55-55 | Q19: Y | V19: Y
A20: Bierne | B20: Martin D | C20: Horvitz | D20: Sigmund A | E20: McNerney | F20: James E | I20: 1994 | J20: A double counting problem in estimating lost future earning capacity. | K20: 4(2): 73-79 | L20: =LEFT(K20,FIND("(",K20,1)-1) -> 4 | N20: =MID(K20,2,1) -> 4 | O20: =MID(K20,4,1) -> 2 | P20: =MID(K20,8,8) -> 73-79 | Q20: Y | W20: Y
A21: Boudreaux | B21: Denis | C21: Ferguson | D21: William | E21: Boudreaux | F21: Philip | I21: 1999-2000 | J21: Analysis and valuation of closely held firms involved in business damage cases and application of certainty equivalence | K21: 9(3): 1-18 | L21: =LEFT(K21,FIND("(",K21,1)-1) -> 9 | N21: =MID(K21,2,1) -> 9 | O21: =MID(K21,4,1) -> 3 | P21: =MID(K21,8,8) -> 1-18 | AE21: Y
A22: Bowles | B22: Tyler J | C22: Lewis | D22: Cris | I22: 2000 | J22: Time-Series properties of medical care net discount rates | K22: 10(2): 1-12 | L22: =LEFT(K22,FIND("(",K22,1)-1) -> 10 | N22: =MID(K22,1,3) -> 10 | O22: =MID(K22,5,1) -> 2 | P22: =MID(K22,8,8) -> 1-12 | Q22: Y | T22: Y
A23: Bowles | B23: Tyler J | I23: 2002-2003 | J23: Valuing a Small Business: Implications of Different Income Tax Models | K23: 12(3): 47-61 | L23: =LEFT(K23,FIND("(",K23,1)-1) -> 12 | N23: =MID(K23,2,2) -> 12 | O23: =MID(K23,5,1) -> 3 | P23: =MID(K23,8,7) -> 47-61 | Q23: Y | W23: Y
A24: Bowles | B24: Tyler J | I24: 2006 | J24: Damages under wrongful death statutes: The relevancy of a survivor’s nation of residency | K24: 13(3): 65-74 | L24: =LEFT(K24,FIND("(",K24,1)-1) -> 13 | N24: =MID(K24,2,2) -> 13 | O24: =MID(K24,5,1) -> 3 | P24: =MID(K24,8,8) -> 65-74 | Q24: Y | Z24: Y
A25: Bowles | B25: Tyler J | I25: 2008 | J25: Employment Discrimination: Distinguishing Between Equitable Remedies and Compensatory Damages | K25: 15(1): 11-20 | L25: =LEFT(K25,FIND("(",K25,1)-1) -> 15 | N25: =MID(K25,2,1) -> 1 | O25: =MID(K25,4,1) -> ( | P25: =MID(K25,8,8) -> 11-20 | Q25: Y | W25: Y
A26: Bowles | B26: Tyler J T | C26: Muirhead | D26: Chris | I26: 1993 | J26: Employment litigation: Taxation and damage awards | K26: 3(1): 65-70 | L26: =LEFT(K26,FIND("(",K26,1)-1) -> 3 | N26: =MID(K26,2,1) -> 3 | O26: =MID(K26,4,1) -> 1 | P26: =MID(K26,8,8) -> 65-70 | Q26: Y | X26: Y
A27: Bowles | B27: Tyler J | I27: 1994 | J27: Wrongful discharge: The time horizon of future damages and the economic basis for damages | K27: 4(1): 75-82 | L27: =LEFT(K27,FIND("(",K27,1)-1) -> 4 | N27: =MID(K27,2,1) -> 4 | O27: =MID(K27,4,1) -> 1 | P27: =MID(K27,8,8) -> 75-82 | Q27: Y | X27: Y
A28: Bowles | B28: Tyler J | C28: Lewis | D28: W Cris | I28: 1995 | J28: Estimating lost retirement benefits: Tax considerations | K28: 5(3): 59-68 | L28: =LEFT(K28,FIND("(",K28,1)-1) -> 5 | N28: =MID(K28,2,1) -> 5 | O28: =MID(K28,4,1) -> 3 | P28: =MID(K28,8,8) -> 59-68 | Q28: Y | T28: Y
A29: Bowles | B29: Tyler J | C29: Lewis | D29: Cris | I29: 1999-2000 | J29: Unsettled issues in measuring lost profits | K29: 9(3): 19-32 | L29: =LEFT(K29,FIND("(",K29,1)-1) -> 9 | N29: =MID(K29,2,1) -> 9 | O29: =MID(K29,4,1) -> 3 | P29: =MID(K29,8,8) -> 19-32 | Q29: Y | T29: Y
A30: Bowles | B30: Tyler J | I30: 1999 | J30: Book Review: Expert economic testimony: Reference guides for judges and attorneys | K30: 9(1): 81-86 | L30: =LEFT(K30,FIND("(",K30,1)-1) -> 9 | N30: =MID(K30,2,1) -> 9 | O30: =MID(K30,4,1) -> 1 | P30: =MID(K30,8,8) -> 81-86
A31: Bowles | B31: Tyler O | I31: 2008 | J31: Hindsight in Commercial Damages Analysis | K31: 14(3): 1-14 | L31: =LEFT(K31,FIND("(",K31,1)-1) -> 14 | N31: =MID(K31,2,1) -> 4 | O31: =MID(K31,4,1) -> 3 | P31: =MID(K31,8,8) -> 1-14 | Q31: Y | U31: Y
A32: Boyd | B32: David | C32: Ireland | D32: Thomas R. | I32: 2008 | J32: History and Search Capacities of Web Sites for Legal Decisions of Interest to Forensic Economists | K32: 15(1): 93-104 | L32: =LEFT(K32,FIND("(",K32,1)-1) -> 15 | N32: =MID(K32,2,2) -> 15 | O32: =MID(K32,5,1) -> 1 | P32: =MID(K32,8,8) -> 93-104 | Q32: Y | X32: Y
A33: Brand | B33: Ronald A | I33: 1992 | J33: GATT and United States trade law: The incomplete implementation of comparative advantage theory | K33: 2(2): 95-110 | L33: =LEFT(K33,FIND("(",K33,1)-1) -> 2 | N33: =MID(K33,2,1) -> 2 | O33: =MID(K33,4,1) -> 2 | P33: =MID(K33,8,8) -> 95-110 | AC33: Y
A34: Brandi | B34: Jay T | I34: 1992 | J34: Evaluating the estimated value of marital-Labor Input: Application of the professional human capital methodology | K34: 2(1): 37-48 | L34: =LEFT(K34,FIND("(",K34,1)-1) -> 2 | N34: =MID(K34,2,1) -> 2 | O34: =MID(K34,4,1) -> 1 | P34: =MID(K34,8,8) -> 37-48 | Q34: Y | AA34: Y
A35: Brandi | B35: Jay T | I35: 1991 | J35: Estate tax valuation and comparative discounting for he limited liability company investment fund | K35: 2(2): 27-46 | L35: =LEFT(K35,FIND("(",K35,1)-1) -> 2 | N35: =MID(K35,2,1) -> 2 | O35: =MID(K35,4,1) -> 2 | P35: =MID(K35,8,8) -> 27-46 | AB35: Y
A36: Breeden | B36: Charles H. | C36: Brush | D36: Brian C. | I36: 2008 | J36: The Plaintiff as Victim and Investor: Prudent Investing and the Calculation of Economic Damages | K36: 14(3): 15-41 | L36: =LEFT(K36,FIND("(",K36,1)-1) -> 14 | N36: =MID(K36,2,1) -> 4 | O36: =MID(K36,4,1) -> 3 | P36: =MID(K36,8,8) -> 15-41 | Q36: Y | U36: Y
A37: Bremser | B37: Wayne | C37: Mathis | D37: Edward J | I37: 1994 | J37: Expert witness services: Selection criteria and pitfalls | K37: 4(1): 61-74 | L37: =LEFT(K37,FIND("(",K37,1)-1) -> 4 | N37: =MID(K37,2,1) -> 4 | O37: =MID(K37,4,1) -> 1 | P37: =MID(K37,8,8) -> 61-74 | Q37: Y | W37: Y
A38: Brookshire | B38: Michael L | I38: 2002 | J38: To deter punish but not destroy: Forensic economic analysis of jury factors for punitive damages | K38: 12(2): 1-26 | L38: =LEFT(K38,FIND("(",K38,1)-1) -> 12 | N38: =MID(K38,2,2) -> 12 | O38: =MID(K38,5,1) -> 2 | P38: =MID(K38,8,7) -> 1-26 | Q38: Y | AB38: Y
A39: Brookshire | B39: Michael L | C39: Gilbert L | D39: Mathis | I39: 1993 | J39: The calculation and application of age-earnings adjustments | K39: 3(3): 23-42 | L39: =LEFT(K39,FIND("(",K39,1)-1) -> 3 | N39: =MID(K39,2,1) -> 3 | O39: =MID(K39,4,1) -> 3 | P39: =MID(K39,8,8) -> 23-42 | Q39: Y | X39: Y
A40: Brown | B40: Ralph J | I40: 1998 | J40: Saving rate estimates for single persons by income, age, and gender | K40: 8(2): 49-62 | L40: =LEFT(K40,FIND("(",K40,1)-1) -> 8 | N40: =MID(K40,2,1) -> 8 | O40: =MID(K40,4,1) -> 2 | P40: =MID(K40,8,8) -> 49-62 | Q40: Y | Y40: Y
A41: Bruce | B41: Christopher J | I41: 2008 | J41: A Womb with (An)other View: An Economic Analysis of the Wrongful Birth Doctrine | K41: 15(1): 21-33 | L41: =LEFT(K41,FIND("(",K41,1)-1) -> 15 | N41: =MID(K41,2,2) -> 15 | O41: =MID(K41,5,1) -> 1 | P41: =MID(K41,8,8) -> 21-33 | Q41: Y | Y41: Y
A42: Brush | B42: Brian C | I42: 2002-2003 | J42: Comment: Wage Loss in Wrongful Death - A Historical Analysis | K42: 12(3): 81-90 | L42: =LEFT(K42,FIND("(",K42,1)-1) -> 12 | N42: =MID(K42,2,2) -> 12 | O42: =MID(K42,5,1) -> 3 | P42: =MID(K42,8,7) -> 81-90 | Q42: Y | U42: Y
A43: Brush | B43: Brian C | I43: 2003 | J43: The past as prologue: on the accuracy of using historical averages in discounting future lost earning to present value | K43: 13(1): 81-108 | L43: =LEFT(K43,FIND("(",K43,1)-1) -> 13 | N43: =MID(K43,2,2) -> 13 | O43: =MID(K43,5,1) -> 1 | P43: =MID(K43,8,7) -> 81-108 | Q43: Y | Y43: Y
A44: Brush | B44: Brian C | C44: Charles H | D44: Breeden | I44: 1994 | J44: Income taxes and economic damages | K44: 4(2): 51-63 | L44: =LEFT(K44,FIND("(",K44,1)-1) -> 4 | N44: =MID(K44,2,1) -> 4 | O44: =MID(K44,4,1) -> 2 | P44: =MID(K44,8,8) -> 51-63 | Q44: Y | W44: Y
A45: Brush | B45: Brian C | C45: Breeden | D45: Charles H | I45: 1996-1997 | J45: A taxonomy for the treatment of taxes in cases involving lost earnings | K45: 6(3): 75-76 | L45: =LEFT(K45,FIND("(",K45,1)-1) -> 6 | N45: =MID(K45,2,1) -> 6 | O45: =MID(K45,4,1) -> 3 | P45: =MID(K45,8,8) -> 75-76 | Q45: Y | V45: Y
A46: Brush | B46: Brian C | C46: Breeden | D46: Charles H | I46: 1996 | J46: A taxonomy for the treatment of taxes in cases involving lost earnings | K46: 6(2): 1-16 | L46: =LEFT(K46,FIND("(",K46,1)-1) -> 6 | N46: =MID(K46,2,1) -> 6 | O46: =MID(K46,4,1) -> 2 | P46: =MID(K46,8,8) -> 1-16 | Q46: Y | Y46: Y
A47: Caragonne | B47: Penelope | C47: Ireland | D47: homas R | E47: Sofka | F47: Keith | I47: 2000 | J47: Comment: An examination of historical net discount rates relative to medical care costs | K47: 10(2): 75-81 | L47: =LEFT(K47,FIND("(",K47,1)-1) -> 10 | N47: =MID(K47,1,2) -> 1 | O47: =MID(K47,5,1) -> 2 | P47: =MID(K47,8,8) -> 75-81 | Q47: Y | Y47: Y
A48: Carlson | B48: Alan R | I48: 1992 | J48: Discovery of expert witness income tax forms and other information. (Invited Article) | K48: 2(3): 67-76 | L48: =LEFT(K48,FIND("(",K48,1)-1) -> 2 | N48: =MID(K48,2,1) -> 2 | O48: =MID(K48,4,1) -> 3 | P48: =MID(K48,8,8) -> 67-76
A49: Casario | B49: Michelle | C49: Olson | D49: Gerard T | I49: 2006 | J49: Do productivity gains result in increases in earnings? | K49: 13(3): 1-18 | L49: =LEFT(K49,FIND("(",K49,1)-1) -> 13 | N49: =MID(K49,2,2) -> 13 | O49: =MID(K49,5,1) -> 3 | P49: =MID(K49,8,7) -> 1-18 | AF49: Y
A50: Cashdollar | B50: Parker | C50: Huie | D50: Marsha Cope | I50: 1993 | J50: Reliability and validity of hedonic damage testimony: Judicial logic about economic science in Merrell Dow and Mercado | K50: 3(3): 57-72 | L50: =LEFT(K50,FIND("(",K50,1)-1) -> 3 | N50: =MID(K50,2,1) -> 3 | O50: =MID(K50,4,1) -> 3 | P50: =MID(K50,8,8) -> 57-72 | Q50: Y | W50: Y
A51: Cenker | B51: William | C51: Monastra | D51: Carl | I51: 1991 | J51: Business valuations: Constraints imposed by divorce | K51: 1(3): 7-21 | L51: =LEFT(K51,FIND("(",K51,1)-1) -> 1 | N51: =MID(K51,2,1) -> 1 | O51: =MID(K51,4,1) -> 3 | P51: =MID(K51,8,8) -> 7-21 | Q51: Y | T51: Y
A52: Christoffersen | B52: Susan G | C52: Frampton | D52: Creighton | I52: 1997-1998 | J52: The use of pension benefits as predictors of earning capacity | K52: 7(3): 35-44 | L52: =LEFT(K52,FIND("(",K52,1)-1) -> 7 | N52: =MID(K52,2,1) -> 7 | O52: =MID(K52,4,1) -> 3 | P52: =MID(K52,8,8) -> 35-44 | AE52: Y
A53: Ciecka | B53: James E | C53: Donley | D53: Thomas | E53: Goldman | F53: Jerry | I53: 2001-2002 | J53: A Markov process model of work-life expectancies by educational attainment based on labor force activity in 1997-98 | K53: 10(3): 1-22 | L53: =LEFT(K53,FIND("(",K53,1)-1) -> 10 | N53: =MID(K53,1,3) -> 10 | O53: =MID(K53,5,1) -> 3 | P53: =MID(K53,8,8) -> 1-22 | Q53: Y | AB53: Y
A54: Ciecka | B54: James E | C54: Donley | D54: homas | E54: Goldman | F54: Jerry | I54: 2000 | J54: A Markov process model of work-life expectancies for ages 66-75 based on labor market activity in 1997-98 | K54: 10(2): 27-36 | L54: =LEFT(K54,FIND("(",K54,1)-1) -> 10 | N54: =MID(K54,1,3) -> 10 | O54: =MID(K54,5,1) -> 2 | P54: =MID(K54,8,8) -> 27-36 | Q54: Y | T54: Y
A55: Ciecka | B55: James E | C55: Rodgers | D55: James D | E55: Skoog | F55: Gary R | I55: 2002 | J55: The new Gamboa tables: A critique | K55: 12(2): 61-86 | L55: =LEFT(K55,FIND("(",K55,1)-1) -> 12 | N55: =MID(K55,2,2) -> 12 | O55: =MID(K55,5,1) -> 2 | P55: =MID(K55,8,7) -> 61-86 | Q55: Y | S55: Y
A56: Ciecka | B56: James E. | I56: 2008 | J56: The First Mathematically Correct Life Annuity | K56: 15(1): 59-63 | L56: =LEFT(K56,FIND("(",K56,1)-1) -> 15 | N56: =MID(K56,2,2) -> 15 | O56: =MID(K56,5,1) -> 1 | P56: =MID(K56,8,8) -> 59-63 | Q56: Y | Y56: Y
A57: Ciecka | B57: James E. | I57: 2008 | J57: Edmond Halley’s Life Table and Its Uses | K57: 15(1): 65-74 | L57: =LEFT(K57,FIND("(",K57,1)-1) -> 15 | N57: =MID(K57,2,2) -> 15 | O57: =MID(K57,5,1) -> 1 | P57: =MID(K57,8,8) -> 65-74 | Q57: Y | W57: Y
A58: Ciecka | B58: James E | I58: 1992 | J58: Why hedonic measures are irrelevant to wrongful death litigation: Comment | K58: 2(2): 51-54 | L58: =LEFT(K58,FIND("(",K58,1)-1) -> 2 | N58: =MID(K58,2,1) -> 2 | O58: =MID(K58,4,1) -> 2 | P58: =MID(K58,8,8) -> 51-54 | Q58: Y | W58: Y
A59: Ciecka | B59: James E | I59: 1994 | J59: A survey of the structure and duration of time periods for lost earnings calculations | K59: 4(2): 39-50 | L59: =LEFT(K59,FIND("(",K59,1)-1) -> 4 | N59: =MID(K59,2,1) -> 4 | O59: =MID(K59,4,1) -> 2 | P59: =MID(K59,8,8) -> 39-50 | Q59: Y | T59: Y
A60: Ciecka | B60: James E | C60: Frigo | D60: Mark L | E60: Koretke | F60: Charles H | I60: 1994 | J60: Using pension benefit guaranty corporation tables in the valuation of pension benefits: A clarification | K60: 4(3): 85-88 | L60: =LEFT(K60,FIND("(",K60,1)-1) -> 4 | N60: =MID(K60,2,1) -> 4 | O60: =MID(K60,4,1) -> 3 | P60: =MID(K60,8,8) -> 85-88 | Q60: Y | T60: Y
A61: Ciecka | B61: James E | C61: Epstein | D61: eth | E61: Goldman | F61: Jerry | I61: 1995 | J61: A reply to a comment on updated work-life expectancies based upon the incrementdecrement model | K61: 5(3): 89-91 | L61: =LEFT(K61,FIND("(",K61,1)-1) -> 5 | N61: =MID(K61,2,1) -> 5 | O61: =MID(K61,4,1) -> 3 | P61: =MID(K61,8,8) -> 89-91 | Q61: Y | X61: Y
A62: Ciecka | B62: James E | C62: Epstein | D62: Seth | I62: 1995 | J62: The use of value of life estimates in wrongful death matters: A rejoinder | K62: 5(3): 81-84 | L62: =LEFT(K62,FIND("(",K62,1)-1) -> 5 | N62: =MID(K62,2,1) -> 5 | O62: =MID(K62,4,1) -> 3 | P62: =MID(K62,8,8) -> 81-84 | Q62: Y | T62: Y
A63: Ciecka | B63: James E | C63: Donley | D63: Thomas | E63: Goldman | F63: Jerry | I63: 1995 | J63: A Markov process model of work-life expectancies based on labor market activity in 1992-93 | K63: 5(3): 17-41 | L63: =LEFT(K63,FIND("(",K63,1)-1) -> 5 | N63: =MID(K63,2,1) -> 5 | O63: =MID(K63,4,1) -> 3 | P63: =MID(K63,8,8) -> 17-41 | Q63: Y | T63: Y
A64: Ciecka | B64: James E | C64: Epstein | D64: Seth | E64: Goldman | F64: Jerry | I64: 1995 | J64: Updated estimates of work-life expectancies based upon the increment-decrement model. | K64: 5(1): 1-33 | L64: =LEFT(K64,FIND("(",K64,1)-1) -> 5 | N64: =MID(K64,2,1) -> 5 | O64: =MID(K64,4,1) -> 1 | P64: =MID(K64,8,8) -> 1-33 | AC64: Y
A65: Ciecka | B65: James E | C65: Epstein | D65: Seth | I65: 1995 | J65: A comment on the use of value of life estimates in wrongful death litigation | K65: 5(1): 75-80 | L65: =LEFT(K65,FIND("(",K65,1)-1) -> 5 | N65: =MID(K65,2,1) -> 5 | O65: =MID(K65,4,1) -> 1 | P65: =MID(K65,8,8) -> 75-80 | AF65: Y
A66: Ciecka | B66: James | C66: Donley | D66: Thomas | E66: Goldman | F66: Jerry | I66: 1996 | J66: Errata to "A Markov process model of work-life expectancies based on labor market activity in 1992-93" | K66: 6(1): 81-85 | L66: =LEFT(K66,FIND("(",K66,1)-1) -> 6 | N66: =MID(K66,2,1) -> 6 | O66: =MID(K66,4,1) -> 1 | P66: =MID(K66,8,8) -> 81-85 | Q66: Y | T66: Y
A67: Ciecka | B67: James E | C67: Donley | D67: Thomas | E67: Goldman | F67: Jerry | I67: 1997 | J67: A Markov process model of work-life expectancies based on labor market activity in 1994-1995 | K67: 7(1): 2-25 | L67: =LEFT(K67,FIND("(",K67,1)-1) -> 7 | N67: =MID(K67,2,1) -> 7 | O67: =MID(K67,4,1) -> 1 | P67: =MID(K67,8,8) -> 2-25 | Q67: Y | W67: Y
A68: Ciecka | B68: James E | C68: Donley | D68: homas | E68: Goldman | F68: Jerry | I68: 1999-2000 | J68: A Markov process model of work-life expectancies based on labor market activity in 1997-98 | K68: 9(3): 33-68 | L68: =LEFT(K68,FIND("(",K68,1)-1) -> 9 | N68: =MID(K68,2,1) -> 9 | O68: =MID(K68,4,1) -> 3 | P68: =MID(K68,8,8) -> 33-68 | AA68: Y
A69: Ciecka | B69: James E. | I69: 2008 | J69: Comment on “A Note on the Steady State Assumption and Expectancy Bias,” | K69: 14 (3):81-85 | L69: =LEFT(K69,FIND("(",K69,1)-1) -> 14 | M69: =L69-1 -> 13 | N69: =MID(K69,2,1) -> 4 | O69: =MID(K69,4,1) -> ( | P69: =MID(K69,7,8) -> :81-85 | AD69: Y
A70: Clauretie | B70: Terrence M | I70: 2002-2003 | J70: Fringe Benefits Employer-Paid Health Insurance and the Age-Earnings Cycle: Implications for Forensic Economists | K70: 12(3): 63-79 | L70: =LEFT(K70,FIND("(",K70,1)-1) -> 12 | N70: =MID(K70,2,2) -> 12 | O70: =MID(K70,5,1) -> 3 | P70: =MID(K70,8,7) -> 63-79 | Q70: Y | V70: Y
A71: Clauretie | B71: Terrence M | I71: 2003 | J71: Response: Response to Tom Ireland's Comment on my Book Review of the New Work Life Expectancy Table | K71: 13(1): 129-130 | L71: =LEFT(K71,FIND("(",K71,1)-1) -> 13 | N71: =MID(K71,2,2) -> 13 | O71: =MID(K71,5,1) -> 1 | P71: =MID(K71,8,7) -> 129-13 | Q71: Y | Y71: Y
A72: Clauretie | B72: Terrence M | I72: 2003 | J72: Quantification of the effect of worker disability on the probability of participation and employment | K72: 13(1): 39-64 | L72: =LEFT(K72,FIND("(",K72,1)-1) -> 13 | N72: =MID(K72,2,2) -> 13 | O72: =MID(K72,5,1) -> 1 | P72: =MID(K72,8,7) -> 39-64 | AF72: Y
A73: Clauretie | B73: Terrence M | I73: 2007 | J73: A Note on the Relationship between Overtime Work and Age | K73: 14(1): 23-32 | L73: =LEFT(K73,FIND("(",K73,1)-1) -> 14 | N73: =MID(K73,2,2) -> 14 | O73: =MID(K73,5,1) -> 1 | P73: =MID(K73,8,8) -> 23-32 | Q73: Y | W73: Y
A74: Clauretie | B74: Terrence M | C74: Ray | D74: Clarence G | I74: 1996-1997 | J74: A note on quantifying the tax advantage of structured versus lump-sum settlements | K74: 6(3): 63-70 | L74: =LEFT(K74,FIND("(",K74,1)-1) -> 6 | N74: =MID(K74,2,1) -> 6 | O74: =MID(K74,4,1) -> 3 | P74: =MID(K74,8,8) -> 63-70 | AD74: Y
A75: Clauterie | B75: Terrence M | I75: 2001 | J75: Book Review: The new work-life expectancy tables 2002 Edition | K75: 11(2): 105-108 | L75: =LEFT(K75,FIND("(",K75,1)-1) -> 11 | N75: =MID(K75,2,2) -> 11 | O75: =MID(K75,5,1) -> 2 | P75: =MID(K75,8,7) -> 105-10 | Q75: Y | W75: Y
A76: Clauterie | B76: Terrence M | I76: 1997-1998 | J76: Book Review: The new work-life expectancy tables: 1998 | K76: 7(3): 75-76 | L76: =LEFT(K76,FIND("(",K76,1)-1) -> 7 | N76: =MID(K76,2,1) -> 7 | O76: =MID(K76,4,1) -> 3 | P76: =MID(K76,8,8) -> 75-76 | Q76: Y | AA76: Y
A77: Colella | B77: Francis J | C77: Ireland | D77: Thomas R | I77: 1998 | J77: Neutrality and advocacy: A challenge for forensic economics | K77: 8(1): 71-88 | L77: =LEFT(K77,FIND("(",K77,1)-1) -> 8 | N77: =MID(K77,2,1) -> 8 | O77: =MID(K77,4,1) -> 1 | P77: =MID(K77,8,8) -> 71-88 | Q77: Y | AC77: Y
A78: Conley | B78: Bryan C | I78: 2003 | J78: Widow's loses and husband's self-consumption during the retirement years | K78: 13(1): 1-38 | L78: =LEFT(K78,FIND("(",K78,1)-1) -> 13 | N78: =MID(K78,2,2) -> 13 | O78: =MID(K78,5,1) -> 1 | P78: =MID(K78,8,7) -> 1-38 | Q78: Y | S78: Y
A79: Conley | B79: Bryan C | I79: 1998-1999 | J79: Self-Consumption and children's losses in the death of a single parent | K79: 8(3): 49-66 | L79: =LEFT(K79,FIND("(",K79,1)-1) -> 8 | N79: =MID(K79,2,1) -> 8 | O79: =MID(K79,4,1) -> 3 | P79: =MID(K79,8,8) -> 49-66 | AF79: Y
A80: Conley | B80: Bryan C | I80: 1999 | J80: Response to Tom Ireland's comment on "Self- Consumption and Children's Losses in the Death of a Single Parent" | K80: 9(2): 75-80 | L80: =LEFT(K80,FIND("(",K80,1)-1) -> 9 | N80: =MID(K80,2,1) -> 9 | O80: =MID(K80,4,1) -> 2 | P80: =MID(K80,8,8) -> 75-80 | AD80: Y
A81: Conley | B81: Bryan C | I81: 1999 | J81: Self-Consumption and children's losses in the death of a single parent | K81: 9(2): 81-81 | L81: =LEFT(K81,FIND("(",K81,1)-1) -> 9 | N81: =MID(K81,2,1) -> 9 | O81: =MID(K81,4,1) -> 2 | P81: =MID(K81,8,8) -> 81-81
A82: Cooter | B82: Robert D | I82: 1992 | J82: Organization as property: Economic analysis of property law applied to privatization | K82: 2(3): 77-102 | L82: =LEFT(K82,FIND("(",K82,1)-1) -> 2 | N82: =MID(K82,2,1) -> 2 | O82: =MID(K82,4,1) -> 3 | P82: =MID(K82,8,8) -> 77-102 | AF82: Y
A83: Dawson | B83: Peter C | I83: 2007 | J83: The Economics of Valuing Covenants Not to Compete Under the Fair Market Value Standard | K83: 14(2): 25-60 | L83: =LEFT(K83,FIND("(",K83,1)-1) -> 14 | N83: =MID(K83,2,2) -> 14 | O83: =MID(K83,5,1) -> 2 | P83: =MID(K83,8,7) -> 25-60 | AC83: Y
A84: Dawson | B84: Peter C. | I84: 2008 | J84: Errata “The Economics of Valuing Covenants Not to Compete Under the Fair Market Value Standard” | K84: 15(1): 105-113 | L84: =LEFT(K84,FIND("(",K84,1)-1) -> 15 | N84: =MID(K84,2,2) -> 15 | O84: =MID(K84,5,1) -> 1 | P84: =MID(K84,8,8) -> 105-113 | Q84: Y | Z84: Y
A85: Daymont | B85: Thomas N | I85: 2001-2002 | J85: The effects of job displacement on postdisplacement earnings | K85: 11(3): 39-52 | L85: =LEFT(K85,FIND("(",K85,1)-1) -> 11 | N85: =MID(K85,2,2) -> 11 | O85: =MID(K85,5,1) -> 3 | P85: =MID(K85,8,7) -> 39-52 | AD85: Y
A86: Depperschmidt | B86: Thomas O | I86: 1991 | J86: Calculating the personal expenditure deduction in wrongful death awards | K86: 1(1): 5-10 | L86: =LEFT(K86,FIND("(",K86,1)-1) -> 1 | N86: =MID(K86,2,1) -> 1 | O86: =MID(K86,4,1) -> 1 | P86: =MID(K86,8,8) -> 5-10 | AC86: Y
A87: Depperschmidt | B87: Thomas O | I87: 1992 | J87: Judicial attitudes on hedonic damages: A door only partially opened in Sherrod v. Berry, Fischer, and Charles C | K87: 2(1): 25-36 | L87: =LEFT(K87,FIND("(",K87,1)-1) -> 2 | N87: =MID(K87,2,1) -> 2 | O87: =MID(K87,4,1) -> 1 | P87: =MID(K87,8,8) -> 25-36 | Q87: Y | Z87: Y
A88: Depperschmidt | B88: Thomas O | I88: 1992 | J88: On the integrity of forensic economics | K88: 2(1): 67-84 | L88: =LEFT(K88,FIND("(",K88,1)-1) -> 2 | N88: =MID(K88,2,1) -> 2 | O88: =MID(K88,4,1) -> 1 | P88: =MID(K88,8,8) -> 67-84 | AD88: Y
A89: Depperschmidt | B89: Thomas O | I89: 1993 | J89: Meeting the defense challenge to the earning power of a lump sum award | K89: 3(1): 89-96 | L89: =LEFT(K89,FIND("(",K89,1)-1) -> 3 | N89: =MID(K89,2,1) -> 3 | O89: =MID(K89,4,1) -> 1 | P89: =MID(K89,8,8) -> 89-96 | Q89: Y | R89: Y
A90: Depperschmidt | B90: Thomas O | I90: 1994 | J90: Unintended consequences and perverse effects in forensic economic award calculations | K90: 4(2): 65-72 | L90: =LEFT(K90,FIND("(",K90,1)-1) -> 4 | N90: =MID(K90,2,1) -> 4 | O90: =MID(K90,4,1) -> 2 | P90: =MID(K90,8,8) -> 65-72 | Q90: Y | W90: Y
A91: Depperschmidt | B91: Thomas O | I91: 1997-1998 | J91: A law and economics perspective on the personal consumption deduction in wrongful death litigation | K91: 7(3): 1-22 | L91: =LEFT(K91,FIND("(",K91,1)-1) -> 7 | N91: =MID(K91,2,1) -> 7 | O91: =MID(K91,4,1) -> 3 | P91: =MID(K91,8,8) -> 1-22 | Q91: Y | T91: Y
A92: DiGabriele | B92: James A | I92: 2006 | J92: An empirical walk down valuation way: Are the valuation methods of closely held companies chosen by the courts a function of the type of case and level of court? 13(3): 39-64 | K92: 13(3): 39-64 | L92: =LEFT(K92,FIND("(",K92,1)-1) -> 13 | N92: =MID(K92,2,2) -> 13 | O92: =MID(K92,5,1) -> 3 | P92: =MID(K92,8,7) -> 39-64 | Q92: Y | AB92: Y
A93: Dinneen | B93: Terrence B | I93: 1997 | J93: Book Review: Internet disability resources ‘98 | K93: 7(2): 83-86 | L93: =LEFT(K93,FIND("(",K93,1)-1) -> 7 | N93: =MID(K93,2,1) -> 7 | O93: =MID(K93,4,1) -> 2 | P93: =MID(K93,8,8) -> 83-86 | Q93: Y | T93: Y
A94: Dulaney | B94: Ronald A | I94: 1991 | J94: Estimating decedents' consumption expenditures in wrongful death actions: Some refinements | K94: 1(2): 94-98 | L94: =LEFT(K94,FIND("(",K94,1)-1) -> 1 | N94: =MID(K94,2,1) -> 1 | O94: =MID(K94,4,1) -> 2 | P94: =MID(K94,8,8) -> 94-98 | Q94: Y | Z94: Y
A95: Einhorn | B95: Henry | C95: Hays Gorey Jr | I95: 1991 | J95: Antitrust conspiracy: The economist's role in detection prevention and relief | K95: 1(1): 19-34 | L95: =LEFT(K95,FIND("(",K95,1)-1) -> 1 | N95: =MID(K95,2,1) -> 1 | O95: =MID(K95,4,1) -> 1 | P95: =MID(K95,8,8) -> 19-34 | Q95: Y | Z95: Y
A96: Falero | B96: Frank | I96: 1996 | J96: Wage loss in wrongful death? A historical analysis | K96: 6(1): 53-67 | L96: =LEFT(K96,FIND("(",K96,1)-1) -> 6 | N96: =MID(K96,2,1) -> 6 | O96: =MID(K96,4,1) -> 1 | P96: =MID(K96,8,8) -> 53-67 | Q96: Y | T96: Y
A97: Fischer | B97: Charles C | I97: 1991 | J97: Forensic economics and the hedonic value of life | K97: 1(2): 12-30 | L97: =LEFT(K97,FIND("(",K97,1)-1) -> 1 | N97: =MID(K97,2,1) -> 1 | O97: =MID(K97,4,1) -> 2 | P97: =MID(K97,8,8) -> 12-30
A98: Fischer | B98: Charles C | I98: 1993 | J98: Measuring household production: Methodological considerations and current practice | K98: 3(1): 15-32 | L98: =LEFT(K98,FIND("(",K98,1)-1) -> 3 | N98: =MID(K98,2,1) -> 3 | O98: =MID(K98,4,1) -> 1 | P98: =MID(K98,8,8) -> 15-32 | Q98: Y | U98: Y
A99: Fjeldsted | B99: Boyd L | I99: 2000 | J99: A nontrivial (though seemingly not uncommon) error in calculating the discount rate used to reduce future losses to present value | K99: 10(1): 73-80 | L99: =LEFT(K99,FIND("(",K99,1)-1) -> 10 | N99: =MID(K99,1,3) -> 10 | O99: =MID(K99,5,1) -> 1 | P99: =MID(K99,8,8) -> 73-80 | Q99: Y | R99: Y
A100: Fjeldsted | B100: Boyd | I100: 2006 | J100: Further Comment: The valuation of the loss of future pension income | K100: 13(2): 101-104 | L100: =LEFT(K100,FIND("(",K100,1)-1) -> 13 | N100: =MID(K100,2,2) -> 13 | O100: =MID(K100,5,1) -> 2 | P100: =MID(K100,8,8) -> 101-104 | Q100: Y | W100: Y
A101: Fort | B101: Rodney | C101: Rosenman | D101: Robert | I101: 1995 | J101: Rethinking the value of lost health | K101: 5(1): 63-73 | L101: =LEFT(K101,FIND("(",K101,1)-1) -> 5 | N101: =MID(K101,2,1) -> 5 | O101: =MID(K101,4,1) -> 1 | P101: =MID(K101,8,8) -> 63-73 | Q101: Y | T101: Y
A102: Franz | B102: Wolfgang | C102: Maglietti | D102: Frank | E102: Kalich | F102: Clint | I102: 1992 | J102: Calculating the present value of future fringe benefits: What net discount rate to use. | K102: 2(1): 55-66 | L102: =LEFT(K102,FIND("(",K102,1)-1) -> 2 | N102: =MID(K102,2,1) -> 2 | O102: =MID(K102,4,1) -> 1 | P102: =MID(K102,8,8) -> 55-66 | Q102: Y | Y102: Y
A103: Franz | B103: Wolfgang W | I103: 1996-1997 | J103: Valuing the marital portion in defined benefit plans in dissolution cases consistent with the concept of community property | K103: 6(3): 39-54 | L103: =LEFT(K103,FIND("(",K103,1)-1) -> 6 | N103: =MID(K103,2,1) -> 6 | O103: =MID(K103,4,1) -> 3 | P103: =MID(K103,8,8) -> 39-54 | Q103: Y | X103: Y
A104: Frasca | B104: Ralph R | I104: 2002 | J104: An economic model for calculating prospective inheritance | K104: 12(1): 83-98 | L104: =LEFT(K104,FIND("(",K104,1)-1) -> 12 | N104: =MID(K104,2,2) -> 12 | O104: =MID(K104,5,1) -> 1 | P104: =MID(K104,8,7) -> 83-98 | AD104: Y
A105: Fuerman | B105: Ross D | I105: 1997 | J105: Naming auditor defendants in securities class actions | K105: 7(1): 72-91 | L105: =LEFT(K105,FIND("(",K105,1)-1) -> 7 | N105: =MID(K105,2,1) -> 7 | O105: =MID(K105,4,1) -> 1 | P105: =MID(K105,8,8) -> 72-91 | AF105: Y
A106: Gafford | B106: Wade W | I106: 1997 | J106: Qualifications of experts in valuing economic damages in personal injury and wrongful death cases | K106: 7(2): 59-82 | L106: =LEFT(K106,FIND("(",K106,1)-1) -> 7 | M106: =L106-1 -> 6 | N106: =MID(K106,2,1) -> ( | O106: =MID(K106,4,1) -> ) | P106: =MID(K106,8,8) -> 9-82 | Q106: Y | R106: Y
A107: Gann | B107: Carl | I107: 2001-2002 | J107: Vocational experts in employment case | K107: 11(3): 53- 68 | L107: =LEFT(K107,FIND("(",K107,1)-1) -> 11 | N107: =MID(K107,2,2) -> 11 | O107: =MID(K107,5,1) -> 3 | P107: =MID(K107,8,7) -> 53- 68 | AF107: Y
A108: Gaughan | B108: Patrick | C108: Lerman | D108: Paul | E108: Manley | F108: Donald | I108: 1993 | J108: Measuring damages resulting from lost functionality of systems | K108: 3(2): 11-24 | L108: =LEFT(K108,FIND("(",K108,1)-1) -> 3 | N108: =MID(K108,2,1) -> 3 | O108: =MID(K108,4,1) -> 2 | P108: =MID(K108,8,8) -> 11-24 | Q108: Y | X108: Y
A109: Gelles | B109: Gregory M | C109: Johnson | D109: Walter D | I109: 1996 | J109: Justifying utilization of the total offset method: An opposing comment | K109: 6(1): 69-74 | L109: =LEFT(K109,FIND("(",K109,1)-1) -> 6 | N109: =MID(K109,2,1) -> 6 | O109: =MID(K109,4,1) -> 1 | P109: =MID(K109,8,8) -> 69-74 | AD109: Y
A110: Gelman | B110: Bruce M | C110: Mathis | D110: Edward J | I110: 1991 | J110: Pensions as marital assets: A summary of the issues | K110: 1(3): 22-32 | L110: =LEFT(K110,FIND("(",K110,1)-1) -> 1 | N110: =MID(K110,2,1) -> 1 | O110: =MID(K110,4,1) -> 3 | P110: =MID(K110,8,8) -> 22-32 | Q110: Y | W110: Y
A111: Gilbert | B111: Roy F | C111: Ireland | D111: Thomas R | I111: 1991 | J111: Projecting personal injury losses with an experience-based model of adjustments to the work-life cycle | K111: 1(1): 1-25 | L111: =LEFT(K111,FIND("(",K111,1)-1) -> 1 | N111: =MID(K111,2,1) -> 1 | O111: =MID(K111,4,1) -> 1 | P111: =MID(K111,8,8) -> 1-25 | Q111: Y | U111: Y
A112: Gilbert | B112: Roy F | I112: 1991 | J112: Forensic discount rates | K112: 1(3): 40-53 | L112: =LEFT(K112,FIND("(",K112,1)-1) -> 1 | N112: =MID(K112,2,1) -> 1 | O112: =MID(K112,4,1) -> 3 | P112: =MID(K112,8,8) -> 40-53 | Q112: Y | T112: Y
A113: Gilbert | B113: Roy F | I113: 1992 | J113: How Economists can help in litigation involving personal injury, death or discrimination: Additional comments and suggestions for analysis | K113: 2(3): 63-66 | L113: =LEFT(K113,FIND("(",K113,1)-1) -> 2 | N113: =MID(K113,2,1) -> 2 | O113: =MID(K113,4,1) -> 3 | P113: =MID(K113,8,8) -> 63-66 | Q113: Y | Y113: Y
A114: Gilbert | B114: Roy F | I114: 1994 | J114: Estimates of earnings growth rates based on earnings profiles | K114: 4(2): 1-17 | L114: =LEFT(K114,FIND("(",K114,1)-1) -> 4 | N114: =MID(K114,2,1) -> 4 | O114: =MID(K114,4,1) -> 2 | P114: =MID(K114,8,8) -> 1-17 | Q114: Y | Y114: Y
A115: Gilbert | B115: Roy F | I115: 1994 | J115: The application of hedonic models to personal Injury litigation | K115: 4(3): 13-26 | L115: =LEFT(K115,FIND("(",K115,1)-1) -> 4 | N115: =MID(K115,2,1) -> 4 | O115: =MID(K115,4,1) -> 3 | P115: =MID(K115,8,8) -> 13-26 | Q115: Y | AA115: Y
A116: Gilbert | B116: Roy F | I116: 1995 | J116: A reply to "The application of hedonic models to personal injury litigation: Comment." | K116: 5(1): 87-90 | L116: =LEFT(K116,FIND("(",K116,1)-1) -> 5 | N116: =MID(K116,2,1) -> 5 | O116: =MID(K116,4,1) -> 1 | P116: =MID(K116,8,8) -> 87-90 | Q116: Y | S116: Y
A117: Gilbert | B117: Roy F | I117: 1995 | J117: A Comment on the use of value of life estimates in wrongful death litigation: A reply | K117: 5(2): 85-92 | L117: =LEFT(K117,FIND("(",K117,1)-1) -> 5 | N117: =MID(K117,2,1) -> 5 | O117: =MID(K117,4,1) -> 2 | P117: =MID(K117,8,8) -> 85-92 | Q117: Y | AA117: Y
A118: Gilbreath | B118: Kent | C118: Powers | D118: Stephanie | I118: 2006 | J118: Starting Salaries of College Graduates | K118: 13(2): 79-96 | L118: =LEFT(K118,FIND("(",K118,1)-1) -> 13 | N118: =MID(K118,2,2) -> 13 | O118: =MID(K118,5,1) -> 2 | P118: =MID(K118,8,8) -> 79-96 | AC118: Y
A119: Greco | B119: Anthony | I119: 1991 | J119: U.S. supreme court's decision in Business Electronics v. Sharp: A victory for vertical price fixing | K119: 1(2): 38-49 | L119: =LEFT(K119,FIND("(",K119,1)-1) -> 1 | N119: =MID(K119,2,1) -> 1 | O119: =MID(K119,4,1) -> 2 | P119: =MID(K119,8,8) -> 38-49 | Q119: Y | R119: Y
A120: Greco | B120: Anthony J | I120: 2006 | J120: Professional fees with collaborative divorce resolution: The evidence to date | K120: 13(3): 75-88 | L120: =LEFT(K120,FIND("(",K120,1)-1) -> 13 | N120: =MID(K120,2,2) -> 13 | O120: =MID(K120,5,1) -> 3 | P120: =MID(K120,8,8) -> 75-88 | Q120: Y | U120: Y
A121: Greco | B121: Anthony | I121: 1992 | J121: The recent state of antitrust enforcement activity | K121: 2(3): 25-48 | L121: =LEFT(K121,FIND("(",K121,1)-1) -> 2 | N121: =MID(K121,2,1) -> 2 | O121: =MID(K121,4,1) -> 3 | P121: =MID(K121,8,8) -> 25-48 | AD121: Y
A122: Grier | B122: Paul | I122: 1994 | J122: Establishing upper and lower limits for settlement negotiations in Rule 10b-5 class action litigation. | K122: 4(3): 1-11 | L122: =LEFT(K122,FIND("(",K122,1)-1) -> 4 | N122: =MID(K122,2,1) -> 4 | O122: =MID(K122,4,1) -> 3 | P122: =MID(K122,8,8) -> 1-11 | Q122: Y | W122: Y
A123: Hachman | B123: Frank | C123: Feldsted | D123: Boyd | I123: 2006 | J123: Using Census Bureau calculations of median earnings to infer age-earnings profiles: A cautionary note | K123: 13(3): 19-38 | L123: =LEFT(K123,FIND("(",K123,1)-1) -> 13 | N123: =MID(K123,2,2) -> 13 | O123: =MID(K123,5,1) -> 3 | P123: =MID(K123,8,7) -> 19-38 | Q123: Y | Z123: Y
A124: Hale | B124: Thomas W. | I124: 2008 | J124: Errata “Development of the New Disability Questions for the CPS and What They Can Tell Us About the Employment Status of People with Disabilities” | K124: 15(1): 115 | L124: =LEFT(K124,FIND("(",K124,1)-1) -> 15 | N124: =MID(K124,2,2) -> 15 | O124: =MID(K124,5,1) -> 1 | P124: =MID(K124,8,8) -> 115 | Q124: Y | Z124: Y
A125: Hale | B125: Thomas W. | I125: 2008 | J125: Development of the New Disability Questions for the CPS and What They Can Tell Us About the Employment Status of People with Disabilities | K125: 14 (3):101-110 | L125: =LEFT(K125,FIND("(",K125,1)-1) -> 14 | N125: =MID(K125,2,1) -> 4 | O125: =MID(K125,4,1) -> ( | P125: =MID(K125,8,8) -> 101-110 | S125: Y
A126: Hanke | B126: Steve H | C126: Walters | D126: Stephen J K | I126: 1995 | J126: Tax appraisal in evolving industries: An econometric approach. | K126: 5(2): 43-55 | L126: =LEFT(K126,FIND("(",K126,1)-1) -> 5 | N126: =MID(K126,2,1) -> 5 | O126: =MID(K126,4,1) -> 2 | P126: =MID(K126,8,8) -> 43-55 | AF126: Y
A127: Hanson | B127: Richard X | I127: 1991 | J127: Future transactions in pension valuation | K127: 1(2): 66-73 | L127: =LEFT(K127,FIND("(",K127,1)-1) -> 1 | N127: =MID(K127,2,1) -> 1 | O127: =MID(K127,4,1) -> 2 | P127: =MID(K127,8,8) -> 66-73 | AD127: Y
A128: Hardy Jr | B128: William E | I128: 1993 | J128: Use of national opinion research center data when estimating lost earnings capacity of an injured child. | K128: 3(3): 73- 86 | L128: =LEFT(K128,FIND("(",K128,1)-1) -> 3 | N128: =MID(K128,2,1) -> 3 | O128: =MID(K128,4,1) -> 3 | P128: =MID(K128,8,8) -> 73- 86 | AF128: Y
A129: Harrant | B129: Valerie | I129: 2002 | J129: The price of impending death: evidence from compensation awarded to victims contaminated by AIDS in France | K129: 12(1): 53-82 | L129: =LEFT(K129,FIND("(",K129,1)-1) -> 12 | N129: =MID(K129,2,2) -> 12 | O129: =MID(K129,5,1) -> 1 | P129: =MID(K129,8,7) -> 53-82 | Q129: Y | T129: Y
A130: Harrant | B130: Valerie | C130: Vaillant | D130: Nicolas | I130: 2006 | J130: Compensation and wrongful life: A positive economic perspective | K130: 13(2): 1-18 | L130: =LEFT(K130,FIND("(",K130,1)-1) -> 13 | N130: =MID(K130,2,2) -> 13 | O130: =MID(K130,5,1) -> 2 | P130: =MID(K130,8,7) -> 1-18 | AF130: Y
A131: Henderson | B131: James W | C131: Seward | D131: Allen J | I131: 1998 | J131: Risk aversion and overcompensation from the risk-free discount rate | K131: 8(2): 25-32 | L131: =LEFT(K131,FIND("(",K131,1)-1) -> 8 | N131: =MID(K131,2,1) -> 8 | O131: =MID(K131,4,1) -> 2 | P131: =MID(K131,8,8) -> 25-32 | AC131: Y
A132: Her | B132: Monica | C132: Jennings | D132: William | E132: Kinderman | F132: Albert | I132: 2001 | J132: Potential bias in the use of life, participation, and employment approach | K132: 11(2): 19- 30 | L132: =LEFT(K132,FIND("(",K132,1)-1) -> 11 | N132: =MID(K132,2,2) -> 11 | O132: =MID(K132,5,1) -> 2 | P132: =MID(K132,8,7) -> 19- 30 | AE132: Y
A133: Hoyt | B133: Richard C | I133: 1991 | J133: Estimating loss of business goodwill | K133: 1(3): 33-39 | L133: =LEFT(K133,FIND("(",K133,1)-1) -> 1 | N133: =MID(K133,2,1) -> 1 | O133: =MID(K133,4,1) -> 3 | P133: =MID(K133,8,8) -> 33-39 | Q133: Y | U133: Y
A134: Hoyt | B134: Richard C | I134: 1991 | J134: The measurement of value | K134: 1(3): 107-108 | L134: =LEFT(K134,FIND("(",K134,1)-1) -> 1 | N134: =MID(K134,2,1) -> 1 | O134: =MID(K134,4,1) -> 3 | P134: =MID(K134,8,8) -> 107-108 | Q134: Y | Y134: Y
A135: Hoyt | B135: Richard C | I135: 1991 | J135: The measurement of value | K135: 1(2): 87-93 | L135: =LEFT(K135,FIND("(",K135,1)-1) -> 1 | N135: =MID(K135,2,1) -> 1 | O135: =MID(K135,4,1) -> 2 | P135: =MID(K135,8,8) -> 87-93 | AF135: Y
A136: Hudgins | B136: Lane B | C136: Ireland | D136: Thomas R. | I136: 2008 | J136: Pension Benefits as an Evidentiary Collateral Source | K136: 15(1): 75-81 | L136: =LEFT(K136,FIND("(",K136,1)-1) -> 15 | N136: =MID(K136,2,2) -> 15 | O136: =MID(K136,5,1) -> 1 | P136: =MID(K136,8,8) -> 75-81 | Q136: Y | Y136: Y
A137: Ireland | B137: Thomas R | I137: 1991 | J137: Valuing homemaker production by implied opportunity cost: Using a family human capital methodology | K137: 1(2): 1-11 | L137: =LEFT(K137,FIND("(",K137,1)-1) -> 1 | N137: =MID(K137,2,1) -> 1 | O137: =MID(K137,4,1) -> 2 | P137: =MID(K137,8,8) -> 1-11 | Q137: Y | Z137: Y
A138: Ireland | B138: Thomas R | I138: 1991 | J138: Valuing homemaker production by implied opportunity cost: Using a family human capital methodology | K138: 1(3): 105-106 | L138: =LEFT(K138,FIND("(",K138,1)-1) -> 1 | N138: =MID(K138,2,1) -> 1 | O138: =MID(K138,4,1) -> 3 | P138: =MID(K138,8,8) -> 105-106 | Q138: Y | Z138: Y
A139: Ireland | B139: Thomas R | C139: Rose | D139: David C | I139: 2001 | J139: Comment: Confusion about "inflation risk" | K139: 10(3): 53-58 | L139: =LEFT(K139,FIND("(",K139,1)-1) -> 10 | N139: =MID(K139,1,2) -> 1 | O139: =MID(K139,5,1) -> 3 | P139: =MID(K139,8,8) -> 53-58 | Q139: Y | W139: Y
A140: Ireland | B140: Thomas R | C140: Ward | D140: John O | I140: 2001 | J140: The estate of a minor child in a child death case | K140: 10(3): 23-36 | L140: =LEFT(K140,FIND("(",K140,1)-1) -> 10 | N140: =MID(K140,1,3) -> 10 | O140: =MID(K140,5,1) -> 3 | P140: =MID(K140,8,8) -> 23-36 | Q140: Y | W140: Y
A141: Ireland | B141: Thomas R | I141: 2001 | J141: Addendum: Historical net discount rates - An update through 2001 | K141: 10(3): 63-76 | L141: =LEFT(K141,FIND("(",K141,1)-1) -> 10 | N141: =MID(K141,1,3) -> 10 | O141: =MID(K141,5,1) -> 3 | P141: =MID(K141,8,8) -> 63-76 | W141: Y
A142: Ireland | B142: Thomas R | I142: 2000 | J142: Historical comparisons between various interest rates and growth rates in the CPI, MCP, average weekly earnings and total compensation in the Employer Cost Index | K142: 10(1): 25-46 | L142: =LEFT(K142,FIND("(",K142,1)-1) -> 10 | N142: =MID(K142,1,2) -> 1 | O142: =MID(K142,5,1) -> 1 | P142: =MID(K142,8,8) -> 25-46 | AE142: Y
A143: Ireland | B143: Thomas R | I143: 2001 | J143: Origins of the American Academy of Economic and Financial Experts (AAEFE) | K143: 11(2): 81-88 | L143: =LEFT(K143,FIND("(",K143,1)-1) -> 11 | N143: =MID(K143,2,2) -> 11 | O143: =MID(K143,5,1) -> 2 | P143: =MID(K143,8,7) -> 81-88 | Q143: Y | Z143: Y
A144: Ireland | B144: Thomas R | I144: 2002-2003 | J144: Comment: The Valuations of the Loss of Future Pension Income | K144: 12(3): 91-96 | L144: =LEFT(K144,FIND("(",K144,1)-1) -> 12 | N144: =MID(K144,2,2) -> 12 | O144: =MID(K144,5,1) -> 3 | P144: =MID(K144,8,7) -> 91-96 | Q144: Y | R144: Y
A145: Ireland | B145: Thomas R | I145: 2003 | J145: Accounting for work time differences in personal injury litigation | K145: 13(1): 65-80 | L145: =LEFT(K145,FIND("(",K145,1)-1) -> 13 | N145: =MID(K145,2,2) -> 13 | O145: =MID(K145,5,1) -> 1 | P145: =MID(K145,8,7) -> 65-80 | Q145: Y | Z145: Y
A146: Ireland | B146: Thomas R | C146: Riccardi | D146: Anthony | I146: 2003 | J146: Household services as life care: An alternative view of household services in the legal system | K146: 13(1): 109-118 | L146: =LEFT(K146,FIND("(",K146,1)-1) -> 13 | N146: =MID(K146,2,2) -> 13 | O146: =MID(K146,5,1) -> 1 | P146: =MID(K146,8,7) -> 109-11 | AC146: Y
A147: Ireland | B147: Thomas R | I147: 1992 | J147: The role of a defense economist in personal injury/ wrongful death litigation | K147: 2(2): 19-30 | L147: =LEFT(K147,FIND("(",K147,1)-1) -> 2 | N147: =MID(K147,2,1) -> 2 | O147: =MID(K147,4,1) -> 2 | P147: =MID(K147,8,8) -> 19-30 | Q147: Y | Y147: Y
A148: Ireland | B148: Thomas R | C148: Johnson | D148: Walter D | E148: Rodgers | F148: James D | I148: 1992 | J148: Why hedonic measures are irrelevant to wrongful death litigation. | K148: 2(1): 49-54 | L148: =LEFT(K148,FIND("(",K148,1)-1) -> 2 | N148: =MID(K148,2,1) -> 2 | O148: =MID(K148,4,1) -> 1 | P148: =MID(K148,8,8) -> 49-54 | AC148: Y
A149: Ireland | B149: Thomas R | I149: 1993 | J149: A corrective note on the role of a defense economist in personal injury / wrongful death litigation | K149: 3(2): 95-96 | L149: =LEFT(K149,FIND("(",K149,1)-1) -> 3 | N149: =MID(K149,2,1) -> 3 | O149: =MID(K149,4,1) -> 2 | P149: =MID(K149,8,8) -> 95-96 | Q149: Y | V149: Y
A150: Ireland | B150: Thomas R | C150: Rodgers | D150: James D | I150: 1993 | J150: Hedonic damages in wrongful death/survival actions: Equitable compensation or optimal life protection | K150: 3(3): 43-56 | L150: =LEFT(K150,FIND("(",K150,1)-1) -> 3 | N150: =MID(K150,2,1) -> 3 | O150: =MID(K150,4,1) -> 3 | P150: =MID(K150,8,8) -> 43-56 | Q150: Y | Z150: Y
A151: Ireland | B151: Thomas R | C151: Winkler | D151: Anne E | I151: 1994 | J151: Projecting the lost future economic contribution of a female child: Refining income data to reflect true losses | K151: 4(2): 19-37 | L151: =LEFT(K151,FIND("(",K151,1)-1) -> 4 | N151: =MID(K151,2,1) -> 4 | O151: =MID(K151,4,1) -> 2 | P151: =MID(K151,8,8) -> 19-37 | Q151: Y | X151: Y
A152: Ireland | B152: Thomas R | I152: 1995 | J152: The application of hedonic models to personal Injury litigation: Comment | K152: 5(1): 81-85 | L152: =LEFT(K152,FIND("(",K152,1)-1) -> 5 | N152: =MID(K152,2,1) -> 5 | O152: =MID(K152,4,1) -> 1 | P152: =MID(K152,8,8) -> 81-85 | Q152: Y | R152: Y
A153: Ireland | B153: Thomas R | C153: Ward | D153: John O | I153: 1995 | J153: The Investment Approach to Parental Loss in the Death of a Child: A Guide to Understanding Alternative Versions | K153: 5(3): 43-58 | L153: =LEFT(K153,FIND("(",K153,1)-1) -> 5 | N153: =MID(K153,2,1) -> 5 | O153: =MID(K153,4,1) -> 3 | P153: =MID(K153,8,8) -> 43-58 | AE153: Y
A154: Ireland | B154: Thomas R | I154: 1997 | J154: Book Review: "Tort reform by contract": By Paul H Rubin, 1993, Washington D.C. The AEI Press, 1993 | K154: 7(1): 96- 99 | L154: =LEFT(K154,FIND("(",K154,1)-1) -> 7 | N154: =MID(K154,2,1) -> 7 | O154: =MID(K154,4,1) -> 1 | P154: =MID(K154,8,8) -> 96- 99 | Q154: Y | T154: Y
A155: Ireland | B155: Thomas R | I155: 1997-1998 | J155: The Pfeifer decision risk and damage awards: An extended response to Albrecht and Wood | K155: 7(3): 23-34 | L155: =LEFT(K155,FIND("(",K155,1)-1) -> 7 | N155: =MID(K155,2,1) -> 7 | O155: =MID(K155,4,1) -> 3 | P155: =MID(K155,8,8) -> 23-34 | AF155: Y
A156: Ireland | B156: Thomas R | I156: 1997-1998 | J156: Back calculating nominal wage rates from nominal wage rates: A useful exercise in forensic economic analysis | K156: 7(3): 55-74 | L156: =LEFT(K156,FIND("(",K156,1)-1) -> 7 | N156: =MID(K156,2,1) -> 7 | O156: =MID(K156,4,1) -> 3 | P156: =MID(K156,8,8) -> 55-74 | AF156: Y
A157: Ireland | B157: Thomas R | I157: 1997 | J157: The interface between law and economics and forensic economics | K157: 7(1): 60-71 | L157: =LEFT(K157,FIND("(",K157,1)-1) -> 7 | N157: =MID(K157,2,1) -> 7 | O157: =MID(K157,4,1) -> 1 | P157: =MID(K157,8,8) -> 60-71 | AF157: Y
A158: Ireland | B158: Thomas R | I158: 1997 | J158: Compensable nonmarket services in wrongful death litigation: Legal definitions and measurement standards | K158: 7(2): 15-34 | L158: =LEFT(K158,FIND("(",K158,1)-1) -> 7 | N158: =MID(K158,2,1) -> 7 | O158: =MID(K158,4,1) -> 2 | P158: =MID(K158,8,8) -> 15-34
A159: Ireland | B159: Thomas R | I159: 1999-2000 | J159: Book Review: Reference manual on scientific evidence, 2nd Edition, Washington D.C.: Federal Judicial Center, 2000 | K159: 9(3): 109-114 | L159: =LEFT(K159,FIND("(",K159,1)-1) -> 9 | N159: =MID(K159,2,1) -> 9 | O159: =MID(K159,4,1) -> 3 | P159: =MID(K159,8,8) -> 109-114 | Q159: Y | T159: Y
A160: Ireland | B160: Thomas R | I160: 1999-2000 | J160: Comment: Is the rate on TIPS bonds an adequate measure of the real interest rate?: Correction and elaboration | K160: 9(3): 105-108 | L160: =LEFT(K160,FIND("(",K160,1)-1) -> 9 | N160: =MID(K160,2,1) -> 9 | O160: =MID(K160,4,1) -> 3 | P160: =MID(K160,8,8) -> 105-108 | Q160: Y | W160: Y
A161: Ireland | B161: Thomas R | I161: 1999 | J161: Book Review: Determining economic damages, 1999 Edition | K161: 9(1): 87-92 | L161: =LEFT(K161,FIND("(",K161,1)-1) -> 9 | N161: =MID(K161,2,1) -> 9 | O161: =MID(K161,4,1) -> 1 | P161: =MID(K161,8,8) -> 87-92 | Q161: Y | V161: Y
A162: Ireland | B162: Thomas R | I162: 1999 | J162: Total offsets in forensic economics: Legal requirements, data comparisons, and jury comprehension | K162: 9(2): 9- 24 | L162: =LEFT(K162,FIND("(",K162,1)-1) -> 9 | N162: =MID(K162,2,1) -> 9 | O162: =MID(K162,4,1) -> 2 | P162: =MID(K162,8,8) -> 9- 24 | Q162: Y | W162: Y
A163: Ireland | B163: Thomas R | I163: 1999-2000 | J163: Comment: Nonmarket services: An offset in certain cases | K163: 9(3): 97-104 | L163: =LEFT(K163,FIND("(",K163,1)-1) -> 9 | N163: =MID(K163,2,1) -> 9 | O163: =MID(K163,4,1) -> 3 | P163: =MID(K163,8,8) -> 97-104 | Z163: Y
A164: Ireland | B164: Thomas R | I164: 1999 | J164: Comment: Self-Consumption and children's losses in the death of a single parent | K164: 9(2): 69-74 | L164: =LEFT(K164,FIND("(",K164,1)-1) -> 9 | N164: =MID(K164,2,1) -> 9 | O164: =MID(K164,4,1) -> 2 | P164: =MID(K164,8,8) -> 69-74 | U164: Y
A165: Ireland | B165: Thomas R | I165: 1999 | J165: Improving the objectivity of economic expert testimony for personal injury/wrongful death litigation | K165: 9(2): 33-52 | L165: =LEFT(K165,FIND("(",K165,1)-1) -> 9 | N165: =MID(K165,2,1) -> 9 | O165: =MID(K165,4,1) -> 2 | P165: =MID(K165,8,8) -> 33-52 | AF165: Y
A166: Ireland | B166: Thomas R | I166: 2008 | J166: The Concept of Reasonable Value in Recovery of Medical Expenses in Personal Injury Torts | K166: 14 (3):87-99 | L166: =LEFT(K166,FIND("(",K166,1)-1) -> 14 | N166: =MID(K166,2,1) -> 4 | O166: =MID(K166,4,1) -> ( | P166: =MID(K166,8,8) -> 87-99 | Q166: Y | U166: Y
A167: Isley | B167: Phyllis | C167: Rosenman | D167: Robert | I167: 1997 | J167: An economic analysis of the value of lost health | K167: 7(1): 26-47 | L167: =LEFT(K167,FIND("(",K167,1)-1) -> 7 | N167: =MID(K167,2,1) -> 7 | O167: =MID(K167,4,1) -> 1 | P167: =MID(K167,8,8) -> 26-47 | AF167: Y
A168: Jackson | B168: Daniel L | C168: Cable | D168: Sandra | I168: 2002 | J168: Forecasting data in litigation utilizing correlation ARIMA and curve estimation | K168: 12(1): 39-51 | L168: =LEFT(K168,FIND("(",K168,1)-1) -> 12 | N168: =MID(K168,2,2) -> 12 | O168: =MID(K168,5,1) -> 1 | P168: =MID(K168,8,7) -> 39-51 | Q168: Y | R168: Y
A169: Jennings | B169: Penelope R | C169: Jennings | D169: William P | I169: 2002 | J169: Problems with the use of periodic payments in actions against health care providers | K169: 12(1): 23-37 | L169: =LEFT(K169,FIND("(",K169,1)-1) -> 12 | N169: =MID(K169,2,2) -> 12 | O169: =MID(K169,5,1) -> 1 | P169: =MID(K169,8,7) -> 23-37 | AF169: Y
A170: Jennings | B170: William P | I170: 1991 | J170: Some methodological problems with the justice department merger guidelines | K170: 2(1): 85-90 | L170: =LEFT(K170,FIND("(",K170,1)-1) -> 2 | N170: =MID(K170,2,1) -> 2 | O170: =MID(K170,4,1) -> 1 | P170: =MID(K170,8,8) -> 85-90 | AF170: Y
A171: Jennings | B171: William | C171: Mercurio-Jennings | D171: Penelope | I171: 1998 | J171: A critique of the joint probability of life, participation, and employment approach | K171: 8(1): 61-70 | L171: =LEFT(K171,FIND("(",K171,1)-1) -> 8 | N171: =MID(K171,2,1) -> 8 | O171: =MID(K171,4,1) -> 1 | P171: =MID(K171,8,8) -> 61-70 | AF171: Y
A172: Johnson | B172: Walter D | C172: Gelles | D172: Gregory M | I172: 2000 | J172: An examination of historical net discount rate relationships, relative to medical care costs | K172: 10(1): 1-24 | L172: =LEFT(K172,FIND("(",K172,1)-1) -> 10 | N172: =MID(K172,1,2) -> 1 | O172: =MID(K172,5,1) -> 1 | P172: =MID(K172,8,8) -> 1-24 | Q172: Y | W172: Y
A173: Johnson | B173: Walter D | C173: Sattler | D173: Edward L | I173: 1992 | J173: The importance of the selection process in maintaining expert credibility: A guideline for choosing the economist | K173: 2(3): 3-12 | L173: =LEFT(K173,FIND("(",K173,1)-1) -> 2 | N173: =MID(K173,2,1) -> 2 | O173: =MID(K173,4,1) -> 3 | P173: =MID(K173,8,8) -> 3-12 | AC173: Y
A174: Johnson | B174: L E | C174: Ley | D174: Robert D | E174: Benshoof | F174: Paul T | I174: 1993 | J174: Estimating economic loss for a facially disfigured minor: A case study. | K174: 3(2): 1- 10 | L174: =LEFT(K174,FIND("(",K174,1)-1) -> 3 | N174: =MID(K174,2,1) -> 3 | O174: =MID(K174,4,1) -> 2 | P174: =MID(K174,8,8) -> 1- 10 | AD174: Y
A175: Johnson | B175: L E | C175: Ley | D175: Robert D | I175: 1998 | J175: Economic loss of individuals with the potential for the total loss of vision: A note | K175: 8(2): 97-101 | L175: =LEFT(K175,FIND("(",K175,1)-1) -> 8 | N175: =MID(K175,2,1) -> 8 | O175: =MID(K175,4,1) -> 2 | P175: =MID(K175,8,8) -> 97-101 | Q175: Y | W175: Y
A176: Johnson | B176: L E | I176: 1998 | J176: Estimating economic loss for a minor with eye loss: A case study | K176: 8(1): 61-70 | L176: =LEFT(K176,FIND("(",K176,1)-1) -> 8 | N176: =MID(K176,2,1) -> 8 | O176: =MID(K176,4,1) -> 1 | P176: =MID(K176,8,8) -> 61-70 | AF176: Y
A177: Jones | B177: David D. | I177: 2008 | J177: Calculating the Value of a Life Care Plan With Contingent Costs | K177: 15(1): 83-85 | L177: =LEFT(K177,FIND("(",K177,1)-1) -> 15 | N177: =MID(K177,2,2) -> 15 | O177: =MID(K177,5,1) -> 1 | P177: =MID(K177,8,8) -> 83-85 | Q177: Y | U177: Y
A178: Kamerschen | B178: David R | I178: 1994 | J178: Testing for antitrust market definition under the federal government guidelines | K178: 4(1): 1-10 | L178: =LEFT(K178,FIND("(",K178,1)-1) -> 4 | N178: =MID(K178,2,1) -> 4 | O178: =MID(K178,4,1) -> 1 | P178: =MID(K178,8,8) -> 1-10 | Q178: Y | AA178: Y
A179: Krueger | B179: Kurt V. | C179: Albrecht | D179: Gary R. | I179: 2008 | J179: The Present Value of Lost Financial Support Due to Wrongful Death | K179: 15(1): 35-42 | L179: =LEFT(K179,FIND("(",K179,1)-1) -> 15 | N179: =MID(K179,2,2) -> 15 | O179: =MID(K179,5,1) -> 1 | P179: =MID(K179,8,8) -> 35-42 | AF179: Y
A180: Landsea | B180: William F | I180: 1991 | J180: Work life? Definitions and impact on methodology | K180: 1(1): 51-62 | L180: =LEFT(K180,FIND("(",K180,1)-1) -> 1 | N180: =MID(K180,2,1) -> 1 | O180: =MID(K180,4,1) -> 1 | P180: =MID(K180,8,8) -> 51-62 | AD180: Y
A181: Landsea | B181: William F | I181: 1994 | J181: Projecting the benefits of earning capacity | K181: 4(3): 73-83 | L181: =LEFT(K181,FIND("(",K181,1)-1) -> 4 | N181: =MID(K181,2,1) -> 4 | O181: =MID(K181,4,1) -> 3 | P181: =MID(K181,8,8) -> 73-83 | Q181: Y | W181: Y
A182: Landsea | B182: William F | I182: 1999 | J182: There is no free lunch: Risky discount rates are still risky | K182: 9(2): 1-8 | L182: =LEFT(K182,FIND("(",K182,1)-1) -> 9 | N182: =MID(K182,2,1) -> 9 | O182: =MID(K182,4,1) -> 2 | P182: =MID(K182,8,8) -> 1-8 | Q182: Y | V182: Y
A183: Larimore | B183: Keith L | I183: 1991 | J183: Evaluating household services and other nonmarket production | K183: 1(1): 63-66 | L183: =LEFT(K183,FIND("(",K183,1)-1) -> 1 | N183: =MID(K183,2,1) -> 1 | O183: =MID(K183,4,1) -> 1 | P183: =MID(K183,8,8) -> 63-66 | AC183: Y
A184: Launey | B184: David V | C184: Launey | D184: George V | I184: 1993 | J184: Valuation of vested pension benefits in divorce and wrongful death actions: Using the PBGC tables | K184: 3(3): 1-10 | L184: =LEFT(K184,FIND("(",K184,1)-1) -> 3 | N184: =MID(K184,2,1) -> 3 | O184: =MID(K184,4,1) -> 3 | P184: =MID(K184,8,8) -> 1-10 | Q184: Y | W184: Y
A185: Launey | B185: David V | C185: Launey | D185: George V | I185: 1994 | J185: Valuation of vested pension benefits: A reply and elaboration | K185: 4(1): 87-90 | L185: =LEFT(K185,FIND("(",K185,1)-1) -> 4 | N185: =MID(K185,2,1) -> 4 | O185: =MID(K185,4,1) -> 1 | P185: =MID(K185,8,8) -> 87-90 | Q185: Y | Y185: Y
A186: Lawlis | B186: Frank | C186: Male | D186: Robert | I186: 1994 | J186: Methodological issues: Interest rate and wage growth forecasting | K186: 4(3): 55-61 | L186: =LEFT(K186,FIND("(",K186,1)-1) -> 4 | N186: =MID(K186,2,1) -> 4 | O186: =MID(K186,4,1) -> 3 | P186: =MID(K186,8,8) -> 55-61 | Q186: Y | V186: Y
A187: Lester | B187: Rick A | C187: McCoy | D187: Dan W | I187: 1992 | J187: The role of the forensic economist and financial expert as affected by the civil rights act of 1991 | K187: 2(2): 39-48 | L187: =LEFT(K187,FIND("(",K187,1)-1) -> 2 | N187: =MID(K187,2,1) -> 2 | O187: =MID(K187,4,1) -> 2 | P187: =MID(K187,8,8) -> 39-48 | Q187: Y | W187: Y
A188: Lewis | B188: W Cris | C188: Caliendo | D188: Frank N | E188: Bowles | F188: Tyler J | I188: 2001 | J188: Measuring public safety retirement plan wealth: Implications for assessing economic loss | K188: 11(2): 61-80 | L188: =LEFT(K188,FIND("(",K188,1)-1) -> 11 | N188: =MID(K188,2,2) -> 11 | O188: =MID(K188,5,1) -> 2 | P188: =MID(K188,8,7) -> 61-80 | AC188: Y
A189: Lewis | B189: CrisW | I189: 1992 | J189: The rationale and quantitative evidence for the personal consumption offset in wrongful death actions | K189: 2(2): 1-18 | L189: =LEFT(K189,FIND("(",K189,1)-1) -> 2 | N189: =MID(K189,2,1) -> 2 | O189: =MID(K189,4,1) -> 2 | P189: =MID(K189,8,8) -> 1-18 | Q189: Y | U189: Y
A190: Lewis | B190: W Cris | I190: 1995 | J190: Measuring the effect of preexisting health conditions on expected economic loss | K190: 5(2): 33-42 | L190: =LEFT(K190,FIND("(",K190,1)-1) -> 5 | N190: =MID(K190,2,1) -> 5 | O190: =MID(K190,4,1) -> 2 | P190: =MID(K190,8,8) -> 33-42 | Q190: Y | R190: Y
A191: Lewis | B191: W Cris | C191: Bowles | D191: Tyler J | I191: 1996-1997 | J191: The effect of capital market imperfections and intertemporal choice on the valuation of retirement fund contributions | K191: 6(3): 55-62 | L191: =LEFT(K191,FIND("(",K191,1)-1) -> 6 | N191: =MID(K191,2,1) -> 6 | O191: =MID(K191,4,1) -> 3 | P191: =MID(K191,8,8) -> 55-62 | Q191: Y | Y191: Y
A192: Lewis | B192: W Cris | C192: Bowles | D192: Tyler J | I192: 1996-1997 | J192: The economics of the litigation process and the division of the settlement surplus: A gametheoretic approach | K192: 6(3): 1-10 | L192: =LEFT(K192,FIND("(",K192,1)-1) -> 6 | N192: =MID(K192,2,1) -> 6 | O192: =MID(K192,4,1) -> 3 | P192: =MID(K192,8,8) -> 1-10 | Q192: Y | T192: Y
A193: Lewis | B193: W Cris | C193: Bowles | D193: Tyler J | I193: 1996 | J193: Alternative approaches to tax adjustments in appraising economic loss | K193: 6(1): 27-38 | L193: =LEFT(K193,FIND("(",K193,1)-1) -> 6 | N193: =MID(K193,2,1) -> 6 | O193: =MID(K193,4,1) -> 1 | P193: =MID(K193,8,8) -> 27-38 | Q193: Y | S193: Y
A194: Lewis | B194: Eric E | C194: Lippitt | D194: Jeffrey W | I194: 1999 | J194: Valuing intellectual assets | K194: 9(1): 20-30 | L194: =LEFT(K194,FIND("(",K194,1)-1) -> 9 | N194: =MID(K194,2,1) -> 9 | O194: =MID(K194,4,1) -> 1 | P194: =MID(K194,8,8) -> 20-30 | Q194: Y | U194: Y
A195: Lino | B195: Mark | I195: 1991 | J195: Expenditures on children by families: U.S. Department of Agriculture estimates and alternative estimators | K195: 1(2): 31-48 | L195: =LEFT(K195,FIND("(",K195,1)-1) -> 1 | N195: =MID(K195,2,1) -> 1 | O195: =MID(K195,4,1) -> 2 | P195: =MID(K195,8,8) -> 31-48 | AF195: Y
A196: Liuzzo | B196: Anthony L | I196: 1991 | J196: Hedonic damages: Concepts, measurements, and problems | K196: 1(2): 58-65 | L196: =LEFT(K196,FIND("(",K196,1)-1) -> 1 | N196: =MID(K196,2,1) -> 1 | O196: =MID(K196,4,1) -> 2 | P196: =MID(K196,8,8) -> 58-65 | Z196: Y
A197: Liuzzo | B197: Anthony L | I197: 1993 | J197: Punitive damages: Policies and problems | K197: 3(1): 53-64 | L197: =LEFT(K197,FIND("(",K197,1)-1) -> 3 | N197: =MID(K197,2,1) -> 3 | O197: =MID(K197,4,1) -> 1 | P197: =MID(K197,8,8) -> 53-64 | Q197: Y | Y197: Y
A198: Lynch | B198: L A | C198: Stauffer | D198: R F | I198: 1993 | J198: Single equation models for valuing economic loss | K198: 3(2): 53-60 | L198: =LEFT(K198,FIND("(",K198,1)-1) -> 3 | N198: =MID(K198,2,1) -> 3 | O198: =MID(K198,4,1) -> 2 | P198: =MID(K198,8,8) -> 53-60 | Q198: Y | AA198: Y
A199: Male | B199: Robert A | C199: Lawliss | D199: Frank G | I199: 1996 | J199: Rejoinder to Johnson and Gelles | K199: 6(1): 75-79 | L199: =LEFT(K199,FIND("(",K199,1)-1) -> 6 | N199: =MID(K199,2,1) -> 6 | O199: =MID(K199,4,1) -> 1 | P199: =MID(K199,8,8) -> 75-79 | AC199: Y
A200: Male | B200: Robert A | I200: 1996 | J200: Book Review: "Valuing children in litigation: Family and individual loss assessment": By Thomas R Ireland and John O Ward 1995 Tucson: Lawyers & Judges Publishing Co., Inc, 1995 | K200: 6(2): 95-97 | L200: =LEFT(K200,FIND("(",K200,1)-1) -> 6 | N200: =MID(K200,2,1) -> 6 | O200: =MID(K200,4,1) -> 2 | P200: =MID(K200,8,8) -> 95-97 | X200: Y
... 117 more rows

Sheet Texttocolumns
A1: SOCIAL SCIENCES, HELPING PROF | B1: 38795 | C1: 39 | D1: 38695 | E1: 38.5 | F1: 37719 | G1: 39.4 | H1: 36769 | I1: 41.5 | J1: 35797 | K1: 42.6 | L1: 152.5/ | N1: 35422
A2: African American Studies | B2: 88 | C2: 0.1 | D2: 56 | E2: 0.1 | F2: 64 | G2: 0.1 | H2: 57 | I2: 0.1 | J2: 56 | K2: 0.1 | L2: 148.9/ | N2: 55
A3: American Civilization | B3: 82 | C3: 0.1 | D3: 81 | E3: 0.1 | F3: 45 | G3: 0 | H3: 50 | I3: 0.1 | J3: 46 | K3: 0.1 | L3: 158.5/ | N3: 45
A4: Asian American Studies | B4: 0 | C4: 0 | D4: 14 | E4: 0 | F4: 10 | G4: 0 | H4: 20 | I4: 0 | J4: 20 | K4: 0 | L4: 153.4/ | N4: 20
A5: Anthropology | B5: 613 | C5: 0.6 | D5: 624 | E5: 0.6 | F5: 570 | G5: 0.6 | H5: 543 | I5: 0.6 | J5: 490 | K5: 0.6 | L5: 156.4/ | N5: 490
A6: Archaeology | B6: 13 | C6: 0 | D6: 11 | E6: 0 | F6: 13 | G6: 0 | H6: 9 | I6: 0 | J6: 8 | K6: 0 | L6: 158.3/ | N6: 8
A7: Bilingual Education | B7: 3 | C7: 0 | D7: 3 | E7: 0 | F7: 3 | G7: 0 | H7: 2 | I7: 0 | J7: 3 | K7: 0 | L7: 142.7/ | N7: 3
A8: Criminal Justice | B8: 3475 | C8: 3.5 | D8: 3386 | E8: 3.4 | F8: 3355 | G8: 3.5 | H8: 3286 | I8: 3.7 | J8: 3272 | K8: 3.9 | L8: 145.5/ | N8: 3239
A9: Criminology | B9: 600 | C9: 0.6 | D9: 634 | E9: 0.6 | F9: 647 | G9: 0.7 | H9: 671 | I9: 0.8 | J9: 751 | K9: 0.9 | L9: 149.5/ | N9: 745
A10: Education, General | B10: 161 | C10: 0.2 | D10: 154 | E10: 0.2 | F10: 156 | G10: 0.2 | H10: 165 | I10: 0.2 | J10: 147 | K10: 0.2 | L10: 148.6/ | N10: 141
A11: Education/Administration | B11: 2 | C11: 0 | D11: 8 | E11: 0 | F11: 9 | G11: 0 | H11: 6 | I11: 0 | J11: 7 | K11: 0 | L11: 142.3/ | N11: 7
A12: Education Psychology | B12: 12 | C12: 0 | D12: 6 | E12: 0 | F12: 8 | G12: 0 | H12: 4 | I12: 0 | J12: 5 | K12: 0 | L12: 151. 6/ | N12: 5
A13: Elementary Education | B13: 258 | C13: 0.3 | D13: 221 | E13: 0.2 | F13: 167 | G13: 0.2 | H13: 153 | I13: 0.2 | J13: 142 | K13: 0.2 | L13: 148.8/ | N13: 136
A14: Family Relations/Child Deve | B14: 123 | C14: 0.1 | D14: 118 | E14: 0.1 | F14: 126 | G14: 0.1 | H14: 89 | I14: 0.1 | J14: 95 | K14: 0.1 | L14: 151.3/ | N14: 92
A15: Government /Service | B15: 819 | C15: 0.8 | D15: 682 | E15: 0.7 | F15: 694 | G15: 0.7 | H15: 646 | I15: 0.7 | J15: 596 | K15: 0.7 | L15: 156.0/ | N15: 588
A16: Guidance/Counseling | B16: 18 | C16: 0 | D16: 11 | E16: 0 | F16: 9 | G16: 0 | H16: 5 | I16: 0 | J16: 3 | K16: 0 | L16: 139.0/ | N16: 2
A17: History | B17: 4754 | C17: 4.8 | D17: 4525 | E17: 4.5 | F17: 4510 | G17: 4.7 | H17: 4460 | I17: 5 | J17: 4390 | K17: 5.2 | L17: 155.9/ | N17: 4351
A18: Indian Studies | B18: 10 | C18: 0 | D18: 5 | E18: 0 | F18: 5 | G18: 0 | H18: 7 | I18: 0 | J18: 5 | K18: 0 | L18: 139.0/ | N18: 5
A19: International Relations | B19: 1565 | C19: 1.6 | D19: 1609 | E19: 1.6 | F19: 1531 | G19: 1.6 | H19: 1604 | I19: 1.8 | J19: 1544 | K19: 1.8 | L19: 156.7/ | N19: 1536
A20: Inter American Relations | B20: 13 | C20: 0 | D20: 9 | E20: 0 | F20: 10 | G20: 0 | H20: 10 | I20: 0 | J20: 16 | K20: 0 | L20: 155.8/ | N20: 15
A21: Law Enforcement | B21: 50 | C21: 0.1 | D21: 40 | E21: 0 | F21: 33 | G21: 0 | H21: 26 | I21: 0 | J21: 30 | K21: 0 | L21: 146.1/ | N21: 30
A22: Mexican American Studies | B22: 14 | C22: 0 | D22: 12 | E22: 0 | F22: 13 | G22: 0 | H22: 16 | I22: 0 | J22: 11 | K22: 0 | L22: 147.9/ | N22: 10
A23: Military Science | B23: 0 | C23: 0 | D23: 1 | E23: 0 | F23: 0 | G23: 0 | H23: 1 | I23: 0 | J23: 2 | K23: 0 | L23: 154.0/ | N23: 2
A24: Office Systems | B24: 0 | C24: 0 | D24: 0 | E24: 0 | F24: 1 | G24: 0 | H24: 1 | I24: 0 | J24: 2 | K24: 0 | L24: 138.0/ | N24: 2
A25: Physical Education | B25: 34 | C25: 0 | D25: 27 | E25: 0 | F25: 28 | G25: 0 | H25: 17 | I25: 0 | J25: 13 | K25: 0 | L25: 142.8/ | N25: 13
A26: Police Administration | B26: 13 | C26: 0 | D26: 7 | E26: 0 | F26: 4 | G26: 0 | H26: 7 | I26: 0 | J26: 8 | K26: 0 | L26: 139.9/ | N26: 8
A27: Policy Studies | B27: 269 | C27: 0.3 | D27: 304 | E27: 0.3 | F27: 283 | G27: 0.3 | H27: 266 | I27: 0.3 | J27: 245 | K27: 0.3 | L27: 159.6/ | N27: 241
A28: Political Science | B28: 15180 | C28: 15.3 | D28: 15763 | E28: 15.7 | F28: 15509 | G28: 16.2 | H28: 15361 | I28: 17.3 | J28: 14950 | K28: 17.8 | L28: 153.0/ | N28: 14802
A29: Prelaw | B29: 870 | C29: 0.9 | D29: 984 | E29: 1 | F29: 976 | G29: 1 | H29: 1003 | I29: 1.1 | J29: 1057 | K29: 1.3 | L29: 148.7/ | N29: 1047
A30: Psychology | B30: 5206 | C30: 5.2 | D30: 5155 | E30: 5.1 | F30: 4943 | G30: 5.2 | H30: 4601 | I30: 5.2 | J30: 4350 | K30: 5.2 | L30: 152.9/ | N30: 4306
A31: Public Affairs/Services/Adm | B31: 234 | C31: 0.2 | D31: 204 | E31: 0.2 | F31: 185 | G31: 0.2 | H31: 174 | I31: 0.2 | J31: 172 | K31: 0.2 | L31: 149.7/ | N31: 171
A32: Recreation and Leisure Serv | B32: 28 | C32: 0 | D32: 33 | E32: 0 | F32: 35 | G32: 0 | H32: 17 | I32: 0 | J32: 16 | K32: 0 | L32: 147.9/ | N32: 15
A33: Secondary Education | B33: 162 | C33: 0.2 | D33: 152 | E33: 0.2 | F33: 138 | G33: 0.1 | H33: 110 | I33: 0.1 | J33: 115 | K33: 0.1 | L33: 151.1/ | N33: 112
A34: Sociology | B34: 2326 | C34: 2.3 | D34: 2293 | E34: 2.3 | F34: 2171 | G34: 2.3 | H34: 2125 | I34: 2.4 | J34: 2042 | K34: 2.4 | L34: 150.8/ | N34: 2015
A35: Social Work | B35: 354 | C35: 0.4 | D35: 347 | E35: 0.3 | F35: 334 | G35: 0.3 | H35: 264 | I35: 0.3 | J35: 241 | K35: 0.3 | L35: 147.0/ | N35: 239
A36: Spec. Ed./Disabi1ities/Hndc | B36: 45 | C36: 0 | D36: 39 | E36: 0 | F36: 46 | G36: 0 | H36: 39 | I36: 0 | J36: 25 | K36: 0 | L36: 148.0/ | N36: 23
A37: Urban Studies/Regn1. P1anni | B37: 116 | C37: 0.1 | D37: 100 | E37: 0.1 | F37: 98 | G37: 0.1 | H37: 78 | I37: 0.1 | J37: 84 | K37: 0.1 | L37: 155.9/ | N37: 83
A38: Women's Studies | B38: 101 | C38: 0.1 | D38: 79 | E38: 0.1 | F38: 84 | G38: 0.1 | H38: 90 | I38: 0.1 | J38: 94 | K38: 0.1 | L38: 156.0/ | N38: 94
A39: Other Social Sciences | B39: 1184 | C39: 1.2 | D39: 998 | E39: 1 | F39: 906 | G39: 0.9 | H39: 786 | I39: 0.9 | J39: 744 | K39: 0.9 | L39: 152.0/ | N39: 726
A40: OTHER | B40: 4589 | C40: 4.6 | D40: 4751 | E40: 4.7 | F40: 4754 | G40: 5 | H40: 4536 | I40: 5.1 | J40: 4429 | K40: 5.3 | L40: 148.8/ | N40: 4342
A41: Any area not | B41: 4589 | C41: 4.6 | D41: 4751 | E41: 4.7 | F41: 4754 | G41: 5 | H41: 4536 | I41: 5.1 | J41: 4429 | K41: 5.3 | L41: 148.8/ | N41: 4343
A42: NO MAJOR INDICATED | B42: 5643 | C42: 5.7 | D42: 4778 | E42: 4.7 | F42: 3990 | G42: 4.2 | H42: 3175 | I42: 3.6 | J42: 2632 | K42: 3.1 | L42: 144.5/ | N42: 1816

Sheet EasyFilter
A1: year | B1: Month | C1: Quarter | D1: Monthlysales
A2: 2000 | B2: 1 | C2: =IF(B2<=3,1,IF(B2<=6,2,IF(B2<=9,3,IF(B2<=12,4,"x")))) -> 1 | D2: 84
A3: 2000 | B3: 2 | C3: =IF(B3<=3,1,IF(B3<=6,2,IF(B3<=9,3,IF(B3<=12,4,"x")))) -> 1 | D3: 36
A4: 2000 | B4: 3 | C4: =IF(B4<=3,1,IF(B4<=6,2,IF(B4<=9,3,IF(B4<=12,4,"x")))) -> 1 | D4: 13
A5: 2000 | B5: 4 | C5: =IF(B5<=3,1,IF(B5<=6,2,IF(B5<=9,3,IF(B5<=12,4,"x")))) -> 2 | D5: 490
A6: 2000 | B6: 5 | C6: =IF(B6<=3,1,IF(B6<=6,2,IF(B6<=9,3,IF(B6<=12,4,"x")))) -> 2 | D6: 500
A7: 2000 | B7: 6 | C7: =IF(B7<=3,1,IF(B7<=6,2,IF(B7<=9,3,IF(B7<=12,4,"x")))) -> 2 | D7: 3000
A8: 2000 | B8: 7 | C8: =IF(B8<=3,1,IF(B8<=6,2,IF(B8<=9,3,IF(B8<=12,4,"x")))) -> 3 | D8: 54
A9: 2000 | B9: 8 | C9: =IF(B9<=3,1,IF(B9<=6,2,IF(B9<=9,3,IF(B9<=12,4,"x")))) -> 3 | D9: 32
A10: 2000 | B10: 9 | C10: =IF(B10<=3,1,IF(B10<=6,2,IF(B10<=9,3,IF(B10<=12,4,"x")))) -> 3 | D10: 36
A11: 2000 | B11: 10 | C11: =IF(B11<=3,1,IF(B11<=6,2,IF(B11<=9,3,IF(B11<=12,4,"x")))) -> 4 | D11: 75
A12: 2000 | B12: 11 | C12: =IF(B12<=3,1,IF(B12<=6,2,IF(B12<=9,3,IF(B12<=12,4,"x")))) -> 4 | D12: 2
A13: 2000 | B13: 12 | C13: =IF(B13<=3,1,IF(B13<=6,2,IF(B13<=9,3,IF(B13<=12,4,"x")))) -> 4 | D13: 21
A14: 2001 | B14: 1 | C14: =IF(B14<=3,1,IF(B14<=6,2,IF(B14<=9,3,IF(B14<=12,4,"x")))) -> 1 | D14: 71
A15: 2001 | B15: 2 | C15: =IF(B15<=3,1,IF(B15<=6,2,IF(B15<=9,3,IF(B15<=12,4,"x")))) -> 1 | D15: 41
A16: 2001 | B16: 3 | C16: =IF(B16<=3,1,IF(B16<=6,2,IF(B16<=9,3,IF(B16<=12,4,"x")))) -> 1 | D16: 64
A17: 2001 | B17: 4 | C17: =IF(B17<=3,1,IF(B17<=6,2,IF(B17<=9,3,IF(B17<=12,4,"x")))) -> 2 | D17: 64
A18: 2001 | B18: 5 | C18: =IF(B18<=3,1,IF(B18<=6,2,IF(B18<=9,3,IF(B18<=12,4,"x")))) -> 2 | D18: 43
A19: 2001 | B19: 6 | C19: =IF(B19<=3,1,IF(B19<=6,2,IF(B19<=9,3,IF(B19<=12,4,"x")))) -> 2 | D19: 71
A20: 2001 | B20: 7 | C20: =IF(B20<=3,1,IF(B20<=6,2,IF(B20<=9,3,IF(B20<=12,4,"x")))) -> 3 | D20: 13
A21: 2001 | B21: 8 | C21: =IF(B21<=3,1,IF(B21<=6,2,IF(B21<=9,3,IF(B21<=12,4,"x")))) -> 3 | D21: 30
A22: 2001 | B22: 9 | C22: =IF(B22<=3,1,IF(B22<=6,2,IF(B22<=9,3,IF(B22<=12,4,"x")))) -> 3 | D22: 69
A23: 2001 | B23: 10 | C23: =IF(B23<=3,1,IF(B23<=6,2,IF(B23<=9,3,IF(B23<=12,4,"x")))) -> 4 | D23: 86
A24: 2001 | B24: 11 | C24: =IF(B24<=3,1,IF(B24<=6,2,IF(B24<=9,3,IF(B24<=12,4,"x")))) -> 4 | D24: 49
A25: 2001 | B25: 12 | C25: =IF(B25<=3,1,IF(B25<=6,2,IF(B25<=9,3,IF(B25<=12,4,"x")))) -> 4 | D25: 100

Sheet PresentValue
D1: Table 1 | F1: 1000
A2: Table 1 A VALUATION OF THE PRESENT VALUE OF MONTHLY PAYMENTS OF
E3: Interest rates on | F3: Present
B4: 2013-04-01 | C4: Period | D4: Payment | E4: 2013-03-25 | F4: Value
A5: 1 | B5: 2013-04-01 | C5: 1 | D5: =F1 -> 1000 | E5: =VLOOKUP(B5,$D$126:$I$394,6,TRUE)/100 -> -0.00339 | F5: =D5/(1+E5)^((B5-$B$4)/365.25) -> 1000
A6: =A5+1 -> 2 | B6: 2013-06-01 | C6: =C5+1 -> 2 | D6: =D5 -> 1000 | E6: =VLOOKUP(B6,$D$126:$I$394,6,TRUE)/100 -> 0.00052
A7: =A6+1 -> 3 | B7: 2013-07-01 | C7: =C6+1 -> 3 | D7: =D6 -> 1000 | E7: 0.00074
A8: 4 | B8: 2013-08-01 | C8: 4 | D8: 1000 | E8: 0.00056
A9: 5 | B9: 2013-09-01 | C9: 5 | D9: 1000 | E9: 0.00103
A10: 6 | B10: 2013-10-01 | C10: 6 | D10: 1000 | E10: 0.00112
A11: 7 | B11: 2013-11-01 | C11: 7 | D11: 1000 | E11: 0.00129
A12: 8 | B12: 2013-12-01 | C12: 8 | D12: 1000 | E12: 0.00129
A13: 9 | B13: 2014-01-01 | C13: 9 | D13: 1000 | E13: 0.00141
A14: 10 | B14: 2014-02-01 | C14: 10 | D14: 1000 | E14: 0.00151
A15: 11 | B15: 2014-03-01 | C15: 11 | D15: 1000 | E15: 0.00158
A16: 12 | B16: 2014-04-01 | C16: 12 | D16: 1000 | E16: 0.0016
A17: 13 | B17: 2014-05-01 | C17: 13 | D17: 1000 | E17: 0.0017
A18: 14 | B18: 2014-06-01 | C18: 14 | D18: 1000 | E18: 0.00174
A19: 15 | B19: 2014-07-01 | C19: 15 | D19: 1000 | E19: 0.00188
A20: 16 | B20: 2014-08-01 | C20: 16 | D20: 1000 | E20: 0.00197
A21: 17 | B21: 2014-09-01 | C21: 17 | D21: 1000 | E21: 0.00212
A22: 18 | B22: 2014-10-01 | C22: 18 | D22: 1000 | E22: 0.00193
A23: 19 | B23: 2014-11-01 | C23: 19 | D23: 1000 | E23: 0.00222
A24: 20 | B24: 2014-12-01 | C24: 20 | D24: 1000 | E24: 0.00229
A25: 21 | B25: 2015-01-01 | C25: 21 | D25: 1000 | E25: 0.00237
A26: 22 | B26: 2015-02-01 | C26: 22 | D26: 1000 | E26: 0.00231
A27: 23 | B27: 2015-03-01 | C27: 23 | D27: 1000 | E27: 0.00251
A28: 24 | B28: 2015-04-01 | C28: 24 | D28: 1000 | E28: 0.00251
A29: 25 | B29: 2015-05-01 | C29: 25 | D29: 1000 | E29: 0.00264
A30: 26 | B30: 2015-06-01 | C30: 26 | D30: 1000 | E30: 0.00277
A31: 27 | B31: 2015-07-01 | C31: 27 | D31: 1000 | E31: 0.00286
A32: 28 | B32: 2015-08-01 | C32: 28 | D32: 1000 | E32: 0.00298
A33: 29 | B33: 2015-09-01 | C33: 29 | D33: 1000 | E33: 0.00304
A34: 30 | B34: 2015-10-01 | C34: 30 | D34: 1000 | E34: 0.00307
A35: 31 | B35: 2015-11-01 | C35: 31 | D35: 1000 | E35: 0.00325
A36: 32 | B36: 2015-12-01 | C36: 32 | D36: 1000 | E36: 0.00344
A37: 33 | B37: 2016-01-01 | C37: 33 | D37: 1000 | E37: 0.00352
A38: 34 | B38: 2016-02-01 | C38: 34 | D38: 1000 | E38: 0.00362
A39: 35 | B39: 2016-03-01 | C39: 35 | D39: 1000 | E39: 0.00373
A40: 36 | B40: 2016-04-01 | C40: 36 | D40: 1000 | E40: 0.00389
A41: 37 | B41: 2016-05-01 | C41: 37 | D41: 1000 | E41: 0.00411
A42: 38 | B42: 2016-06-01 | C42: 38 | D42: 1000 | E42: 0.00416
A43: 39 | B43: 2016-07-01 | C43: 39 | D43: 1000 | E43: 0.00421
A44: 40 | B44: 2016-08-01 | C44: 40 | D44: 1000 | E44: 0.00433
A45: 41 | B45: 2016-09-01 | C45: 41 | D45: 1000 | E45: 0.0046
A46: 42 | B46: 2016-10-01 | C46: 42 | D46: 1000 | E46: 0.00466
A47: 43 | B47: 2016-11-01 | C47: 43 | D47: 1000 | E47: 0.00494
A48: 44 | B48: 2016-12-01 | C48: 44 | D48: 1000 | E48: 0.00521
A49: 45 | B49: 2017-01-01 | C49: 45 | D49: 1000 | E49: 0.00516
A50: 46 | B50: 2017-02-01 | C50: 46 | D50: 1000 | E50: 0.00542
A51: 47 | B51: 2017-03-01 | C51: 47 | D51: 1000 | E51: 0.00558
A52: 48 | B52: 2017-04-01 | C52: 48 | D52: 1000 | E52: 0.00574
A53: 49 | B53: 2017-05-01 | C53: 49 | D53: 1000 | E53: 0.006
A54: 50 | B54: 2017-06-01 | C54: 50 | D54: 1000 | E54: 0.00607
A55: 51 | B55: 2017-07-01 | C55: 51 | D55: =+D53 -> 1000 | E55: 0.00628
A56: 52 | B56: 2017-08-01 | C56: 52 | D56: 1000 | E56: 0.00648
A57: 53 | B57: 2017-09-01 | C57: 53 | D57: 1000 | E57: 0.00665
A58: 54 | B58: 2017-10-01 | C58: 54 | D58: 1000 | E58: 0.00688
A59: 55 | B59: 2017-11-01 | C59: 55 | D59: 1000 | E59: 0.00704
A60: 56 | B60: 2017-12-01 | C60: 56 | D60: 1000 | E60: 0.00721
A61: 57 | B61: 2018-01-01 | C61: 57 | D61: 1000 | E61: 0.00726
A62: 58 | B62: 2018-02-01 | C62: 58 | D62: 1000 | E62: 0.00747
A63: 59 | B63: 2018-03-01 | C63: 59 | D63: 1000 | E63: 0.00765
A64: 60 | B64: 2018-04-01 | C64: 60 | D64: 1000 | E64: 0.00783
A65: 61 | B65: 2018-05-01 | C65: 61 | D65: 1000 | E65: 0.00805
A66: 62 | B66: 2018-06-01 | C66: 62 | D66: 1000 | E66: 0.00827
A67: 63 | B67: 2018-07-01 | C67: 63 | D67: 1000 | E67: 0.0085
A68: 64 | B68: 2018-08-01 | C68: 64 | D68: 1000 | E68: 0.00856
A69: 65 | B69: 2018-09-01 | C69: 65 | D69: 1000 | E69: 0.00883
A70: 66 | B70: 2018-10-01 | C70: 66 | D70: 1000 | E70: =VLOOKUP(B70,$D$126:$I$394,6,TRUE)/100 -> 0.00905
A71: =A70+1 -> 67 | B71: 2018-11-01 | C71: =C70+1 -> 67 | D71: =D70 -> 1000 | E71: 0.00915
A72: 68 | B72: 2018-12-01 | C72: 68 | D72: 1000 | E72: 0.00945
A73: 69 | B73: 2019-01-01 | C73: 69 | D73: 1000 | E73: 0.00966
A74: 70 | B74: 2019-02-01 | C74: 70 | D74: 1000 | E74: 0.0099
A75: 71 | B75: 2019-03-01 | C75: 71 | D75: 1000 | E75: 0.01014
A76: 72 | B76: 2019-04-01 | C76: 72 | D76: 1000 | E76: 0.0103
A77: 73 | B77: 2019-05-01 | C77: 73 | D77: 1000 | E77: 0.01048
A78: 74 | B78: 2019-06-01 | C78: 74 | D78: 1000 | E78: 0.0107
A79: 75 | B79: 2019-07-01 | C79: 75 | D79: 1000 | E79: 0.01089
A80: 76 | B80: 2019-08-01 | C80: 76 | D80: 1000 | E80: 0.01118
A81: 77 | B81: 2019-09-01 | C81: 77 | D81: 1000 | E81: 0.01142
A82: 78 | B82: 2019-10-01 | C82: 78 | D82: 1000 | E82: 0.0115
A83: 79 | B83: 2019-11-01 | C83: 79 | D83: 1000 | E83: 0.0117
A84: 80 | B84: 2019-12-01 | C84: 80 | D84: 1000 | E84: 0.01199
A85: 81 | B85: 2020-01-01 | C85: 81 | D85: 1000 | E85: 0.01218
A86: 82 | B86: 2020-02-01 | C86: 82 | D86: 1000 | E86: 0.01237
A87: 83 | B87: 2020-03-01 | C87: 83 | D87: 1000 | E87: 0.01264
A88: 84 | B88: 2020-04-01 | C88: 84 | D88: 1000 | E88: 0.01264
A89: 85 | B89: 2020-05-01 | C89: 85 | D89: 1000 | E89: 0.01264
A90: 86 | B90: 2020-06-01 | C90: 86 | D90: 1000 | E90: 0.01203
A91: 87 | B91: 2020-07-01 | C91: 87 | D91: 1000 | E91: 0.01203
A92: 88 | B92: 2020-08-01 | C92: 88 | D92: 1000 | E92: 0.01203
A93: 89 | B93: 2020-09-01 | C93: 89 | D93: 1000 | E93: 0.01266
A94: 90 | B94: 2020-10-01 | C94: 90 | D94: 1000 | E94: 0.01266
A95: 91 | B95: 2020-11-01 | C95: 91 | D95: 1000 | E95: 0.01266
A96: 92 | B96: 2020-12-01 | C96: 92 | D96: 1000 | E96: 0.01414
A97: 93 | B97: 2021-01-01 | C97: 93 | D97: 1000 | E97: 0.01414
A98: 94 | B98: 2021-02-01 | C98: 94 | D98: 1000 | E98: 0.01414
A99: 95 | B99: 2021-03-01 | C99: 95 | D99: 1000 | E99: 0.01388
A100: 96 | B100: 2021-04-01 | C100: 96 | D100: 1000 | E100: 0.01388
A101: 97 | B101: 2021-05-01 | C101: 97 | D101: 1000 | E101: 0.01388
A102: 98 | B102: 2021-06-01 | C102: 98 | D102: 1000 | E102: 0.01431
A103: 99 | B103: 2021-07-01 | C103: =C102+1 -> 99 | D103: =D102 -> 1000 | E103: 0.01431
A104: 100 | B104: 2021-08-01 | C104: 100 | D104: 1000 | E104: 0.01431
A105: 101 | B105: 2021-09-01 | C105: 101 | D105: 1000 | E105: 0.01485
A106: 102 | B106: 2021-10-01 | C106: 102 | D106: 1000 | E106: 0.01485
A107: 103 | B107: 2021-11-01 | C107: 103 | D107: 1000 | E107: 0.01485
A108: 104 | B108: 2021-12-01 | C108: 104 | D108: 1000 | E108: 0.0155
A109: 105 | B109: 2022-01-01 | C109: 105 | D109: 1000 | E109: 0.0155
A110: 106 | B110: 2022-02-01 | C110: 106 | D110: 1000 | E110: 0.0155
A111: 107 | B111: 2022-03-01 | C111: 107 | D111: 1000 | E111: 0.01706
A112: 108 | B112: 2022-04-01 | C112: 108 | D112: 1000 | E112: 0.01706
A113: 109 | B113: 2022-05-01 | C113: 109 | D113: 1000 | E113: 0.01706
A114: 110 | B114: 2022-06-01 | C114: 110 | D114: 1000 | E114: 0.0177
A115: 111 | B115: 2022-07-01 | C115: 111 | D115: 1000 | E115: 0.0177
C116: Totals | D116: =SUM(D5:D115) -> 111000
D118: Average interest rate | E118: =AVERAGE(E5:E115) -> 0.007706666667
D126: 2013-03-31 | E126: 0.75 | F126: 100.0078 | G126: 100.0156 | H126: unch. | I126: -0.386
D127: 2013-03-31 | E127: 2.5 | F127: 100.0313 | G127: 100.0391 | H127: -0.0078 | I127: -0.339
D128: 2013-04-15 | E128: 1.75 | F128: 100.0859 | G128: 100.0938 | H128: -0.0078 | I128: 0.043
D129: 2013-04-30 | E129: 0.625 | F129: 100.0547 | G129: 100.0625 | H129: 0.0078 | I129: -0.021
D130: 2013-04-30 | E130: 3.125 | F130: 100.2891 | G130: 100.2969 | H130: -0.0078 | I130: 0.054
D131: 2013-05-15 | E131: 1.375 | F131: 100.1719 | G131: 100.1797 | H131: -0.0078 | I131: 0.074
D132: 2013-05-15 | E132: 3.625 | F132: 100.4844 | G132: 100.4922 | H132: -0.0156 | I132: 0.06
D133: 2013-05-31 | E133: 0.5 | F133: 100.0703 | G133: 100.0781 | H133: unch. | I133: 0.069
D134: 2013-05-31 | E134: 3.5 | F134: 100.6094 | G134: 100.625 | H134: -0.0156 | I134: 0.052
D135: 2013-06-15 | E135: 1.125 | F135: 100.2266 | G135: 100.2344 | H135: -0.0078 | I135: 0.071
D136: 2013-06-30 | E136: 0.375 | F136: 100.0703 | G136: 100.0781 | H136: unch. | I136: 0.08
D137: 2013-06-30 | E137: 3.375 | F137: 100.8672 | G137: 100.875 | H137: -0.0078 | I137: 0.074
D138: 2013-07-15 | E138: 1 | F138: 100.2734 | G138: 100.2813 | H138: -0.0078 | I138: 0.082
D139: 2013-07-31 | E139: 0.375 | F139: 100.0938 | G139: 100.1016 | H139: unch. | I139: 0.085
D140: 2013-07-31 | E140: 3.375 | F140: 101.1328 | G140: 101.1641 | H140: -0.0234 | I140: 0.056
D141: 2013-08-15 | E141: 0.75 | F141: 100.25 | G141: 100.2578 | H141: unch. | I141: 0.092
D142: 2013-08-15 | E142: 4.25 | F142: 101.6172 | G142: 101.6328 | H142: -0.0078 | I142: 0.086
D143: 2013-08-31 | E143: 0.125 | F143: 100 | G143: 100.0078 | H143: unch. | I143: 0.107
D144: 2013-08-31 | E144: 3.125 | F144: 101.2891 | G144: 101.2969 | H144: -0.0078 | I144: 0.103
D145: 2013-09-15 | E145: 0.75 | F145: 100.2891 | G145: 100.3047 | H145: -0.0078 | I145: 0.102
D146: 2013-09-30 | E146: 0.125 | F146: 100 | G146: 100.0078 | H146: unch. | I146: 0.11
D147: 2013-09-30 | E147: 3.125 | F147: 101.5391 | G147: 101.5469 | H147: -0.0078 | I147: 0.112
D148: 2013-10-15 | E148: 0.5 | F148: 100.2031 | G148: 100.2188 | H148: unch. | I148: 0.106
D149: 2013-10-31 | E149: 0.25 | F149: 100.0703 | G149: 100.0781 | H149: unch. | I149: 0.119
D150: 2013-10-31 | E150: 2.75 | F150: 101.5469 | G150: 101.5625 | H150: -0.0156 | I150: 0.129
D151: 2013-11-15 | E151: 0.5 | F151: 100.2266 | G151: 100.2422 | H151: unch. | I151: 0.12
D152: 2013-11-15 | E152: 4.25 | F152: 102.6172 | G152: 102.625 | H152: -0.0078 | I152: 0.133
D153: 2013-11-30 | E153: 0.25 | F153: 100.0703 | G153: 100.0781 | H153: unch. | I153: 0.135
D154: 2013-11-30 | E154: 2 | F154: 101.2578 | G154: 101.2734 | H154: -0.0078 | I154: 0.129
D155: 2013-12-15 | E155: 0.75 | F155: 100.4297 | G155: 100.4375 | H155: -0.0078 | I155: 0.144
D156: 2013-12-31 | E156: 0.125 | F156: 99.9844 | G156: 99.9922 | H156: unch. | I156: 0.135
D157: 2013-12-31 | E157: 1.5 | F157: 101.0234 | G157: 101.0391 | H157: -0.0078 | I157: 0.141
D158: 2014-01-15 | E158: 1 | F158: 100.6797 | G158: 100.6875 | H158: -0.0078 | I158: 0.147
D159: 2014-01-31 | E159: 0.25 | F159: 100.0859 | G159: 100.0938 | H159: unch. | I159: 0.14
D160: 2014-01-31 | E160: 1.75 | F160: 101.3516 | G160: 101.3594 | H160: -0.0078 | I160: 0.151
D161: 2014-02-15 | E161: 1.25 | F161: 100.9688 | G161: 100.9766 | H161: -0.0078 | I161: 0.154
D162: 2014-02-15 | E162: 4 | F162: 103.4063 | G162: 103.4297 | H162: -0.0234 | I162: 0.152
D163: 2014-02-28 | E163: 0.25 | F163: 100.0859 | G163: 100.0938 | H163: unch. | I163: 0.149
D164: 2014-02-28 | E164: 1.875 | F164: 101.5859 | G164: 101.5938 | H164: -0.0078 | I164: 0.158
D165: 2014-03-15 | E165: 1.25 | F165: 101.0547 | G165: 101.0625 | H165: unch. | I165: 0.154
D166: 2014-03-31 | E166: 0.25 | F166: 100.0859 | G166: 100.0938 | H166: unch. | I166: 0.157
D167: 2014-03-31 | E167: 1.75 | F167: 101.6016 | G167: 101.6094 | H167: -0.0078 | I167: 0.16
D168: 2014-04-15 | E168: 1.25 | F168: 101.125 | G168: 101.1328 | H168: -0.0078 | I168: 0.175
D169: 2014-04-30 | E169: 0.25 | F169: 100.0625 | G169: 100.1016 | H169: unch. | I169: 0.157
D170: 2014-04-30 | E170: 1.875 | F170: 101.8594 | G170: 101.8672 | H170: unch. | I170: 0.17
D171: 2014-05-15 | E171: 1 | F171: 100.9297 | G171: 100.9453 | H171: 0.0078 | I171: 0.168
D172: 2014-05-15 | E172: 4.75 | F172: 105.1875 | G172: 105.1953 | H172: -0.0078 | I172: 0.178
D173: 2014-05-31 | E173: 0.25 | F173: 100.0625 | G173: 100.1016 | H173: unch. | I173: 0.164
D174: 2014-05-31 | E174: 2.25 | F174: 102.4258 | G174: 102.4492 | H174: -0.0039 | I174: 0.174
D175: 2014-06-15 | E175: 0.75 | F175: 100.6875 | G175: 100.6953 | H175: unch. | I175: 0.18
D176: 2014-06-30 | E176: 0.25 | F176: 100.0781 | G176: 100.0859 | H176: 0.0078 | I176: 0.182
D177: 2014-06-30 | E177: 2.625 | F177: 103.0625 | G177: 103.0781 | H177: -0.0156 | I177: 0.188
D178: 2014-07-15 | E178: 0.625 | F178: 100.5469 | G178: 100.5547 | H178: unch. | I178: 0.2
D179: 2014-07-31 | E179: 0.125 | F179: 99.8906 | G179: 99.8984 | H179: 0.0078 | I179: 0.2
D180: 2014-07-31 | E180: 2.625 | F180: 103.2578 | G180: 103.2734 | H180: unch. | I180: 0.197
D181: 2014-08-15 | E181: 0.5 | F181: 100.3984 | G181: 100.4219 | H181: unch. | I181: 0.196
D182: 2014-08-15 | E182: 4.25 | F182: 105.5938 | G182: 105.6328 | H182: -0.0391 | I182: 0.197
D183: 2014-08-31 | E183: 0.25 | F183: 100.0469 | G183: 100.0547 | H183: unch. | I183: 0.212
D184: 2014-08-31 | E184: 2.375 | F184: 103.0703 | G184: 103.0859 | H184: 0.0156 | I184: 0.212
D185: 2014-09-15 | E185: 0.25 | F185: 100.0469 | G185: 100.0703 | H185: 0.0078 | I185: 0.202
D186: 2014-09-30 | E186: 0.25 | F186: 100.0469 | G186: 100.0547 | H186: 0.0156 | I186: 0.214
D187: 2014-09-30 | E187: 2.375 | F187: 103.2734 | G187: 103.2969 | H187: 0.0313 | I187: 0.193
D188: 2014-10-15 | E188: 0.5 | F188: 100.4297 | G188: 100.4375 | H188: 0.0078 | I188: 0.218
D189: 2014-10-31 | E189: 0.25 | F189: 100.0195 | G189: 100.043 | H189: -0.0039 | I189: 0.223
D190: 2014-10-31 | E190: 2.375 | F190: 103.4063 | G190: 103.4297 | H190: -0.0078 | I190: 0.222
D191: 2014-11-15 | E191: 0.375 | F191: 100.2148 | G191: 100.2383 | H191: -0.0039 | I191: 0.229
D192: 2014-11-15 | E192: 4.25 | F192: 106.5938 | G192: 106.6172 | H192: 0.0391 | I192: 0.202
D193: 2014-11-30 | E193: 0.25 | F193: 100.0195 | G193: 100.043 | H193: 0.0039 | I193: 0.224
D194: 2014-11-30 | E194: 2.125 | F194: 103.1563 | G194: 103.1797 | H194: unch. | I194: 0.229
D195: 2014-12-15 | E195: 0.25 | F195: 100.0234 | G195: 100.0313 | H195: 0.0078 | I195: 0.232
D196: 2014-12-31 | E196: 0.125 | F196: 99.7969 | G196: 99.8359 | H196: 0.0078 | I196: 0.218
D197: 2014-12-31 | E197: 2.625 | F197: 104.1953 | G197: 104.2031 | H197: 0.0078 | I197: 0.237
D198: 2015-01-15 | E198: 0.25 | F198: 100.0625 | G198: 100.0859 | H198: 0.0078 | I198: 0.202
D199: 2015-01-31 | E199: 0.25 | F199: 100 | G199: 100.0391 | H199: 0.0078 | I199: 0.229
D200: 2015-01-31 | E200: 2.25 | F200: 103.7031 | G200: 103.7266 | H200: unch. | I200: 0.231
D201: 2015-02-15 | E201: 0.25 | F201: 99.9844 | G201: 99.9922 | H201: 0.0078 | I201: 0.254
D202: 2015-02-15 | E202: 4 | F202: 107.0508 | G202: 107.0742 | H202: -0.0117 | I202: 0.25
D203: 2015-02-15 | E203: 11.25 | F203: 120.7227 | G203: 120.7461 | H203: -0.0273 | I203: 0.253
D204: 2015-02-28 | E204: 0.25 | F204: 99.9766 | G204: 100.0156 | H204: -0.0078 | I204: 0.242
D205: 2015-02-28 | E205: 2.375 | F205: 104.0625 | G205: 104.0859 | H205: unch. | I205: 0.251
D206: 2015-03-15 | E206: 0.375 | F206: 100.2188 | G206: 100.2266 | H206: 0.0039 | I206: 0.26
D207: 2015-03-31 | E207: 2.5 | F207: 104.5078 | G207: 104.5156 | H207: unch. | I207: 0.251
D208: 2015-04-15 | E208: 0.375 | F208: 100.2109 | G208: 100.2344 | H208: -0.0078 | I208: 0.261
... 187 more rows
